Workbook

Sheet предпр
A1: Перечень показателей | B1: Отчет | D1: Оценка | E1: Прогноз | H1: Взаимоувязка показателей с формами статистической отчетности
B2: 2007 | C2: 2008 | D2: 2009 | E2: 2010 | F2: 2011 | G2: 2012
A3: Показатели производственной деятельности
A4: Объем производства в натуральном выражении в разрезе основной номенклатуры (в соответствующих единицах измерения): | H4: Сведения о производстве и отгрузке промышленной продукции Форма № -1натура годовая, код ОКП , гр 1
A7: Индекс производства, % | H7: Темпы роста производства в натуральном выражении.
A8: Отгружено товаров собственного производства, выполнено работ и услуг собственными силами (без НДС и акцизов, тыс. рублей) | H8: Основные сведения о деятельности предприятия, Форма №1 -предприятия ,годовая, раздел VI, стр 33, гр 1
A9: Финансово - экономические показатели ( тыс. руб.)
A10: Выручка от продажи товаров, продукции, работ, услуг (за минусом НДС, акцизов и аналогичных обязательных платежей) | H10: Отчет о прибылях и убытках, Форма №2 по ОКУД , строка 010
A11: Себестоимость проданных товаров, продукции, работ,услуг | H11: Отчет о прибылях и убытках, Форма №2 по ОКУД , строка 020
A12: Прибыль (убыток) от продаж | H12: Отчет о прибылях и убытках, Форма №2 по ОКУД , строка 050
A13: Дебиторская задолженность | H13: Бухгалтерский баланс, Раздел 2 Оборотные активы, строки ( 230+240)
A14: Кредиторская задолженность | H14: Бухгалтерский баланс, Раздел 5 Кроткосрочные обязательства, строка 620
A15: Ввод в действие основных фондов | H15: Сведения о наличии и движении основных фондов(средств) и других нефинансовых активов, Форма № 11 годовая, строка 01 графа 7
A16: Среднегодовая стоимость основных фондов | H16: Сведения о наличии и движении основных фондов(средств) и других нефинансовых активов, Форма № 11 годовая , раздел 1, строка 31
A17: Оборотные средства, всего | H17: Бухгалтерский баланс, оборотные активы, строка 290
A18: в том числе:
A19: собственные средства
A20: заемные средства
A21: Показатели инвестиционной активности ( тыс. руб.)
A22: Инвестиции в основной капитал, всего | H22: Сведения об инвестициях, Форма № П-2 квартальная ( раздел 2 строка №201, графа 1 )
A23: в том числе:
A24: здания и сооружения | H24: Сведения об инвестициях, Форма № П-2 квартальная ( раздел 2 строка №204, графа 1 )
A25: машины, оборудование, транспортные средства | H25: Сведения об инвестициях, Форма № П-2 квартальная ( раздел 2 строка №206, графа 1 )
A26: Инвестиции в нематериальные активы | H26: Сведения об инвестициях, Форма № П-2 квартальная ( раздел 2 строка №240, графа 1 )
A27: Инвестиции в другие нефинансовые внеоборотные активы | H27: Сведения об инвестициях, Форма № П-2 квартальная ( раздел 2 строка №250, графа 1 )
A28: Затраты на научно-исследовательские, опытно-конструкторские и технологические работы | H28: Сведения об инвестициях, Форма № П-2 квартальная ( раздел 2 строка №252, графа 1 )
A29: Источники инвестиций:
A30: - собственные средства | H30: Сведения об инвестициях, Форма № П-2 квартальная ( раздел 3 строка №310, графа 3 )
A31: - привлеченные средства | H31: Сведения об инвестициях, Форма № П-2 квартальная ( раздел3 строка №320, графа3 )
A32: Сведения об инновационной деятельности
A33: Отгружено инновационной продукции собственного производства в фактических ценах (без НДС и акциза, тыс. рублей) | H33: Сведения об инновационной деятельности, Форма № 4 годовая ( раздел 3 строка №019, графа 1 )
A34: Оказано услуг инновационного характера (тыс. рублей) | H34: Сведения об инновационной деятельности, Форма № 4 годовая ( раздел 3 строка № 024, графа 1 )
A35: Общие (капитальные и текущие) затраты на технологические инновации (тыс. рублей) | H35: Сведения об инновационной деятельности, Форма № 4 годовая ( раздел 5 строка №045, графа 3 )
A36: Количество поданных заявок за отчетный период на: | H36: Сведения об инновационной деятельности, Форма № 4 годовая ( раздел 9 )
A37: патенты на изобретения или промышленные образцы | H37: Сведения об инновационной деятельности, Форма № 4 годовая ( раздел 9 строка №117 )
A38: свидетельства на полезные модели | H38: Сведения об инновационной деятельности, Форма № 4 годовая ( раздел 9 строка №118 )
A39: официальную регистрацию программ для ЭВМ и т.п. | H39: Сведения об инновационной деятельности, Форма № 4 годовая ( раздел 9 строка №119 )
A40: Количество приобретенных новых технологий (технических достижений) программных средств | H40: Сведения об инновационной деятельности, Форма № 4 годовая ( раздел 10 строка №120, графа3 )
A41: Количество переданных новых технологий (технических достижений) программных средств | H41: Сведения об инновационной деятельности, Форма № 4 годовая ( раздел 10 строка №120, графа 6 )
A42: Социальные показатели
A43: Затраты на содержание объектов социальной сферы, тыс. руб. | H43: Сведения об использовании денежных средств, Форма № 12-Ф годовая, сумма строк 305. 306и 307, графа 3.
A44: Среднесписочная численность работников, чел. | H44: Сведения о численности, заработной плате работников по видам деятельности, Форма № 1 -Т годовая, стр1, гр.4
A45: Среднемесячная заработная плата, руб. | H45: Сведения о численности, заработной плате работников по видам деятельности, Форма № 1 -Т годовая, стр1, гр.5/гр.4.
A46: Среднемесячный объем отгруженных товаров, выполненных работ и услуг на 1 работающего в действующих ценах, тыс. рублей

Sheet исходный
A1: Форма 2п
A2: Основные показатели, представляемые для разработки прогноза социально-экономического развития Российской Федерации на 2013 год и плановый период 2014 и 2015 годов. (для субъектов Российской Федерации)
B3: 0 | C3: 0
A5: Субъект Российской Федерации: Чувашская Республика | B5: Алтайский край
A6: Раздел показателей:
A9: Показатели | B9: Единица измерения | C9: Код | D9: Доп. Код | E9: Код отрасли | F9: Форма собственности | G9: Измерение | H9: отчет | L9: отчет | M9: отчет | O9: оценка | P9: прогноз
H10: 1998 | I10: 1999 | J10: 2000 | K10: 2001 | L10: 2009 | M10: 2010 | N10: 2011 | O10: 2012 | P10: 2013 | R10: 2014 | T10: 2015
P11: вариант 1 | Q11: вариант 2 | R11: вариант 1 | S11: вариант 2 | T11: вариант 1 | U11: вариант 2
A12: 1. Демографические показатели
A13: Численность постоянного населения (среднегодовая) | B13: тыс. человек | C13: 1 | G13: 04 | L13: =демогр!D5 -> 127.057 | M13: =демогр!E5 -> 124.389 | N13: =демогр!F5 -> 124.744 | O13: =демогр!G5 -> 125 | P13: =демогр!H5 -> 125.09 | Q13: =демогр!I5 -> 125.13 | R13: =демогр!J5 -> 125.14 | S13: =демогр!K5 -> 125.18 | T13: =демогр!L5 -> 125.18 | U13: =демогр!M5 -> 125.19
B14: % к предыдущему году | C14: 1 | G14: 02 | L14: =демогр!D6 -> 100.3847673 | M14: =демогр!E6 -> 97.90015505 | N14: =демогр!F6 -> 100.285395 | O14: =демогр!G6 -> 100.2 | P14: =демогр!H6 -> 100.072 | Q14: =демогр!I6 -> 100.104 | R14: =демогр!J6 -> 100.0399712 | S14: =демогр!K6 -> 100.0399584 | T14: =демогр!L6 -> 100.0319642 | U14: =демогр!M6 -> 100.0079885
A15: Численность постоянного населения (среднегодовая), городское | B15: тыс. человек | C15: 1 | G15: 04 | L15: =демогр!D7 -> 126.787 | M15: =демогр!E7 -> 124.109 | N15: =демогр!F7 -> 124.464 | O15: =демогр!G7 -> 124.8 | P15: =демогр!H7 -> 124.8 | Q15: =демогр!I7 -> 124.85 | R15: =демогр!J7 -> 124.85 | S15: =демогр!K7 -> 124.9 | T15: =демогр!L7 -> 124.9 | U15: =демогр!M7 -> 124.92
B16: % к предыдущему году | C16: 1 | G16: 02 | L16: =демогр!D8 -> 100.3855899 | M16: =демогр!E8 -> 97.88779607 | N16: =демогр!F8 -> 100.2860389 | O16: =демогр!G8 -> 100.2 | P16: =демогр!H8 -> 100 | Q16: =демогр!I8 -> 100.5970558 | R16: =демогр!J8 -> 100.0400641 | S16: =демогр!K8 -> 100.0400481 | T16: =демогр!L8 -> 100.0400481 | U16: =демогр!M8 -> 100.0160128
A17: Численность постоянного населения (среднегодовая), сельское | B17: тыс. человек | C17: 1 | G17: 04 | L17: =демогр!D9 -> 0.27 | M17: =демогр!E9 -> 0.28 | N17: =демогр!F9 -> 0.28 | O17: =демогр!G9 -> 0.3 | P17: =демогр!H9 -> 0.29 | Q17: =демогр!I9 -> 0.28 | R17: =демогр!J9 -> 0.29 | S17: =демогр!K9 -> 0.28 | T17: =демогр!L9 -> 0.28 | U17: =демогр!M9 -> 0.27
B18: % к предыдущему году | C18: 1 | G18: 02 | L18: =демогр!D10 -> 100 | M18: =демогр!E10 -> 103.7037037 | N18: =демогр!F10 -> 100 | O18: =демогр!G10 -> 100 | P18: =демогр!H10 -> 96.66666667 | Q18: =демогр!I10 -> 93.33333333 | R18: =демогр!J10 -> 100 | S18: =демогр!K10 -> 100 | T18: =демогр!L10 -> 96.55172414 | U18: =демогр!M10 -> 96.42857143
A19: Ожидаемая продолжительность жизни при рождении | B19: число лет | C19: 1 | G19: 04 | L19: =демогр!D11 -> 67 | M19: =демогр!E11 -> 67 | N19: =демогр!F11 -> 67 | O19: =демогр!G11 -> 67 | P19: =демогр!H11 -> 67 | Q19: =демогр!I11 -> 67 | R19: =демогр!J11 -> 67 | S19: =демогр!K11 -> 67 | T19: =демогр!L11 -> 67 | U19: =демогр!M11 -> 67
A20: Общий коэффициент рождаемости | B20: число родившихся на 1000 человек населения | C20: 1 | G20: 04 | L20: =демогр!D12 -> 12.2 | M20: =демогр!E12 -> 12.3 | N20: =демогр!F12 -> 11.78413391 | O20: =демогр!G12 -> 11.8 | P20: =демогр!H12 -> 11.59165401 | Q20: =демогр!I12 -> 11.74778231 | R20: =демогр!J12 -> 11.74684354 | S20: =демогр!K12 -> 11.90285988 | T20: =демогр!L12 -> 11.90285988 | U20: =демогр!M12 -> 11.98178768
A21: Общий коэффициент смертности | B21: число умерших на 1000 человек населения | C21: 1 | G21: 04 | L21: =демогр!D13 -> 9.6 | M21: =демогр!E13 -> 9.9 | N21: =демогр!F13 -> 9.419290707 | O21: =демогр!G13 -> 9.4 | P21: =демогр!H13 -> 10.15269006 | Q21: =демогр!I13 -> 10.14944458 | R21: =демогр!J13 -> 10.14863353 | S21: =демогр!K13 -> 10.14539064 | T21: =демогр!L13 -> 10.2252756 | U21: =демогр!M13 -> 10.22445882
A22: Коэффициент естественного прироста населения | B22: на 1000 человек населения | C22: 1 | G22: 04 | L22: =демогр!D14 -> 2.6 | M22: =демогр!E14 -> 2.4 | N22: =демогр!F14 -> 2.364843199 | O22: =демогр!G14 -> 2.4 | P22: =демогр!H14 -> 1.438963946 | Q22: =демогр!I14 -> 1.598337729 | R22: =демогр!J14 -> 1.598210005 | S22: =демогр!K14 -> 1.757469244 | T22: =демогр!L14 -> 1.677584279 | U22: =демогр!M14 -> 1.75732886
A23: Коэффициент миграционного прироста | B23: на 10 000 человек населения | C23: 1 | G23: 04 | L23: =демогр!D15 -> 12.04183949 | M23: =демогр!E15 -> -239.4102372 | N23: =демогр!F15 -> 0 | O23: =демогр!G15 -> 0 | P23: =демогр!H15 -> 0 | Q23: =демогр!I15 -> 0 | R23: =демогр!J15 -> 0 | S23: =демогр!K15 -> 0 | T23: =демогр!L15 -> 0 | U23: =демогр!M15 -> 0
A25: 2. Производство товаров и услуг
A26: 2.1. Выпуск товаров и услуг
A27: Выпуск товаров и услуг | B27: млн. руб. в основных ценах соответствующих лет | C27: 1 | G27: 04 | L27: =промыш!C5 -> 16216.7 | M27: =промыш!D5 -> 18728.961 | N27: =промыш!E5 -> 18990.1 | O27: =промыш!F5 -> 19855.7 | P27: =промыш!G5 -> 21916.15858 | Q27: =промыш!H5 -> 21962.14988 | R27: =промыш!I5 -> 24132.90526 | S27: =промыш!J5 -> 24415.35353 | T27: =промыш!K5 -> 26969.23683 | U27: =промыш!L5 -> 27465.97753
A28: 2.2. Валовой региональный продукт
A29: Валовой региональный продукт (в основных ценах соответствующих лет) - всего | B29: млн. руб. | C29: 1 | G29: 04
A30: Индекс физического объема валового регионального продукта | B30: % к предыдущему году в постоянных основных ценах | C30: 1 | G30: 02
A31: Индекс-дефлятор объема валового регионального продукта | B31: % к предыдущему году | C31: 1 | G31: 30
A32: 2.3. Промышленное производство
A33: Индекс промышленного производства | B33: % к предыдущему году | C33: 1 | G33: 02 | L33: =промыш!C7 -> 93 | M33: =промыш!D7 -> 114.8 | N33: =промыш!E7 -> 114.1 | O33: =промыш!F7 -> 109 | P33: =промыш!G7 -> 109 | Q33: =промыш!H7 -> 111 | R33: =промыш!I7 -> 106 | S33: =промыш!J7 -> 108 | T33: =промыш!K7 -> 105 | U33: =промыш!L7 -> 107
A34: Добыча полезных ископаемых | L34: =промыш!C8 -> 0 | M34: =промыш!D8 -> 0 | N34: =промыш!D8 -> 0 | O34: =промыш!E8 -> 0 | P34: =промыш!G8 -> 0 | Q34: =промыш!H8 -> 0 | R34: =промыш!I8 -> 0 | S34: =промыш!J8 -> 0 | T34: =промыш!K8 -> 0 | U34: =промыш!L8 -> 0
A35: Объем отгруженных товаров собственного производства, выполненных работ и услуг собственными силами - РАЗДЕЛ C: Добыча полезных ископаемых | B35: млн. руб. | C35: 1 | G35: 04 | L35: =промыш!C9 -> 187.123 | M35: =промыш!D9 -> 196.918 | N35: =промыш!E9 -> 241 | O35: =промыш!F9 -> 251 | P35: =промыш!G9 -> 262.8828 | Q35: =промыш!H9 -> 261.73805 | R35: =промыш!I9 -> 281.284596 | S35: =промыш!J9 -> 282.9911797 | T35: =промыш!K9 -> 301.1432885 | U35: =промыш!L9 -> 306.0549608
A36: Индекс производства - РАЗДЕЛ C: Добыча полезных ископаемых | B36: % к предыдущему году | C36: 1 | G36: 02 | L36: =промыш!C10 -> 25.4 | M36: =промыш!D10 -> 204.7 | N36: =промыш!E10 -> 111.46263 | O36: =промыш!F10 -> 96.43460888 | P36: =промыш!G10 -> 101 | Q36: =промыш!H10 -> 101.5 | R36: =промыш!I10 -> 100 | S36: =промыш!J10 -> 102 | T36: =промыш!K10 -> 101 | U36: =промыш!L10 -> 103
A37: Индекс-дефлятор - РАЗДЕЛ C: Добыча полезных ископаемых | B37: % к предыдущему году | C37: 1 | G37: 30 | L37: =промыш!C11 -> 153.4 | M37: =промыш!D11 -> 51.4 | N37: =промыш!E11 -> 109.8 | O37: =промыш!F11 -> 108 | P37: =промыш!G11 -> 108 | Q37: =промыш!H11 -> 107 | R37: =промыш!I11 -> 107 | S37: =промыш!J11 -> 106 | T37: =промыш!K11 -> 106 | U37: =промыш!L11 -> 105
A38: Объем отгруженных товаров собственного производства, выполненных работ и услуг собственными силами - Подраздел CA: Добыча топливно-энергетических полезных ископаемых | B38: млн. руб. | C38: 1 | G38: 04 | L38: =промыш!C12 -> 0 | M38: =промыш!D12 -> 0 | N38: =промыш!D12 -> 0 | O38: =промыш!E12 -> 0 | P38: =промыш!G12 -> 0 | Q38: =промыш!H12 -> 0 | R38: =промыш!I12 -> 0 | S38: =промыш!J12 -> 0 | T38: =промыш!K12 -> 0 | U38: =промыш!L12 -> 0
A39: Индекс производства - Подраздел CA: Добыча топливно-энергетических полезных ископаемых | B39: % к предыдущему году | C39: 1 | G39: 02 | L39: =промыш!C13 -> 0 | M39: =промыш!D13 -> 0 | N39: =промыш!D13 -> 0 | O39: =промыш!E13 -> 0 | P39: =промыш!G13 -> 0 | Q39: =промыш!H13 -> 0 | R39: =промыш!I13 -> 0 | S39: =промыш!J13 -> 0 | T39: =промыш!K13 -> 0 | U39: =промыш!L13 -> 0
A40: Индекс-дефлятор - Подраздел CA: Добыча топливно-энергетических полезных ископаемых | B40: % к предыдущему году | C40: 1 | G40: 30 | L40: =промыш!C14 -> 0 | M40: =промыш!D14 -> 0 | N40: =промыш!D14 -> 0 | O40: =промыш!E14 -> 0 | P40: =промыш!G14 -> 0 | Q40: =промыш!H14 -> 0 | R40: =промыш!I14 -> 0 | S40: =промыш!J14 -> 0 | T40: =промыш!K14 -> 0 | U40: =промыш!L14 -> 0
A41: Объем отгруженных товаров собственного производства, выполненных работ и услуг собственными силами - Подраздел CB: Добыча полезных ископаемых, кроме топливно-энергетических | B41: млн. руб. | C41: 1 | G41: 04 | L41: =промыш!C15 -> 0 | M41: =промыш!D15 -> 0 | N41: =промыш!D15 -> 0 | O41: =промыш!E15 -> 0 | P41: =промыш!G15 -> 0 | Q41: =промыш!H15 -> 0 | R41: =промыш!I15 -> 0 | S41: =промыш!J15 -> 0 | T41: =промыш!K15 -> 0 | U41: =промыш!L15 -> 0
A42: Индекс производства - Подраздел CB: Добыча полезных ископаемых, кроме топливно-энергетических | B42: % к предыдущему году | C42: 1 | G42: 02 | L42: =промыш!C16 -> 187.123 | M42: =промыш!D16 -> 196.918 | N42: =промыш!E16 -> 241 | O42: =промыш!F16 -> 251 | P42: =промыш!G16 -> 262.8828 | Q42: =промыш!H16 -> 261.73805 | R42: =промыш!I16 -> 281.284596 | S42: =промыш!J16 -> 282.9911797 | T42: =промыш!K16 -> 301.1432885 | U42: =промыш!L16 -> 306.0549608
A43: Индекс-дефлятор - Подраздел CB: Добыча полезных ископаемых, кроме топливно-энергетических | B43: % к предыдущему году | C43: 1 | G43: 30 | L43: =промыш!C17 -> 25.4 | M43: =промыш!D17 -> 204.7 | N43: =промыш!E17 -> 111.46263 | O43: =промыш!F17 -> 96.43460888 | P43: =промыш!G17 -> 101 | Q43: =промыш!H17 -> 101.5 | R43: =промыш!I17 -> 100 | S43: =промыш!J17 -> 102 | T43: =промыш!K17 -> 101 | U43: =промыш!L17 -> 103
A44: Обрабатывающие производства | L44: =промыш!C18 -> 0 | M44: =промыш!D18 -> 0 | N44: =промыш!D18 -> 0 | O44: =промыш!E18 -> 0 | P44: =промыш!G18 -> 0 | Q44: =промыш!H18 -> 0 | R44: =промыш!I18 -> 0 | S44: =промыш!J18 -> 0 | T44: =промыш!K18 -> 0 | U44: =промыш!L18 -> 0
A45: Объем отгруженных товаров собственного производства, выполненных работ и услуг собственными силами - РАЗДЕЛ D: Обрабатывающие производства | B45: млн. руб. | C45: 1 | G45: 04 | L45: =промыш!C19 -> 9172.66 | M45: =промыш!D19 -> 10661.262 | N45: =промыш!E19 -> 11620.5 | O45: =промыш!F19 -> 12162.7 | P45: =промыш!G19 -> 13234.88538 | Q45: =промыш!H19 -> 13274.57943 | R45: =промыш!I19 -> 14413.76319 | S45: =промыш!J19 -> 14678.5784 | T45: =промыш!K19 -> 16078.81745 | U45: =промыш!L19 -> 16494.6362
A46: Индекс производства - РАЗДЕЛ D: Обрабатывающие производства | B46: % к предыдущему году | C46: 1 | G46: 02 | L46: =промыш!C20 -> 109.3806922 | M46: =промыш!D20 -> 118.4 | N46: =промыш!E20 -> 99.26904839 | O46: =промыш!F20 -> 95.32412766 | P46: =промыш!G20 -> 105.4560776 | Q46: =промыш!H20 -> 102.0016033 | R46: =промыш!I20 -> 101.7825718 | S46: =промыш!J20 -> 104.3175457 | T46: =промыш!K20 -> 105.237581 | U46: =промыш!L20 -> 107.0211087
A47: Индекс-дефлятор - РАЗДЕЛ D: Обрабатывающие производства | B47: % к предыдущему году | C47: 1 | G47: 30 | L47: =промыш!C21 -> 109.8 | M47: =промыш!D21 -> 98.2 | N47: =промыш!E21 -> 109.8 | O47: =промыш!F21 -> 108 | P47: =промыш!G21 -> 108 | Q47: =промыш!H21 -> 107 | R47: =промыш!I21 -> 107 | S47: =промыш!J21 -> 106 | T47: =промыш!K21 -> 106 | U47: =промыш!L21 -> 105
A48: Объем отгруженных товаров собственного производства, выполненных работ и услуг собственными силами - Подраздел DA: Производство пищевых продуктов, включая напитки, и табака | B48: млн. руб. | C48: 1 | G48: 04 | L48: =промыш!C22 -> 620.386 | M48: =промыш!D22 -> 759.105 | N48: =промыш!E22 -> 683.3 | O48: =промыш!F22 -> 670 | P48: =промыш!G22 -> 730.836 | Q48: =промыш!H22 -> 727.6535 | R48: =промыш!I22 -> 793.7244378 | S48: =промыш!J22 -> 794.1610299 | T48: =промыш!K22 -> 874.8477905 | U48: =промыш!L22 -> 883.7423941
A49: Индекс производства - Подраздел DA: Производство пищевых продуктов, включая напитки, и табака | B49: % к предыдущему году | C49: 1 | G49: 02 | L49: =промыш!C23 -> 80.6 | M49: =промыш!D23 -> 124.6029646 | N49: =промыш!E23 -> 81.97987062 | O49: =промыш!F23 -> 89.30197048 | P49: =промыш!G23 -> 101 | Q49: =промыш!H23 -> 101.5 | R49: =промыш!I23 -> 101 | S49: =промыш!J23 -> 102 | T49: =промыш!K23 -> 102 | U49: =промыш!L23 -> 104
A50: Индекс-дефлятор - Подраздел DA: Производство пищевых продуктов, включая напитки, и табака | B50: % к предыдущему году | C50: 1 | G50: 30 | L50: =промыш!C24 -> 0 | M50: =промыш!D24 -> 0 | N50: =промыш!D24 -> 0 | O50: =промыш!E24 -> 0 | P50: =промыш!G24 -> 0 | Q50: =промыш!H24 -> 0 | R50: =промыш!I24 -> 0 | S50: =промыш!J24 -> 0 | T50: =промыш!K24 -> 0 | U50: =промыш!L24 -> 0
A51: Объем отгруженных товаров собственного производства, выполненных работ и услуг собственными силами - Подраздел DB: Текстильное и швейное производство | B51: млн. руб. | C51: 1 | G51: 04 | L51: =промыш!C25 -> 325.327 | M51: =промыш!D25 -> 364.305 | N51: =промыш!E25 -> 288.2 | O51: =промыш!F25 -> 320 | P51: =промыш!G25 -> 349.056 | Q51: =промыш!H25 -> 352.672 | R51: =промыш!I25 -> 386.5990464 | S51: =промыш!J25 -> 388.6798112 | T51: =промыш!K25 -> 428.16968 | U51: =промыш!L25 -> 432.5228939
A52: Индекс производства - Подраздел DB: Текстильное и швейное производство | B52: % к предыдущему году | C52: 1 | G52: 02 | L52: =промыш!C26 -> 98.5 | M52: =промыш!D26 -> 114.033784 | N52: =промыш!E26 -> 72.04875896 | O52: =промыш!F26 -> 101.1238654 | P52: =промыш!G26 -> 101 | Q52: =промыш!H26 -> 103 | R52: =промыш!I26 -> 101.5 | S52: =промыш!J26 -> 103 | T52: =промыш!K26 -> 102 | U52: =промыш!L26 -> 104
A53: Индекс-дефлятор - Подраздел DB: Текстильное и швейное производство | B53: % к предыдущему году | C53: 1 | G53: 30 | L53: =промыш!C27 -> 0 | M53: =промыш!D27 -> 0 | N53: =промыш!D27 -> 0 | O53: =промыш!E27 -> 0 | P53: =промыш!G27 -> 0 | Q53: =промыш!H27 -> 0 | R53: =промыш!I27 -> 0 | S53: =промыш!J27 -> 0 | T53: =промыш!K27 -> 0 | U53: =промыш!L27 -> 0
A54: Объем отгруженных товаров собственного производства, выполненных работ и услуг собственными силами - Подраздел DC: Производство кожи, изделий из кожи и производство обуви | B54: млн. руб. | C54: 1 | G54: 04 | L54: =промыш!C28 -> 0.986 | M54: =промыш!D28 -> 0 | N54: =промыш!D28 -> 0 | O54: =промыш!E28 -> 0 | P54: =промыш!G28 -> 0 | Q54: =промыш!H28 -> 0 | R54: =промыш!I28 -> 0 | S54: =промыш!J28 -> 0 | T54: =промыш!K28 -> 0 | U54: =промыш!L28 -> 0
A55: Индекс производства - Подраздел DC: Производство кожи, изделий из кожи и производство обуви | B55: % к предыдущему году | C55: 1 | G55: 02 | L55: =промыш!C29 -> 0 | M55: =промыш!D29 -> 0 | N55: =промыш!D29 -> 0 | O55: =промыш!E29 -> 0 | P55: =промыш!G29 -> 0 | Q55: =промыш!H29 -> 0 | R55: =промыш!I29 -> 0 | S55: =промыш!J29 -> 0 | T55: =промыш!K29 -> 0 | U55: =промыш!L29 -> 0
A56: Индекс-дефлятор - Подраздел DC: Производство кожи, изделий из кожи и производство обуви | B56: % к предыдущему году | C56: 1 | G56: 30 | L56: =промыш!C30 -> 0 | M56: =промыш!D30 -> 0 | N56: =промыш!D30 -> 0 | O56: =промыш!E30 -> 0 | P56: =промыш!G30 -> 0 | Q56: =промыш!H30 -> 0 | R56: =промыш!I30 -> 0 | S56: =промыш!J30 -> 0 | T56: =промыш!K30 -> 0 | U56: =промыш!L30 -> 0
A57: Объем отгруженных товаров собственного производства, выполненных работ и услуг собственными силами - Подраздел DD: Обработка древесины и производство изделий из дерева | B57: млн. руб. | C57: 1 | G57: 04 | L57: =промыш!C31 -> 7.578 | M57: =промыш!D31 -> 6.288 | N57: =промыш!E31 -> 2.8 | O57: =промыш!F31 -> 5 | P57: =промыш!G31 -> 5.4 | Q57: =промыш!H31 -> 5.4035 | R57: =промыш!I31 -> 5.80689 | S57: =промыш!J31 -> 5.8422642 | T57: =промыш!K31 -> 6.372741789 | U57: =промыш!L31 -> 6.463764266
A58: Индекс производства - Подраздел DD: Обработка древесины и производство изделий из дерева | B58: % к предыдущему году | C58: 1 | G58: 02 | L58: =промыш!C32 -> 29.2 | M58: =промыш!D32 -> 84.49800285 | N58: =промыш!E32 -> 40.5548835 | O58: =промыш!F32 -> 165.3439153 | P58: =промыш!G32 -> 100 | Q58: =промыш!H32 -> 101 | R58: =промыш!I32 -> 100.5 | S58: =промыш!J32 -> 102 | T58: =промыш!K32 -> 101 | U58: =промыш!L32 -> 103.4
A59: Индекс-дефлятор - Подраздел DD: Обработка древесины и производство изделий из дерева | B59: % к предыдущему году | C59: 1 | G59: 30 | L59: =промыш!C33 -> 0 | M59: =промыш!D33 -> 0 | N59: =промыш!D33 -> 0 | O59: =промыш!E33 -> 0 | P59: =промыш!G33 -> 0 | Q59: =промыш!H33 -> 0 | R59: =промыш!I33 -> 0 | S59: =промыш!J33 -> 0 | T59: =промыш!K33 -> 0 | U59: =промыш!L33 -> 0
A60: Объем отгруженных товаров собственного производства, выполненных работ и услуг собственными силами - Подраздел DE: Целлюлозно-бумажное производство; издательская и полиграфическая деятельность | B60: млн. руб. | C60: 1 | G60: 04 | L60: =промыш!C34 -> 10.794 | M60: =промыш!D34 -> 18.171 | N60: =промыш!E34 -> 9.5 | O60: =промыш!F34 -> 11 | P60: =промыш!G34 -> 12.1176 | Q60: =промыш!H34 -> 12.2408 | R60: =промыш!I34 -> 13.41836496 | S60: =промыш!J34 -> 13.49058568 | T60: =промыш!K34 -> 14.71553086 | U60: =промыш!L34 -> 14.86797448
A61: Индекс производства - Подраздел DE: Целлюлозно-бумажное производство; издательская и полиграфическая деятельность | B61: % к предыдущему году | C61: 1 | G61: 02 | L61: =промыш!C35 -> 352.6 | M61: =промыш!D35 -> 171.4292507 | N61: =промыш!E35 -> 47.61485178 | O61: =промыш!F35 -> 105.4548941 | P61: =промыш!G35 -> 102 | Q61: =промыш!H35 -> 104 | R61: =промыш!I35 -> 101.5 | S61: =промыш!J35 -> 103 | T61: =промыш!K35 -> 101 | U61: =промыш!L35 -> 103
A62: Индекс-дефлятор - Подраздел DE: Целлюлозно-бумажное производство; издательская и полиграфическая деятельность | B62: % к предыдущему году | C62: 1 | G62: 30 | L62: =промыш!C36 -> 0 | M62: =промыш!D36 -> 0 | N62: =промыш!D36 -> 0 | O62: =промыш!F36 -> 0 | P62: =промыш!G36 -> 0 | Q62: =промыш!H36 -> 0 | R62: =промыш!I36 -> 0 | S62: =промыш!J36 -> 0 | T62: =промыш!K36 -> 0 | U62: =промыш!L36 -> 0
A63: Объем отгруженных товаров собственного производства, выполненных работ и услуг собственными силами - Подраздел DF: Производство кокса, нефтепродуктов | B63: млн. руб. | C63: 1 | G63: 04 | L63: =промыш!C37 -> 0 | M63: =промыш!D37 -> 0 | N63: =промыш!D37 -> 0 | O63: =промыш!F37 -> 0 | P63: =промыш!G37 -> 0 | Q63: =промыш!H37 -> 0 | R63: =промыш!I37 -> 0 | S63: =промыш!J37 -> 0 | T63: =промыш!K37 -> 0 | U63: =промыш!L37 -> 0
A64: Индекс производства - Подраздел DF: Производство кокса, нефтепродуктов | B64: % к предыдущему году | C64: 1 | G64: 02 | L64: =промыш!C38 -> 0 | M64: =промыш!D38 -> 0 | N64: =промыш!D38 -> 0 | O64: =промыш!F38 -> 0 | P64: =промыш!G38 -> 0 | Q64: =промыш!H38 -> 0 | R64: =промыш!I38 -> 0 | S64: =промыш!J38 -> 0 | T64: =промыш!K38 -> 0 | U64: =промыш!L38 -> 0
A65: Индекс-дефлятор - Подраздел DF: Производство кокса, нефтепродуктов | B65: % к предыдущему году | C65: 1 | G65: 30 | L65: =промыш!C39 -> 0 | M65: =промыш!D39 -> 0 | N65: =промыш!D39 -> 0 | O65: =промыш!F39 -> 0 | P65: =промыш!G39 -> 0 | Q65: =промыш!H39 -> 0 | R65: =промыш!I39 -> 0 | S65: =промыш!J39 -> 0 | T65: =промыш!K39 -> 0 | U65: =промыш!L39 -> 0
A66: Объем отгруженных товаров собственного производства, выполненных работ и услуг собственными силами - Подраздел DG: Химическое производство | B66: млн. руб. | C66: 1 | G66: 04 | L66: =промыш!C40 -> 5857.668 | M66: =промыш!D40 -> 6671.12 | N66: =промыш!E40 -> 7265.7 | O66: =промыш!F40 -> 7587.1 | P66: =промыш!G40 -> 8276.00868 | Q66: =промыш!H40 -> 8280.56094 | R66: =промыш!I40 -> 9068.207897 | S66: =промыш!J40 -> 9214.608214 | T66: =промыш!K40 -> 10250.33018 | U66: =промыш!L40 -> 10451.20864
A67: Индекс производства - Подраздел DG: Химическое производство | B67: % к предыдущему году | C67: 1 | G67: 02 | L67: =промыш!C41 -> 100.3 | M67: =промыш!D41 -> 115.9745008 | N67: =промыш!E41 -> 87.19193651 | O67: =промыш!F41 -> 84.68844836 | P67: =промыш!G41 -> 101 | Q67: =промыш!H41 -> 102 | R67: =промыш!I41 -> 101.4 | S67: =промыш!J41 -> 104 | T67: =промыш!K41 -> 103 | U67: =промыш!L41 -> 106
A68: Индекс-дефлятор - Подраздел DG: Химическое производство | B68: % к предыдущему году | C68: 1 | G68: 30 | L68: =промыш!C42 -> 0 | M68: =промыш!D42 -> 0 | N68: =промыш!D42 -> 0 | O68: =промыш!E42 -> 0 | P68: =промыш!G42 -> 0 | Q68: =промыш!H42 -> 0 | R68: =промыш!I42 -> 0 | S68: =промыш!J42 -> 0 | T68: =промыш!K42 -> 0 | U68: =промыш!L42 -> 0
A69: Объем отгруженных товаров собственного производства, выполненных работ и услуг собственными силами - Подраздел DH: Производство резиновых и пластмассовых изделий | B69: млн. руб. | C69: 1 | G69: 04 | L69: =промыш!C43 -> 303.112 | M69: =промыш!D43 -> 463.634 | N69: =промыш!E43 -> 421.4 | O69: =промыш!F43 -> 440 | P69: =промыш!G43 -> 479.952 | Q69: =промыш!H43 -> 480.216 | R69: =промыш!I43 -> 524.1077424 | S69: =промыш!J43 -> 527.8630315 | T69: =промыш!K43 -> 581.9162059 | U69: =промыш!L43 -> 581.9689923
A70: Индекс производства - Подраздел DH: Производство резиновых и пластмассовых изделий | B70: % к предыдущему году | C70: 1 | G70: 02 | L70: =промыш!C44 -> 93.6 | M70: =промыш!D44 -> 155.761693 | N70: =промыш!E44 -> 82.77837836 | O70: =промыш!F44 -> 96.67949867 | P70: =промыш!G44 -> 101 | Q70: =промыш!H44 -> 102 | R70: =промыш!I44 -> 102 | S70: =промыш!J44 -> 103.7 | T70: =промыш!K44 -> 104 | U70: =промыш!L44 -> 105
A71: Индекс-дефлятор - Подраздел DH: Производство резиновых и пластмассовых изделий | B71: % к предыдущему году | C71: 1 | G71: 30 | L71: =промыш!C45 -> 0 | M71: =промыш!D45 -> 0 | N71: =промыш!D45 -> 0 | O71: =промыш!E45 -> 0 | P71: =промыш!G45 -> 0 | Q71: =промыш!H45 -> 0 | R71: =промыш!I45 -> 0 | S71: =промыш!J45 -> 0 | T71: =промыш!K45 -> 0 | U71: =промыш!L45 -> 0
A72: Объем отгруженных товаров собственного производства, выполненных работ и услуг собственными силами - Подраздел DI: Производство прочих неметаллических минеральных продуктов | B72: млн. руб. | C72: 1 | G72: 04 | L72: =промыш!C46 -> 1907.38 | M72: =промыш!D46 -> 2255.621 | N72: =промыш!E46 -> 2792 | O72: =промыш!F46 -> 2953.9 | P72: =промыш!G46 -> 3190.212 | Q72: =промыш!H46 -> 3223.88646 | R72: =промыш!I46 -> 3413.52684 | S72: =промыш!J46 -> 3519.839237 | T72: =промыш!K46 -> 3690.705219 | U72: =промыш!L46 -> 3880.622759
A73: Индекс производства - Подраздел DI: Производство прочих неметаллических минеральных продуктов | B73: % к предыдущему году | C73: 1 | G73: 02 | L73: =промыш!C47 -> 65.3 | M73: =промыш!D47 -> 120.4252113 | N73: =промыш!E47 -> 104.7319306 | O73: =промыш!F47 -> 89.96176908 | P73: =промыш!G47 -> 100 | Q73: =промыш!H47 -> 102 | R73: =промыш!I47 -> 100 | S73: =промыш!J47 -> 103 | T73: =промыш!K47 -> 102 | U73: =промыш!L47 -> 105
A74: Индекс-дефлятор - Подраздел DI: Производство прочих неметаллических минеральных продуктов | B74: % к предыдущему году | C74: 1 | G74: 30 | L74: =промыш!C48 -> 0 | M74: =промыш!D48 -> 0 | N74: =промыш!D48 -> 0 | O74: =промыш!E48 -> 0 | P74: =промыш!G48 -> 0 | Q74: =промыш!H48 -> 0 | R74: =промыш!I48 -> 0 | S74: =промыш!J48 -> 0 | T74: =промыш!K48 -> 0 | U74: =промыш!L48 -> 0
A75: Объем отгруженных товаров собственного производства, выполненных работ и услуг собственными силами - Подраздел DJ: Металлургическое производство и производство готовых металлических изделий | B75: млн. руб. | C75: 1 | G75: 04 | L75: =промыш!C49 -> 67.921 | M75: =промыш!D49 -> 44.142 | N75: =промыш!E49 -> 18.9 | O75: =промыш!F49 -> 29 | P75: =промыш!G49 -> 31.6332 | Q75: =промыш!H49 -> 31.6506 | R75: =промыш!I49 -> 33.847524 | S75: =промыш!J49 -> 34.55612508 | T75: =промыш!K49 -> 36.41655107 | U75: =промыш!L49 -> 37.73528859
A76: Индекс производства - Подраздел DJ: Металлургическое производство и производство готовых металлических изделий | B76: % к предыдущему году | C76: 1 | G76: 02 | L76: =промыш!C50 -> 99.5 | M76: =промыш!D50 -> 66.18147578 | N76: =промыш!E50 -> 38.99486828 | O76: =промыш!F50 -> 142.0732902 | P76: =промыш!G50 -> 101 | Q76: =промыш!H50 -> 102 | R76: =промыш!I50 -> 100 | S76: =промыш!J50 -> 103 | T76: =промыш!K50 -> 101.5 | U76: =промыш!L50 -> 104
A77: Индекс-дефлятор - Подраздел DJ: Металлургическое производство и производство готовых металлических изделий | B77: % к предыдущему году | C77: 1 | G77: 30 | L77: =промыш!C51 -> 0 | M77: =промыш!D51 -> 0 | N77: =промыш!D51 -> 0 | O77: =промыш!E51 -> 0 | P77: =промыш!G51 -> 0 | Q77: =промыш!H51 -> 0 | R77: =промыш!I51 -> 0 | S77: =промыш!J51 -> 0 | T77: =промыш!K51 -> 0 | U77: =промыш!L51 -> 0
A78: Объем отгруженных товаров собственного производства, выполненных работ и услуг собственными силами - 38.9: Производство машин и оборудования (без производства оружия и боеприпасов) | B78: млн. руб. | C78: 1 | G78: 04 | L78: =промыш!C52 -> 66.896 | M78: =промыш!D52 -> 74.035 | N78: =промыш!E52 -> 77.6 | O78: =промыш!F52 -> 82.1 | P78: =промыш!G52 -> 89.55468 | Q78: =промыш!H52 -> 90.48241 | R78: =промыш!I52 -> 97.26086021 | S78: =промыш!J52 -> 99.26825201 | T78: =промыш!K52 -> 105.1584421 | U78: =промыш!L52 -> 108.4009312
A79: Индекс производства - 38.9: Производство машин и оборудования (без производства оружия и боеприпасов) | B79: % к предыдущему году | C79: 1 | G79: 02 | L79: =промыш!C53 -> 140.5 | M79: =промыш!D53 -> 112.7003962 | N79: =промыш!E53 -> 95.46019132 | O79: =промыш!F53 -> 96.35607384 | P79: =промыш!G53 -> 101 | Q79: =промыш!H53 -> 103 | R79: =промыш!I53 -> 101.5 | S79: =промыш!J53 -> 103.5 | T79: =промыш!K53 -> 102 | U79: =промыш!L53 -> 104
A80: Индекс-дефлятор - 38.9: Производство машин и оборудования (без производства оружия и боеприпасов) | B80: % к предыдущему году | C80: 1 | G80: 30 | L80: =промыш!C54 -> 0 | M80: =промыш!D54 -> 0 | N80: =промыш!D54 -> 0 | O80: =промыш!E54 -> 0 | P80: =промыш!G54 -> 0 | Q80: =промыш!H54 -> 0 | R80: =промыш!I54 -> 0 | S80: =промыш!J54 -> 0 | T80: =промыш!K54 -> 0 | U80: =промыш!L54 -> 0
A81: Объем отгруженных товаров собственного производства, выполненных работ и услуг собственными силами - Подраздел DL: Производство электрооборудования, электронного и оптического оборудования | B81: млн. руб. | C81: 1 | G81: 04 | L81: =промыш!C55 -> 4.271 | M81: =промыш!D55 -> 4.407 | N81: =промыш!E55 -> 60.8 | O81: =промыш!F55 -> 64.3 | P81: =промыш!G55 -> 69.79122 | Q81: =промыш!H55 -> 69.48901 | R81: =промыш!I55 -> 76.91690356 | S81: =промыш!J55 -> 79.9193104 | T81: =промыш!K55 -> 89.68510955 | U81: =промыш!L55 -> 96.50256731
A82: Индекс производства - Подраздел DL: Производство электрооборудования, электронного и оптического оборудования | B82: % к предыдущему году | C82: 1 | G82: 02 | L82: =промыш!C56 -> 24 | M82: =промыш!D56 -> 105.0756273 | N82: =промыш!E56 -> 1256.487547 | O82: =промыш!F56 -> 97.92275828 | P82: =промыш!G56 -> 100.5 | Q82: =промыш!H56 -> 101 | R82: =промыш!I56 -> 103 | S82: =промыш!J56 -> 108.5 | T82: =промыш!K56 -> 110 | U82: =промыш!L56 -> 115
A83: Индекс-дефлятор - Подраздел DL: Производство электрооборудования, электронного и оптического оборудования | B83: % к предыдущему году | C83: 1 | G83: 30 | L83: =промыш!C57 -> 0 | M83: =промыш!D57 -> 0 | N83: =промыш!D57 -> 0 | O83: =промыш!E57 -> 0 | P83: =промыш!G57 -> 0 | Q83: =промыш!H57 -> 0 | R83: =промыш!I57 -> 0 | S83: =промыш!J57 -> 0 | T83: =промыш!K57 -> 0 | U83: =промыш!L57 -> 0
A84: Объем отгруженных товаров собственного производства, выполненных работ и услуг собственными силами - Подраздел DM: Производство транспортных средств и оборудования | B84: млн. руб. | C84: 1 | G84: 04 | L84: =промыш!C58 -> 0.341 | M84: =промыш!D58 -> 0.434 | N84: =промыш!E58 -> 0.3 | O84: =промыш!F58 -> 0.3 | P84: =промыш!G58 -> 0.324 | Q84: =промыш!H58 -> 0.32421 | R84: =промыш!I58 -> 0.34668 | S84: =промыш!J58 -> 0.350535852 | T84: =промыш!K58 -> 0.5 | U84: =промыш!L58 -> 0.6
A85: Индекс производства - Подраздел DM: Производство транспортных средств и оборудования | B85: % к предыдущему году | C85: 1 | G85: 02 | L85: =промыш!C59 -> 91.9 | M85: =промыш!D59 -> 129.6056286 | N85: =промыш!E59 -> 62.95484878 | O85: =промыш!F59 -> 92.59259259 | P85: =промыш!G59 -> 100 | Q85: =промыш!H59 -> 101 | R85: =промыш!I59 -> 100 | S85: =промыш!J59 -> 102 | T85: =промыш!K59 -> 102 | U85: =промыш!L59 -> 103
A86: Индекс-дефлятор - Подраздел DM: Производство транспортных средств и оборудования | B86: % к предыдущему году | C86: 1 | G86: 30 | L86: =промыш!C60 -> 0 | M86: =промыш!D60 -> 0 | N86: =промыш!D60 -> 0 | O86: =промыш!E60 -> 0 | P86: =промыш!G60 -> 0 | Q86: =промыш!H60 -> 0 | R86: =промыш!I60 -> 0 | S86: =промыш!J60 -> 0 | T86: =промыш!K60 -> 0 | U86: =промыш!L60 -> 0
A87: Объем отгруженных товаров собственного производства, выполненных работ и услуг собственными силами - Подраздел DN: Прочие производства | B87: млн. руб. | C87: 1 | G87: 04 | L87: =промыш!C61 -> 0 | M87: =промыш!D61 -> 0 | N87: =промыш!D61 -> 0 | O87: =промыш!E61 -> 0 | P87: =промыш!G61 -> 0 | Q87: =промыш!H61 -> 0 | R87: =промыш!I61 -> 0 | S87: =промыш!J61 -> 0 | T87: =промыш!K61 -> 0 | U87: =промыш!L61 -> 0
A88: Индекс производства - Подраздел DN: Прочие производства | B88: % к предыдущему году | C88: 1 | G88: 02 | L88: =промыш!C62 -> 0 | M88: =промыш!D62 -> 0 | N88: =промыш!D62 -> 0 | O88: =промыш!E62 -> 0 | P88: =промыш!G62 -> 0 | Q88: =промыш!H62 -> 0 | R88: =промыш!I62 -> 0 | S88: =промыш!J62 -> 0 | T88: =промыш!K62 -> 0 | U88: =промыш!L62 -> 0
A89: Индекс-дефлятор - Подраздел DN: Прочие производства | B89: % к предыдущему году | C89: 1 | G89: 30 | L89: =промыш!C63 -> 0 | M89: =промыш!D63 -> 0 | N89: =промыш!D63 -> 0 | O89: =промыш!E63 -> 0 | P89: =промыш!G63 -> 0 | Q89: =промыш!H63 -> 0 | R89: =промыш!I63 -> 0 | S89: =промыш!J63 -> 0 | T89: =промыш!K63 -> 0 | U89: =промыш!L63 -> 0
A90: Производство и распределение электроэнергии, газа и воды | L90: =промыш!C64 -> 0 | M90: =промыш!D64 -> 0 | N90: =промыш!D64 -> 0 | O90: =промыш!E64 -> 0 | P90: =промыш!G64 -> 0 | Q90: =промыш!H64 -> 0 | R90: =промыш!I64 -> 0 | S90: =промыш!J64 -> 0 | T90: =промыш!K64 -> 0 | U90: =промыш!L64 -> 0
A91: Объем отгруженных товаров собственного производства, выполненных работ и услуг собственными силами - РАЗДЕЛ E: Производство и распределение электроэнергии, газа и воды | B91: млн. руб. | C91: 1 | G91: 04 | L91: =промыш!C65 -> 7178.783 | M91: =промыш!D65 -> 7870.781 | N91: =промыш!E65 -> 7128.6 | O91: =промыш!F65 -> 7442 | P91: =промыш!G65 -> 8418.3904 | Q91: =промыш!H65 -> 8425.8324 | R91: =промыш!I65 -> 9437.857477 | S91: =промыш!J65 -> 9453.783953 | T91: =промыш!K65 -> 10589.27609 | U91: =промыш!L65 -> 10665.28637
A92: Индекс производства - РАЗДЕЛ E: Производство и распределение электроэнергии, газа и воды | B92: % к предыдущему году | C92: 1 | G92: 02 | L92: =промыш!C66 -> 108.4 | M92: =промыш!D66 -> 95.00822273 | N92: =промыш!E66 -> 75.00921158 | O92: =промыш!F66 -> 93.48714638 | P92: =промыш!G66 -> 101 | Q92: =промыш!H66 -> 102 | R92: =промыш!I66 -> 101 | S92: =промыш!J66 -> 102 | T92: =промыш!K66 -> 102 | U92: =промыш!L66 -> 103.5
A93: Индекс-дефлятор - РАЗДЕЛ E: Производство и распределение электроэнергии, газа и воды | B93: % к предыдущему году | C93: 1 | G93: 30 | L93: =промыш!C67 -> 113.2 | M93: =промыш!D67 -> 115.4 | N93: =промыш!E67 -> 113.2 | O93: =промыш!F67 -> 106 | P93: =промыш!G67 -> 112 | Q93: =промыш!H67 -> 111 | R93: =промыш!I67 -> 111 | S93: =промыш!J67 -> 110 | T93: =промыш!K67 -> 110 | U93: =промыш!L67 -> 109
A94: Потребление электроэнергии | B94: млн.кВт.ч. | C94: 1 | G94: 04 | L94: =промыш!C68 -> 0 | M94: =промыш!D68 -> 0 | N94: =промыш!D68 -> 0 | O94: =промыш!E68 -> 0 | P94: =промыш!G68 -> 0 | Q94: =промыш!H68 -> 0 | R94: =промыш!I68 -> 0 | S94: =промыш!J68 -> 0 | T94: =промыш!K68 -> 0 | U94: =промыш!L68 -> 0
A95: в том числе по группам потребителей: | L95: =промыш!C69 -> 0 | M95: =промыш!D69 -> 0 | N95: =промыш!D69 -> 0 | O95: =промыш!E69 -> 0 | P95: =промыш!G69 -> 0 | Q95: =промыш!H69 -> 0 | R95: =промыш!I69 -> 0 | S95: =промыш!J69 -> 0 | T95: =промыш!K69 -> 0 | U95: =промыш!L69 -> 0
A96: Базовые потребители | B96: млн. кВт. ч. | C96: 1 | G96: 04 | L96: =промыш!C70 -> 0 | M96: =промыш!D70 -> 0 | N96: =промыш!D70 -> 0 | O96: =промыш!E70 -> 0 | P96: =промыш!G70 -> 0 | Q96: =промыш!H70 -> 0 | R96: =промыш!I70 -> 0 | S96: =промыш!J70 -> 0 | T96: =промыш!K70 -> 0 | U96: =промыш!L70 -> 0
A97: Население | B97: млн. кВт. ч. | C97: 1 | G97: 04 | L97: =промыш!C71 -> 0 | M97: =промыш!D71 -> 0 | N97: =промыш!D71 -> 0 | O97: =промыш!E71 -> 0 | P97: =промыш!G71 -> 0 | Q97: =промыш!H71 -> 0 | R97: =промыш!I71 -> 0 | S97: =промыш!J71 -> 0 | T97: =промыш!K71 -> 0 | U97: =промыш!L71 -> 0
A98: Прочие потребители | B98: млн. кВт. ч. | C98: 1 | G98: 04 | L98: =промыш!C72 -> 0 | M98: =промыш!D72 -> 0 | N98: =промыш!D72 -> 0 | O98: =промыш!E72 -> 0 | P98: =промыш!G72 -> 0 | Q98: =промыш!H72 -> 0 | R98: =промыш!I72 -> 0 | S98: =промыш!J72 -> 0 | T98: =промыш!K72 -> 0 | U98: =промыш!L72 -> 0
A99: Средние тарифы на электроэнергию, отпущенную различным категориям потребителей | B99: руб./тыс.кВт.ч | C99: 1 | G99: 04 | L99: =промыш!C73 -> 0 | M99: =промыш!D73 -> 0 | N99: =промыш!D73 -> 0 | O99: =промыш!E73 -> 0 | P99: =промыш!G73 -> 0 | Q99: =промыш!H73 -> 0 | R99: =промыш!I73 -> 0 | S99: =промыш!J73 -> 0 | T99: =промыш!K73 -> 0 | U99: =промыш!L73 -> 0
A100: Индекс тарифов | B100: за период с начала года к соотв. периоду предыдущего года,% | C100: 1 | G100: 02 | L100: =промыш!C74 -> 0 | M100: =промыш!D74 -> 0 | N100: =промыш!D74 -> 0 | O100: =промыш!E74 -> 0 | P100: =промыш!G74 -> 0 | Q100: =промыш!H74 -> 0 | R100: =промыш!I74 -> 0 | S100: =промыш!J74 -> 0 | T100: =промыш!K74 -> 0 | U100: =промыш!L74 -> 0
B101: % декабрь к декабрю предыдущего года | C101: 1 | G101: 02 | L101: =промыш!C75 -> 0 | M101: =промыш!D75 -> 0 | N101: =промыш!D75 -> 0 | O101: =промыш!E75 -> 0 | P101: =промыш!G75 -> 0 | Q101: =промыш!H75 -> 0 | R101: =промыш!I75 -> 0 | S101: =промыш!J75 -> 0 | T101: =промыш!K75 -> 0 | U101: =промыш!L75 -> 0
A102: в том числе по группам потребителей: | L102: =промыш!C76 -> 0 | M102: =промыш!D76 -> 0 | N102: =промыш!D76 -> 0 | O102: =промыш!E76 -> 0 | P102: =промыш!G76 -> 0 | Q102: =промыш!H76 -> 0 | R102: =промыш!I76 -> 0 | S102: =промыш!J76 -> 0 | T102: =промыш!K76 -> 0 | U102: =промыш!L76 -> 0
A103: Базовые потребители | B103: руб./тыс.кВт.ч | C103: 1 | G103: 04 | L103: =промыш!C77 -> 0 | M103: =промыш!D77 -> 0 | N103: =промыш!D77 -> 0 | O103: =промыш!E77 -> 0 | P103: =промыш!G77 -> 0 | Q103: =промыш!H77 -> 0 | R103: =промыш!I77 -> 0 | S103: =промыш!J77 -> 0 | T103: =промыш!K77 -> 0 | U103: =промыш!L77 -> 0
A104: Индекс тарифов | B104: за период с начала года к соотв. периоду предыдущего года,% | C104: 1 | G104: 02 | L104: =промыш!C78 -> 0 | M104: =промыш!D78 -> 0 | N104: =промыш!D78 -> 0 | O104: =промыш!E78 -> 0 | P104: =промыш!G78 -> 0 | Q104: =промыш!H78 -> 0 | R104: =промыш!I78 -> 0 | S104: =промыш!J78 -> 0 | T104: =промыш!K78 -> 0 | U104: =промыш!L78 -> 0
B105: % декабрь к декабрю предыдущего года | C105: 1 | G105: 02 | L105: =промыш!C79 -> 0 | M105: =промыш!D79 -> 0 | N105: =промыш!D79 -> 0 | O105: =промыш!E79 -> 0 | P105: =промыш!G79 -> 0 | Q105: =промыш!H79 -> 0 | R105: =промыш!I79 -> 0 | S105: =промыш!J79 -> 0 | T105: =промыш!K79 -> 0 | U105: =промыш!L79 -> 0
A106: Население | B106: руб./тыс.кВт.ч | C106: 1 | G106: 04 | L106: =промыш!C80 -> 0 | M106: =промыш!D80 -> 0 | N106: =промыш!D80 -> 0 | O106: =промыш!E80 -> 0 | P106: =промыш!G80 -> 0 | Q106: =промыш!H80 -> 0 | R106: =промыш!I80 -> 0 | S106: =промыш!J80 -> 0 | T106: =промыш!K80 -> 0 | U106: =промыш!L80 -> 0
A107: Индекс тарифов | B107: за период с начала года к соотв. периоду предыдущего года,% | C107: 1 | G107: 02 | L107: =промыш!C81 -> 0 | M107: =промыш!D81 -> 0 | N107: =промыш!D81 -> 0 | O107: =промыш!E81 -> 0 | P107: =промыш!G81 -> 0 | Q107: =промыш!H81 -> 0 | R107: =промыш!I81 -> 0 | S107: =промыш!J81 -> 0 | T107: =промыш!K81 -> 0 | U107: =промыш!L81 -> 0
B108: % декабрь к декабрю предыдущего года | C108: 1 | G108: 02 | L108: =промыш!C82 -> 0 | M108: =промыш!D82 -> 0 | N108: =промыш!D82 -> 0 | O108: =промыш!E82 -> 0 | P108: =промыш!G82 -> 0 | Q108: =промыш!H82 -> 0 | R108: =промыш!I82 -> 0 | S108: =промыш!J82 -> 0 | T108: =промыш!K82 -> 0 | U108: =промыш!L82 -> 0
A109: Прочие потребители | B109: руб./тыс.кВт.ч | C109: 1 | G109: 04 | L109: =промыш!C83 -> 0 | M109: =промыш!D83 -> 0 | N109: =промыш!D83 -> 0 | O109: =промыш!E83 -> 0 | P109: =промыш!G83 -> 0 | Q109: =промыш!H83 -> 0 | R109: =промыш!I83 -> 0 | S109: =промыш!J83 -> 0 | T109: =промыш!K83 -> 0 | U109: =промыш!L83 -> 0
A110: Индекс тарифов | B110: за период с начала года к соотв. периоду предыдущего года,% | C110: 1 | G110: 02 | L110: =промыш!C84 -> 0 | M110: =промыш!D84 -> 0 | N110: =промыш!D84 -> 0 | O110: =промыш!E84 -> 0 | P110: =промыш!G84 -> 0 | Q110: =промыш!H84 -> 0 | R110: =промыш!I84 -> 0 | S110: =промыш!J84 -> 0 | T110: =промыш!K84 -> 0 | U110: =промыш!L84 -> 0
B111: % декабрь к декабрю предыдущего года | C111: 1 | G111: 02 | L111: =промыш!C85 -> 0 | M111: =промыш!D85 -> 0 | N111: =промыш!D85 -> 0 | O111: =промыш!E85 -> 0 | P111: =промыш!G85 -> 0 | Q111: =промыш!H85 -> 0 | R111: =промыш!I85 -> 0 | S111: =промыш!J85 -> 0 | T111: =промыш!K85 -> 0 | U111: =промыш!L85 -> 0
A112: 2.4. Рыболовство и рыбоводство и предоставление услуг в этих областях
A113: Объем отгруженных товаров собственного производства, выполненных работ и услуг собственными силами - РАЗДЕЛ B: Рыболовство (05.01) | B113: млн. руб. | C113: 1 | G113: 04
A114: Индекс производства - РАЗДЕЛ B: Рыболовство (05.01) | B114: % к предыдущему году | C114: 1 | G114: 02
A115: Объем отгруженных товаров собственного производства, выполненных работ и услуг собственными силами - РАЗДЕЛ B: Рыбоводство (05.02) | B115: млн. руб. | C115: 1 | G115: 04
A116: Индекс производства - РАЗДЕЛ B: Рыбоводство (05.02) | B116: % к предыдущему году | C116: 1 | G116: 02
A117: 2.4. Сельское хозяйство
A118: Продукция сельского хозяйства в хозяйствах всех категорий | B118: млн.руб. | C118: 1 | G118: 04
A119: Индекс производства продукции сельского хозяйства в хозяйствах всех категорий | B119: % к предыдущему году | C119: 1 | G119: 02
A120: Индекс-дефлятор продукции сельского хозяйства в хозяйствах всех категорий | B120: % к предыдущему году | C120: 1 | G120: 30
A121: в том числе:
A122: Растениеводство | B122: млн.руб. | C122: 1 | G122: 04
A123: Индекс производства продукции растениеводства | B123: % к предыдущему году | C123: 1 | G123: 02
A124: Индекс-дефлятор продукции растениеводства | B124: % к предыдущему году | C124: 1 | G124: 30
A125: Животноводство | B125: млн.руб. | C125: 1 | G125: 04
A126: Индекс производства продукции животноводства | B126: % к предыдущему году | C126: 1 | G126: 02
A127: Индекс-дефлятор продукции животноводства | B127: % к предыдущему году | C127: 1 | G127: 30
A128: Продукция сельского хозяйства по категориям хозяйств:
A129: Продукция в сельскохозяйственных организациях | B129: млн. руб. | C129: 1 | G129: 04
A130: Индекс производства продукции в сельскохозяйственных организациях | B130: % к предыдущему году | C130: 1 | G130: 02
A131: Продукция в крестьянских (фермерских) хозяйствах и у индивидуальных предпринимателей | B131: млн. руб. | C131: 1 | G131: 04
A132: Индекс производства продукции в крестьянских (фермерских) хозяйствах и у индивидуальных предпринимателей | B132: % к предыдущему году | C132: 1 | G132: 02
A133: Продукция в хозяйствах населения | B133: млн. руб. | C133: 1 | G133: 04
A134: Индекс производства продукции в хозяйствах населения | B134: % к предыдущему году | C134: 1 | G134: 02
A135: 2.5. Транспорт и связь
A136: 2.5.1. Транспорт
A137: Протяженность автомобильных дорог общего пользования с твердым покрытием | B137: км | C137: 1 | G137: 04 | L137: =трансп!C6 -> 84.34 | M137: =трансп!C6 -> 84.34 | N137: =трансп!D6 -> 84.34 | O137: =трансп!E6 -> 84.34 | P137: =трансп!F6 -> 84.34 | Q137: =трансп!G6 -> 84.34 | R137: =трансп!H6 -> 84.34 | S137: =трансп!I6 -> 84.34 | T137: =трансп!J6 -> 84.34 | U137: =трансп!K6 -> 94.34
A138: Протяженность автомобильных дорог федерального значения | B138: км | C138: 1 | G138: 04 | L138: =трансп!C7 -> 0 | M138: =трансп!C7 -> 0 | N138: =трансп!E7 -> 0 | O138: =трансп!E7 -> 0 | P138: =трансп!F7 -> 0 | Q138: =трансп!G7 -> 0 | R138: =трансп!H7 -> 0 | S138: =трансп!I7 -> 0 | T138: =трансп!J7 -> 0 | U138: =трансп!K7 -> 0
A139: Густота автомобильных дорог общего пользования с твердым покрытием | B139: километров дорог на 1 000 квадратных километров территории | C139: 1 | G139: 04 | L139: =трансп!C8 -> 0 | M139: =трансп!C8 -> 0 | N139: =трансп!E8 -> 0 | O139: =трансп!E8 -> 0 | P139: =трансп!F8 -> 0 | Q139: =трансп!G8 -> 0 | R139: =трансп!H8 -> 0 | S139: =трансп!I8 -> 0 | T139: =трансп!J8 -> 0 | U139: =трансп!K8 -> 0
A140: Удельный вес автомобильных дорог с твердым покрытием в общей протяженности автомобильных дорог общего пользования | B140: % | C140: 1 | G140: 04 | L140: =трансп!C9 -> 100 | M140: =трансп!C9 -> 100 | N140: =трансп!D9 -> 100 | O140: =трансп!E9 -> 100 | P140: =трансп!F9 -> 100 | Q140: =трансп!G9 -> 100 | R140: =трансп!H9 -> 100 | S140: =трансп!I9 -> 100 | T140: =трансп!J9 -> 100 | U140: =трансп!K9 -> 100
A141: 2.5.2. Связь | L141: =трансп!C10 -> 0 | M141: =трансп!C10 -> 0 | N141: =трансп!E10 -> 0 | O141: =трансп!E10 -> 0 | P141: =трансп!F10 -> 0 | Q141: =трансп!G10 -> 0 | R141: =трансп!H10 -> 0 | S141: =трансп!I10 -> 0 | T141: =трансп!J10 -> 0 | U141: =трансп!K10 -> 0
A142: Объем услуг связи - всего | L142: =трансп!C11 -> 0 | M142: =трансп!C11 -> 0 | N142: =трансп!E11 -> 0 | O142: =трансп!E11 -> 0 | P142: =трансп!F11 -> 0 | Q142: =трансп!G11 -> 0 | R142: =трансп!H11 -> 0 | S142: =трансп!I11 -> 0 | T142: =трансп!J11 -> 0 | U142: =трансп!K11 -> 0
A143: в ценах соответствующих лет | B143: млн. руб. | C143: 1 | G143: 04 | L143: =трансп!C12 -> 3.9 | M143: =трансп!C12 -> 3.9 | N143: =трансп!D12 -> 13.6965 | O143: =трансп!E12 -> 15 | P143: =трансп!F12 -> 15.0588 | Q143: =трансп!G12 -> 15.14775 | R143: =трансп!H12 -> 15.12129402 | S143: =трансп!I12 -> 15.21076464 | T143: =трансп!J12 -> 15.41570561 | U143: =трансп!K12 -> 15.70617924
A144: в сопоставимых ценах | B144: в % к пред.году | C144: 1 | G144: 02 | L144: =трансп!C13 -> 104 | M144: =трансп!C13 -> 104 | N144: =трансп!D13 -> 322.7870475 | O144: =трансп!E13 -> 104.7007934 | P144: =трансп!F13 -> 94 | Q144: =трансп!G13 -> 95 | R144: =трансп!H13 -> 95 | S144: =трансп!I13 -> 96 | T144: =трансп!J13 -> 97 | U144: =трансп!K13 -> 99
L145: =трансп!C14 -> 0 | M145: =трансп!D14 -> 0 | N145: =трансп!E14 -> 0 | O145: =трансп!E14 -> 0 | P145: =трансп!F14 -> 0 | Q145: =трансп!G14 -> 0 | R145: =трансп!H14 -> 0 | S145: =трансп!I14 -> 0 | T145: =трансп!J14 -> 0 | U145: =трансп!K14 -> 0
A146: в том числе: | L146: =трансп!C15 -> 0 | M146: =трансп!C15 -> 0 | N146: =трансп!E15 -> 0 | O146: =трансп!E15 -> 0 | P146: =трансп!F15 -> 0 | Q146: =трансп!G15 -> 0 | R146: =трансп!H15 -> 0 | S146: =трансп!I15 -> 0 | T146: =трансп!J15 -> 0 | U146: =трансп!K15 -> 0
A147: почтовая связь | L147: =трансп!C16 -> 0 | M147: =трансп!C16 -> 0 | N147: =трансп!E16 -> 0 | O147: =трансп!E16 -> 0 | P147: =трансп!F16 -> 0 | Q147: =трансп!G16 -> 0 | R147: =трансп!H16 -> 0 | S147: =трансп!I16 -> 0 | T147: =трансп!J16 -> 0 | U147: =трансп!K16 -> 0
A148: в ценах соответствующих лет | B148: млн. руб. | C148: 1 | G148: 04 | L148: =трансп!C17 -> 0 | M148: =трансп!C17 -> 0 | N148: =трансп!E17 -> 0 | O148: =трансп!E17 -> 0 | P148: =трансп!F17 -> 0 | Q148: =трансп!G17 -> 0 | R148: =трансп!H17 -> 0 | S148: =трансп!I17 -> 0 | T148: =трансп!J17 -> 0 | U148: =трансп!K17 -> 0
A149: в сопоставимых ценах | B149: в % к пред.году | C149: 1 | G149: 02 | L149: =трансп!C18 -> 0 | M149: =трансп!C18 -> 0 | N149: =трансп!E18 -> 0 | O149: =трансп!E18 -> 0 | P149: =трансп!F18 -> 0 | Q149: =трансп!G18 -> 0 | R149: =трансп!H18 -> 0 | S149: =трансп!I18 -> 0 | T149: =трансп!J18 -> 0 | U149: =трансп!K18 -> 0
L150: =трансп!C19 -> 0 | M150: =трансп!D19 -> 0 | N150: =трансп!E19 -> 0 | O150: =трансп!E19 -> 0 | P150: =трансп!F19 -> 0 | Q150: =трансп!G19 -> 0 | R150: =трансп!H19 -> 0 | S150: =трансп!I19 -> 0 | T150: =трансп!J19 -> 0 | U150: =трансп!K19 -> 0
A151: междугородная, внутризоновая и международная телнфонная связь | L151: =трансп!C20 -> 0 | M151: =трансп!C20 -> 0 | N151: =трансп!E20 -> 0 | O151: =трансп!E20 -> 0 | P151: =трансп!F20 -> 0 | Q151: =трансп!G20 -> 0 | R151: =трансп!H20 -> 0 | S151: =трансп!I20 -> 0 | T151: =трансп!J20 -> 0 | U151: =трансп!K20 -> 0
A152: в ценах соответствующих лет | B152: млн. руб. | C152: 1 | G152: 04 | L152: =трансп!C21 -> 0 | M152: =трансп!C21 -> 0 | N152: =трансп!E21 -> 0 | O152: =трансп!E21 -> 0 | P152: =трансп!F21 -> 0 | Q152: =трансп!G21 -> 0 | R152: =трансп!H21 -> 0 | S152: =трансп!I21 -> 0 | T152: =трансп!J21 -> 0 | U152: =трансп!K21 -> 0
A153: в сопоставимых ценах | B153: в % к пред.году | C153: 1 | G153: 02 | L153: =трансп!C22 -> 0 | M153: =трансп!C22 -> 0 | N153: =трансп!E22 -> 0 | O153: =трансп!E22 -> 0 | P153: =трансп!F22 -> 0 | Q153: =трансп!G22 -> 0 | R153: =трансп!H22 -> 0 | S153: =трансп!I22 -> 0 | T153: =трансп!J22 -> 0 | U153: =трансп!K22 -> 0
L154: =трансп!C23 -> 0 | M154: =трансп!D23 -> 0 | N154: =трансп!E23 -> 0 | O154: =трансп!E23 -> 0 | P154: =трансп!F23 -> 0 | Q154: =трансп!G23 -> 0 | R154: =трансп!H23 -> 0 | S154: =трансп!I23 -> 0 | T154: =трансп!J23 -> 0 | U154: =трансп!K23 -> 0
A155: местная телефонная связь | L155: =трансп!C24 -> 0 | M155: =трансп!C24 -> 0 | N155: =трансп!E24 -> 0 | O155: =трансп!E24 -> 0 | P155: =трансп!F24 -> 0 | Q155: =трансп!G24 -> 0 | R155: =трансп!H24 -> 0 | S155: =трансп!I24 -> 0 | T155: =трансп!J24 -> 0 | U155: =трансп!K24 -> 0
A156: в ценах соответствующих лет | B156: млн. руб. | C156: 1 | G156: 04 | L156: =трансп!C25 -> 0 | M156: =трансп!C25 -> 0 | N156: =трансп!E25 -> 0 | O156: =трансп!E25 -> 0 | P156: =трансп!F25 -> 0 | Q156: =трансп!G25 -> 0 | R156: =трансп!H25 -> 0 | S156: =трансп!I25 -> 0 | T156: =трансп!J25 -> 0 | U156: =трансп!K25 -> 0
A157: в сопоставимых ценах | B157: в % к пред.году | C157: 1 | G157: 02 | L157: =трансп!C26 -> 0 | M157: =трансп!C26 -> 0 | N157: =трансп!E26 -> 0 | O157: =трансп!E26 -> 0 | P157: =трансп!F26 -> 0 | Q157: =трансп!G26 -> 0 | R157: =трансп!H26 -> 0 | S157: =трансп!I26 -> 0 | T157: =трансп!J26 -> 0 | U157: =трансп!K26 -> 0
L158: =трансп!C27 -> 0 | M158: =трансп!C27 -> 0 | N158: =трансп!E27 -> 0 | O158: =трансп!E27 -> 0 | P158: =трансп!F27 -> 0 | Q158: =трансп!G27 -> 0 | R158: =трансп!H27 -> 0 | S158: =трансп!I27 -> 0 | T158: =трансп!J27 -> 0 | U158: =трансп!K27 -> 0
A159: документальная электросвязь | L159: =трансп!C28 -> 0 | M159: =трансп!C28 -> 0 | N159: =трансп!E28 -> 0 | O159: =трансп!E28 -> 0 | P159: =трансп!F28 -> 0 | Q159: =трансп!G28 -> 0 | R159: =трансп!H28 -> 0 | S159: =трансп!I28 -> 0 | T159: =трансп!J28 -> 0 | U159: =трансп!K28 -> 0
A160: в ценах соответствующих лет | B160: млн. руб. | C160: 1 | G160: 04 | L160: =трансп!C29 -> 0 | M160: =трансп!C29 -> 0 | N160: =трансп!E29 -> 0 | O160: =трансп!E29 -> 0 | P160: =трансп!F29 -> 0 | Q160: =трансп!G29 -> 0 | R160: =трансп!H29 -> 0 | S160: =трансп!I29 -> 0 | T160: =трансп!J29 -> 0 | U160: =трансп!K29 -> 0
A161: в сопоставимых ценах | B161: в % к пред.году | C161: 1 | G161: 02 | L161: =трансп!C30 -> 0 | M161: =трансп!C30 -> 0 | N161: =трансп!E30 -> 0 | O161: =трансп!E30 -> 0 | P161: =трансп!F30 -> 0 | Q161: =трансп!G30 -> 0 | R161: =трансп!H30 -> 0 | S161: =трансп!I30 -> 0 | T161: =трансп!J30 -> 0 | U161: =трансп!K30 -> 0
L162: =трансп!C31 -> 0 | M162: =трансп!D31 -> 0 | N162: =трансп!E31 -> 0 | O162: =трансп!E31 -> 0 | P162: =трансп!F31 -> 0 | Q162: =трансп!G31 -> 0 | R162: =трансп!H31 -> 0 | S162: =трансп!I31 -> 0 | T162: =трансп!J31 -> 0 | U162: =трансп!K31 -> 0
A163: подвижная связь | L163: =трансп!C32 -> 0 | M163: =трансп!C32 -> 0 | N163: =трансп!E32 -> 0 | O163: =трансп!E32 -> 0 | P163: =трансп!F32 -> 0 | Q163: =трансп!G32 -> 0 | R163: =трансп!H32 -> 0 | S163: =трансп!I32 -> 0 | T163: =трансп!J32 -> 0 | U163: =трансп!K32 -> 0
A164: в ценах соответствующих лет | B164: млн. руб. | C164: 1 | G164: 04 | L164: =трансп!C33 -> 0 | M164: =трансп!C33 -> 0 | N164: =трансп!E33 -> 0 | O164: =трансп!E33 -> 0 | P164: =трансп!F33 -> 0 | Q164: =трансп!G33 -> 0 | R164: =трансп!H33 -> 0 | S164: =трансп!I33 -> 0 | T164: =трансп!J33 -> 0 | U164: =трансп!K33 -> 0
A165: в сопоставимых ценах | B165: в % к пред.году | C165: 1 | G165: 02 | L165: =трансп!C34 -> 0 | M165: =трансп!C34 -> 0 | N165: =трансп!E34 -> 0 | O165: =трансп!E34 -> 0 | P165: =трансп!F34 -> 0 | Q165: =трансп!G34 -> 0 | R165: =трансп!H34 -> 0 | S165: =трансп!I34 -> 0 | T165: =трансп!J34 -> 0 | U165: =трансп!K34 -> 0
L166: =трансп!C35 -> 0 | M166: =трансп!D35 -> 0 | N166: =трансп!E35 -> 0 | O166: =трансп!E35 -> 0 | P166: =трансп!F35 -> 0 | Q166: =трансп!G35 -> 0 | R166: =трансп!H35 -> 0 | S166: =трансп!I35 -> 0 | T166: =трансп!J35 -> 0 | U166: =трансп!K35 -> 0
A167: Плотность телефонных аппаратов фиксированной электросвязи на 100 человек населения | B167: единиц | C167: 1 | G167: 04 | L167: =трансп!C36 -> 0 | M167: =трансп!C36 -> 0 | N167: =трансп!E36 -> 0 | O167: =трансп!E36 -> 0 | P167: =трансп!F36 -> 0 | Q167: =трансп!G36 -> 0 | R167: =трансп!H36 -> 0 | S167: =трансп!I36 -> 0 | T167: =трансп!J36 -> 0 | U167: =трансп!K36 -> 0
L168: =трансп!C37 -> 0 | M168: =трансп!D37 -> 0 | N168: =трансп!E37 -> 0 | O168: =трансп!E37 -> 0 | P168: =трансп!F37 -> 0 | Q168: =трансп!G37 -> 0 | R168: =трансп!H37 -> 0 | S168: =трансп!I37 -> 0 | T168: =трансп!J37 -> 0 | U168: =трансп!K37 -> 0
A169: Количество абонентов, подключенных к сетям подвижной связи | B169: млн.ед. | C169: 1 | G169: 04 | L169: =трансп!C38 -> 0 | M169: =трансп!C38 -> 0 | N169: =трансп!E38 -> 0 | O169: =трансп!E38 -> 0 | P169: =трансп!F38 -> 0 | Q169: =трансп!G38 -> 0 | R169: =трансп!H38 -> 0 | S169: =трансп!I38 -> 0 | T169: =трансп!J38 -> 0 | U169: =трансп!K38 -> 0
L170: =трансп!C39 -> 0 | M170: =трансп!D39 -> 0 | N170: =трансп!E39 -> 0 | O170: =трансп!E39 -> 0 | P170: =трансп!F39 -> 0 | Q170: =трансп!G39 -> 0 | R170: =трансп!H39 -> 0 | S170: =трансп!I39 -> 0 | T170: =трансп!J39 -> 0 | U170: =трансп!K39 -> 0
A171: Количество почтовых ящиков на 10000 человек | B171: единиц | C171: 1 | G171: 04 | L171: =трансп!C40 -> 0 | M171: =трансп!C40 -> 0 | N171: =трансп!E40 -> 0 | O171: =трансп!E40 -> 0 | P171: =трансп!F40 -> 0 | Q171: =трансп!G40 -> 0 | R171: =трансп!H40 -> 0 | S171: =трансп!I40 -> 0 | T171: =трансп!J40 -> 0 | U171: =трансп!K40 -> 0
L172: =трансп!C41 -> 0 | M172: =трансп!D41 -> 0 | N172: =трансп!E41 -> 0 | O172: =трансп!E41 -> 0 | P172: =трансп!F41 -> 0 | Q172: =трансп!G41 -> 0 | R172: =трансп!H41 -> 0 | S172: =трансп!I41 -> 0 | T172: =трансп!J41 -> 0 | U172: =трансп!K41 -> 0
A173: Деятельность, связаная с использованием вычислительной техники и информационных технологий | L173: =трансп!C42 -> 0 | M173: =трансп!C42 -> 0 | N173: =трансп!E42 -> 0 | O173: =трансп!E42 -> 0 | P173: =трансп!F42 -> 0 | Q173: =трансп!G42 -> 0 | R173: =трансп!H42 -> 0 | S173: =трансп!I42 -> 0 | T173: =трансп!J42 -> 0 | U173: =трансп!K42 -> 0
L174: =трансп!C43 -> 0 | M174: =трансп!D43 -> 0 | N174: =трансп!E43 -> 0 | O174: =трансп!E43 -> 0 | P174: =трансп!F43 -> 0 | Q174: =трансп!G43 -> 0 | R174: =трансп!H43 -> 0 | S174: =трансп!I43 -> 0 | T174: =трансп!J43 -> 0 | U174: =трансп!K43 -> 0
A175: Наличие персональных компьютеров | B175: штук | C175: 1 | G175: 04 | L175: =трансп!C44 -> 0 | M175: =трансп!C44 -> 0 | N175: =трансп!E44 -> 0 | O175: =трансп!E44 -> 0 | P175: =трансп!F44 -> 0 | Q175: =трансп!G44 -> 0 | R175: =трансп!H44 -> 0 | S175: =трансп!I44 -> 0 | T175: =трансп!J44 -> 0 | U175: =трансп!K44 -> 0
B176: в % к пред.году | C176: 1 | G176: 02 | L176: =трансп!C45 -> 0 | M176: =трансп!C45 -> 0 | N176: =трансп!E45 -> 0 | O176: =трансп!E45 -> 0 | P176: =трансп!F45 -> 0 | Q176: =трансп!G45 -> 0 | R176: =трансп!H45 -> 0 | S176: =трансп!I45 -> 0 | T176: =трансп!J45 -> 0 | U176: =трансп!K45 -> 0
L177: =трансп!C46 -> 0 | M177: =трансп!D46 -> 0 | N177: =трансп!E46 -> 0 | O177: =трансп!E46 -> 0 | P177: =трансп!F46 -> 0 | Q177: =трансп!G46 -> 0 | R177: =трансп!H46 -> 0 | S177: =трансп!I46 -> 0 | T177: =трансп!J46 -> 0 | U177: =трансп!K46 -> 0
A178: в том числе подключенных к сети Интернет | B178: штук | C178: 1 | G178: 04 | L178: =трансп!C47 -> 0 | M178: =трансп!C47 -> 0 | N178: =трансп!E47 -> 0 | O178: =трансп!E47 -> 0 | P178: =трансп!F47 -> 0 | Q178: =трансп!G47 -> 0 | R178: =трансп!H47 -> 0 | S178: =трансп!I47 -> 0 | T178: =трансп!J47 -> 0 | U178: =трансп!K47 -> 0
B179: в % к пред.году | C179: 1 | G179: 02 | L179: =трансп!C48 -> 0 | M179: =трансп!C48 -> 0 | N179: =трансп!E48 -> 0 | O179: =трансп!E48 -> 0 | P179: =трансп!F48 -> 0 | Q179: =трансп!G48 -> 0 | R179: =трансп!H48 -> 0 | S179: =трансп!I48 -> 0 | T179: =трансп!J48 -> 0 | U179: =трансп!K48 -> 0
L180: =трансп!C49 -> 0 | M180: =трансп!D49 -> 0 | N180: =трансп!E49 -> 0 | O180: =трансп!E49 -> 0 | P180: =трансп!F49 -> 0 | Q180: =трансп!G49 -> 0 | R180: =трансп!H49 -> 0 | S180: =трансп!I49 -> 0 | T180: =трансп!J49 -> 0 | U180: =трансп!K49 -> 0
A181: Количество компьютеров на 100 человек населения | B181: единиц | C181: 1 | G181: 04 | L181: =трансп!C50 -> 0 | M181: =трансп!C50 -> 0 | N181: =трансп!E50 -> 0 | O181: =трансп!E50 -> 0 | P181: =трансп!F50 -> 0 | Q181: =трансп!G50 -> 0 | R181: =трансп!H50 -> 0 | S181: =трансп!I50 -> 0 | T181: =трансп!J50 -> 0 | U181: =трансп!K50 -> 0
B182: в % к пред.году | C182: 1 | G182: 02 | L182: =трансп!C51 -> 0 | M182: =трансп!C51 -> 0 | N182: =трансп!E51 -> 0 | O182: =трансп!E51 -> 0 | P182: =трансп!F51 -> 0 | Q182: =трансп!G51 -> 0 | R182: =трансп!H51 -> 0 | S182: =трансп!I51 -> 0 | T182: =трансп!J51 -> 0 | U182: =трансп!K51 -> 0
L183: =трансп!C52 -> 0 | M183: =трансп!D52 -> 0 | N183: =трансп!E52 -> 0 | O183: =трансп!E52 -> 0 | P183: =трансп!F52 -> 0 | Q183: =трансп!G52 -> 0 | R183: =трансп!H52 -> 0 | S183: =трансп!I52 -> 0 | T183: =трансп!J52 -> 0 | U183: =трансп!K52 -> 0
A184: Количество пользователей Интернет на 100 человек населения | B184: единиц | C184: 1 | G184: 04 | L184: =трансп!C53 -> 0 | M184: =трансп!C53 -> 0 | N184: =трансп!E53 -> 0 | O184: =трансп!E53 -> 0 | P184: =трансп!F53 -> 0 | Q184: =трансп!G53 -> 0 | R184: =трансп!H53 -> 0 | S184: =трансп!I53 -> 0 | T184: =трансп!J53 -> 0 | U184: =трансп!K53 -> 0
B185: в % к пред.году | C185: 1 | G185: 02 | L185: =трансп!C54 -> 0 | M185: =трансп!C54 -> 0 | N185: 0 | O185: =трансп!E54 -> 0 | P185: =трансп!F54 -> 0 | Q185: =трансп!G54 -> 0 | R185: =трансп!H54 -> 0 | S185: =трансп!I54 -> 0 | T185: =трансп!J54 -> 0 | U185: =трансп!K54 -> 0
M186: =трансп!C55 -> 0
A187: 2.6. Производство важнейших видов продукции в натуральном выражении | M187: =трансп!C56 -> 0
A188: Валовой сбор зерна (в весе после доработки) | B188: тыс. тонн | C188: 1 | G188: 04 | L188: =продукц!C5 -> 0 | M188: =трансп!C57 -> 0 | N188: 0 | O188: =продукц!F5 -> 0 | P188: =продукц!G5 -> 0 | Q188: =продукц!H5 -> 0 | R188: =продукц!I5 -> 0 | S188: =продукц!J5 -> 0 | T188: =продукц!K5 -> 0 | U188: =продукц!L5 -> 0
A189: Валовой сбор сахарной свеклы (фабричной) | B189: тыс. тонн | C189: 1 | G189: 04 | L189: =продукц!C6 -> 0 | M189: =трансп!C58 -> 0 | N189: =продукц!F6 -> 0 | O189: =продукц!F6 -> 0 | P189: =продукц!G6 -> 0 | Q189: =продукц!H6 -> 0 | R189: =продукц!I6 -> 0 | S189: =продукц!J6 -> 0 | T189: =продукц!K6 -> 0 | U189: =продукц!L6 -> 0
A190: Валовой сбор масличных культур – всего | B190: тыс. тонн | C190: 1 | G190: 04 | L190: =продукц!C7 -> 0 | M190: =трансп!C59 -> 0 | N190: =продукц!F7 -> 0 | O190: =продукц!F7 -> 0 | P190: =продукц!G7 -> 0 | Q190: =продукц!H7 -> 0 | R190: =продукц!I7 -> 0 | S190: =продукц!J7 -> 0 | T190: =продукц!K7 -> 0 | U190: =продукц!L7 -> 0
A191: в том числе подсолнечника | B191: тыс. тонн | C191: 1 | G191: 04 | L191: =продукц!C8 -> 0 | M191: =трансп!C60 -> 0 | N191: =продукц!F8 -> 0 | O191: =продукц!F8 -> 0 | P191: =продукц!G8 -> 0 | Q191: =продукц!H8 -> 0 | R191: =продукц!I8 -> 0 | S191: =продукц!J8 -> 0 | T191: =продукц!K8 -> 0 | U191: =продукц!L8 -> 0
A192: Валовой сбор картофеля | B192: тыс. тонн | C192: 1 | G192: 04 | L192: =продукц!C9 -> 0 | M192: =трансп!C61 -> 0 | N192: =продукц!F9 -> 0 | O192: =продукц!F9 -> 0 | P192: =продукц!G9 -> 0 | Q192: =продукц!H9 -> 0 | R192: =продукц!I9 -> 0 | S192: =продукц!J9 -> 0 | T192: =продукц!K9 -> 0 | U192: =продукц!L9 -> 0
A193: Валовой сбор овощей | B193: тыс. тонн | C193: 1 | G193: 04 | L193: =продукц!C10 -> 0 | M193: =трансп!C62 -> 0 | N193: =продукц!F10 -> 0 | O193: =продукц!F10 -> 0 | P193: =продукц!G10 -> 0 | Q193: =продукц!H10 -> 0 | R193: =продукц!I10 -> 0 | S193: =продукц!J10 -> 0 | T193: =продукц!K10 -> 0 | U193: =продукц!L10 -> 0
A194: Производство скота и птицы на убой (в живом весе) | B194: тыс. тонн | C194: 1 | G194: 04 | L194: =продукц!C11 -> 0 | M194: =трансп!C63 -> 0 | N194: =продукц!F11 -> 0 | O194: =продукц!F11 -> 0 | P194: =продукц!G11 -> 0 | Q194: =продукц!H11 -> 0 | R194: =продукц!I11 -> 0 | S194: =продукц!J11 -> 0 | T194: =продукц!K11 -> 0 | U194: =продукц!L11 -> 0
A195: Производство молока | B195: тыс. тонн | C195: 1 | G195: 04 | L195: =продукц!C12 -> 0 | M195: =трансп!C64 -> 0 | N195: =продукц!F12 -> 0 | O195: =продукц!F12 -> 0 | P195: =продукц!G12 -> 0 | Q195: =продукц!H12 -> 0 | R195: =продукц!I12 -> 0 | S195: =продукц!J12 -> 0 | T195: =продукц!K12 -> 0 | U195: =продукц!L12 -> 0
A196: Производство яиц | B196: млн. штук | C196: 1 | G196: 04 | L196: =продукц!C13 -> 0 | M196: =трансп!C65 -> 0 | N196: =продукц!F13 -> 0 | O196: =продукц!F13 -> 0 | P196: =продукц!G13 -> 0 | Q196: =продукц!H13 -> 0 | R196: =продукц!I13 -> 0 | S196: =продукц!J13 -> 0 | T196: =продукц!K13 -> 0 | U196: =продукц!L13 -> 0
A197: Валовой сбор льноволокна | B197: тонн | C197: 1 | G197: 04 | L197: =продукц!C14 -> 0 | M197: =трансп!C66 -> 0 | N197: =продукц!F14 -> 0 | O197: =продукц!F14 -> 0 | P197: =продукц!G14 -> 0 | Q197: =продукц!H14 -> 0 | R197: =продукц!I14 -> 0 | S197: =продукц!J14 -> 0 | T197: =продукц!K14 -> 0 | U197: =продукц!L14 -> 0
A198: Производство деловой древесины | B198: тыс. плот. куб. м | C198: 1 | G198: 04 | L198: =продукц!C15 -> 0 | M198: =трансп!C67 -> 0 | N198: =продукц!F15 -> 0 | O198: =продукц!F15 -> 0 | P198: =продукц!G15 -> 0 | Q198: =продукц!H15 -> 0 | R198: =продукц!I15 -> 0 | S198: =продукц!J15 -> 0 | T198: =продукц!K15 -> 0 | U198: =продукц!L15 -> 0
A199: Добыча угля | B199: тыс. тонн | C199: 1 | G199: 04 | L199: =продукц!C16 -> 0 | M199: =трансп!C68 -> 0 | N199: =продукц!F16 -> 0 | O199: =продукц!F16 -> 0 | P199: =продукц!G16 -> 0 | Q199: =продукц!H16 -> 0 | R199: =продукц!I16 -> 0 | S199: =продукц!J16 -> 0 | T199: =продукц!K16 -> 0 | U199: =продукц!L16 -> 0
A200: Добыча нефти, включая газовый конденсат | B200: тыс. тонн | C200: 1 | G200: 04 | L200: =продукц!C17 -> 0 | M200: =трансп!C69 -> 0 | N200: =продукц!F17 -> 0 | O200: =продукц!F17 -> 0 | P200: =продукц!G17 -> 0 | Q200: =продукц!H17 -> 0 | R200: =продукц!I17 -> 0 | S200: =продукц!J17 -> 0 | T200: =продукц!K17 -> 0 | U200: =продукц!L17 -> 0
A201: Добыча газа горючего природного (естественного) | B201: млн. куб. м | C201: 1 | G201: 04 | L201: =продукц!C18 -> 0 | M201: =трансп!C70 -> 0 | N201: =продукц!F18 -> 0 | O201: =продукц!F18 -> 0 | P201: =продукц!G18 -> 0 | Q201: =продукц!H18 -> 0 | R201: =продукц!I18 -> 0 | S201: =продукц!J18 -> 0 | T201: =продукц!K18 -> 0 | U201: =продукц!L18 -> 0
A202: Производство мяса, включая субпродукты 1 категории | B202: тыс. тонн | C202: 1 | G202: 04 | L202: =продукц!C19 -> 0 | M202: =трансп!C71 -> 0 | N202: =продукц!F19 -> 0 | O202: =продукц!F19 -> 0 | P202: =продукц!G19 -> 0 | Q202: =продукц!H19 -> 0 | R202: =продукц!I19 -> 0 | S202: =продукц!J19 -> 0 | T202: =продукц!K19 -> 0 | U202: =продукц!L19 -> 0
A203: Производство цельномолочной продукции (в пересчете на молоко) | B203: тыс. тонн | C203: 1 | G203: 04 | L203: =продукц!C20 -> 0 | M203: =трансп!C72 -> 0 | N203: =продукц!F20 -> 0 | O203: =продукц!F20 -> 0 | P203: =продукц!G20 -> 0 | Q203: =продукц!H20 -> 0 | R203: =продукц!I20 -> 0 | S203: =продукц!J20 -> 0 | T203: =продукц!K20 -> 0 | U203: =продукц!L20 -> 0
A204: Производство сахара-песка | B204: тыс. тонн | C204: 1 | G204: 04 | L204: =продукц!C21 -> 0 | M204: =трансп!C73 -> 0 | N204: =продукц!F21 -> 0 | O204: =продукц!F21 -> 0 | P204: =продукц!G21 -> 0 | Q204: =продукц!H21 -> 0 | R204: =продукц!I21 -> 0 | S204: =продукц!J21 -> 0 | T204: =продукц!K21 -> 0 | U204: =продукц!L21 -> 0
... 517 more rows

Sheet дефляторы
A1: Показатели | B1: 2009 отчет | C1: 2011 | D1: 2012 | E1: прогноз
C2: отчет | D2: оценка | E2: 2013 | G2: 2014 | I2: 2015
E3: вариант 1 | F3: вариант 2 | G3: вариант 1 | H3: вариант 2 | I3: вариант 1 | J3: вариант 2
A5: Индекс потребительских цен:
A6: Декабрь к декабрю в % к пред.году | B6: 106.2 | C6: 106.2 | D6: 105.8 | E6: 105.7 | F6: 105 | G6: 105.5 | H6: 104.5 | I6: 105 | J6: 104
A7: В среднем за год, в % к пред.году | B7: 108.8 | C7: 108.8 | D7: 104.6 | E7: 106.8 | F7: 106.3 | G7: 105.7 | H7: 104.6 | I7: 105.1 | J7: 104.3
A8: Индексы-дефляторы по:
A9: обрабатывающим производствам | B9: 109.8 | C9: 109.8 | D9: 108 | E9: 108 | F9: 107 | G9: 107 | H9: 106 | I9: 106 | J9: 105
A10: производству, передаче и распределению электроэнергии, газа и воды | B10: 113.2 | C10: 113.2 | D10: 106 | E10: 112 | F10: 111 | G10: 111 | H10: 110 | I10: 110 | J10: 109
A11: добыче полезных ископаемых | B11: 109.8 | C11: 109.8 | D11: 108 | E11: 108 | F11: 107 | G11: 107 | H11: 106 | I11: 106 | J11: 105
A12: Инвестиции
A13: Индекс-дефлятор, в % к пред.году | B13: 113 | C13: 113 | D13: 106.9 | E13: 107 | F13: 106.1 | G13: 106.5 | H13: 105.5 | I13: 105.8 | J13: 104.9
A14: Оборот розничной торговли
A15: Индекс-дефлятор, в % к пред.году | B15: 108.4 | C15: 108.4 | D15: 104.9 | E15: 105.9 | F15: 105 | G15: 105.4 | H15: 104.8 | I15: 105.2 | J15: 104.4
A16: Объем платных услуг населению
A17: Индекс-дефлятор, в % к пред.году | B17: 109.9 | C17: 110 | D17: 106.1 | E17: 108.3 | F17: 106.3 | G17: 107.1 | H17: 106.5 | I17: 106.9 | J17: 105.3

Sheet демогр
A1: Показатели | B1: Единица измерения | C1: 2007 отчет | D1: 2009 отчет | E1: 2010 отчет | F1: 2011 отчет | G1: 2012 оценка | H1: прогноз
H2: 2012 | J2: 2013 | L2: 2014
H3: вариант 1 | I3: вариант 2 | J3: вариант 1 | K3: вариант 2 | L3: вариант 1 | M3: вариант 2
A4: 1. Демографические показатели
A5: Численность постоянного населения (среднегодовая) | B5: тыс. чел. | C5: =C7+C9 -> 126.57 | D5: =D7+D9 -> 127.057 | E5: =E7+E9 -> 124.389 | F5: =F7+F9 -> 124.744 | G5: 125 | H5: 125.09 | I5: 125.13 | J5: 125.14 | K5: 125.18 | L5: 125.18 | M5: 125.19
B6: % к пред. году | C6: 100.2 | D6: =D5/C5*100 -> 100.3847673 | E6: =E5/D5*100 -> 97.90015505 | F6: =F5/E5*100 -> 100.285395 | G6: 100.2 | H6: =H5/G5*100 -> 100.072 | I6: =I5/G5*100 -> 100.104 | J6: =J5/H5*100 -> 100.0399712 | K6: =K5/I5*100 -> 100.0399584 | L6: =L5/J5*100 -> 100.0319642 | M6: =M5/K5*100 -> 100.0079885
A7: Численность постоянного населения (среднегодовая), городское | B7: тыс. чел. | C7: 126.3 | D7: =D17/1000-D9 -> 126.787 | E7: =E17/1000-E9 -> 124.109 | F7: =F17/1000-F9 -> 124.464 | G7: 124.8 | H7: =G7 -> 124.8 | I7: =G7+0.05 -> 124.85 | J7: =I7 -> 124.85 | K7: =J7+0.05 -> 124.9 | L7: =K7 -> 124.9 | M7: =L7+0.02 -> 124.92
B8: % к пред. году | C8: 100.2 | D8: =D7/C7*100 -> 100.3855899 | E8: =E7/D7*100 -> 97.88779607 | F8: =F7/E7*100 -> 100.2860389 | G8: 100.2 | H8: =H7/G7*100 -> 100 | I8: =I7/E7*100 -> 100.5970558 | J8: =J7/H7*100 -> 100.0400641 | K8: =K7/I7*100 -> 100.0400481 | L8: =L7/J7*100 -> 100.0400481 | M8: =M7/K7*100 -> 100.0160128
A9: Численность постоянного населения (среднегодовая), сельское | B9: тыс. чел. | C9: 0.27 | D9: 0.27 | E9: 0.28 | F9: 0.28 | G9: 0.3 | H9: 0.29 | I9: 0.28 | J9: 0.29 | K9: 0.28 | L9: 0.28 | M9: 0.27
B10: % к пред. году | C10: 96.4 | D10: =D9/C9*100 -> 100 | E10: =E9/D9*100 -> 103.7037037 | F10: =F9/E9*100 -> 100 | G10: 100 | H10: =H9/G9*100 -> 96.66666667 | I10: =I9/G9*100 -> 93.33333333 | J10: =J9/H9*100 -> 100 | K10: =K9/I9*100 -> 100 | L10: =L9/J9*100 -> 96.55172414 | M10: =M9/K9*100 -> 96.42857143
A11: Ожидаемая продолжительность жизни при рождении | B11: число лет | C11: 67 | D11: 67 | E11: 67 | F11: 67 | G11: 67 | H11: 67 | I11: 67 | J11: 67 | K11: 67 | L11: 67 | M11: 67
A12: Общий коэффициент рождаемости | B12: число родившихся на 1000 чел. населения | C12: 11.1 | D12: 12.2 | E12: 12.3 | F12: =F18/F5 -> 11.78413391 | G12: 11.8 | H12: =H18/H5 -> 11.59165401 | I12: 11.74778231 | J12: 11.74684354 | K12: 11.90285988 | L12: 11.90285988 | M12: 11.98178768
A13: Общий коэффициент смертности | B13: число умерших на 1000 чел. населения | C13: 9.4 | D13: 9.6 | E13: 9.9 | F13: =F19/F5 -> 9.419290707 | G13: 9.4 | H13: =H19/H5 -> 10.15269006 | I13: 10.14944458 | J13: 10.14863353 | K13: 10.14539064 | L13: 10.2252756 | M13: 10.22445882
A14: Коэффициент естественного прироста населения | B14: на 1000 чел. населения | C14: =C12-C13 -> 1.7 | D14: =D12-D13 -> 2.6 | E14: =E12-E13 -> 2.4 | F14: =F12-F13 -> 2.364843199 | G14: 2.4 | H14: =H12-H13 -> 1.438963946 | I14: 1.598337729 | J14: 1.598210005 | K14: 1.757469244 | L14: 1.677584279 | M14: 1.75732886
A15: Коэффициент миграционного прироста | B15: на 10 000 чел. населения | C15: 6.3 | D15: =D21/D5*10 -> 12.04183949 | E15: =E21/E5*10 -> -239.4102372 | F15: =F21/F5*10 -> 0 | G15: 0 | H15: =H21/H5*10 -> 0 | I15: 0 | J15: 0 | K15: 0 | L15: 0 | M15: 0
C17: 126570 | D17: =C17+D20+D21 -> 127057 | E17: =D17+E20+E21 -> 124389 | F17: 124744 | G17: 125000 | H17: 125000 | I17: =I5*1000 -> 125130 | J17: 125140 | K17: 125180 | L17: 125180 | M17: 125190
A18: рождаемость | C18: 1405 | D18: 1557 | E18: 1575 | F18: 1470 | G18: 1460 | H18: 1450 | I18: 1470 | J18: 1470 | K18: 1490 | L18: 1490 | M18: 1500
A19: смертность | C19: 1186 | D19: 1223 | E19: 1265 | F19: 1175 | G19: 1200 | H19: 1270 | I19: 1270 | J19: 1270 | K19: 1270 | L19: 1280 | M19: 1280
A20: естественный прирост | C20: -20 | D20: =D18-D19 -> 334 | E20: =E18-E19 -> 310 | F20: =F18-F19 -> 295 | G20: =G18-G19 -> 260 | H20: =H18-H19 -> 180 | I20: 200 | J20: 200 | K20: 220 | L20: 210 | M20: 220
A21: миграционный прирост | C21: 73 | D21: 153 | E21: -2978 | F21: 0 | G21: 0 | H21: 0 | I21: 0 | J21: 0 | K21: 0 | L21: 0 | M21: 0

Sheet промыш
A1: Показатели | B1: Единица измерения | C1: 2009 отчет | D1: 2010 отчет | E1: 2011 отчет | F1: 2012 оценка | G1: прогноз
G2: 2013 | I2: 2014 | K2: 2015
G3: вариант 1 | H3: вариант 2 | I3: вариант 1 | J3: вариант 2 | K3: вариант 1 | L3: вариант 2
A4: 2.1. Выпуск товаров и услуг
A5: Выпуск товаров и услуг | B5: млн. руб. в осн-х ценах соотв-х лет | C5: 16216.7 | D5: =D9+D65+D19 -> 18728.961 | E5: 18990.1 | F5: 19855.7 | G5: 21916.15858 | H5: 21962.14988 | I5: 24132.90526 | J5: 24415.35353 | K5: 26969.23683 | L5: 27465.97753
A6: 2.3. Промышленное производство
A7: Индекс промышленного производства | B7: % к пред. году | C7: 93 | D7: 114.8 | E7: 114.1 | F7: 109 | G7: 109 | H7: 111 | I7: 106 | J7: 108 | K7: 105 | L7: 107
A8: Добыча полезных ископаемых
A9: Объем отгруженных товаров собственного производства, выполненных работ и услуг собственными силами - РАЗДЕЛ C: Добыча полезных ископаемых | B9: млн. руб. | C9: 187.123 | D9: 196.918 | E9: 241 | F9: 251 | G9: =E9*G10%*$G$11% -> 262.8828 | H9: =E9*H10%*$H$11% -> 261.73805 | I9: =G9*I10%*$I$11% -> 281.284596 | J9: =H9*J10%*$J$11% -> 282.9911797 | K9: =I9*K10%*$K$11% -> 301.1432885 | L9: =J9*L10%*$L$11% -> 306.0549608
A10: Индекс производства - РАЗДЕЛ C: Добыча полезных ископаемых | B10: % к пред. году | C10: 25.4 | D10: 204.7 | E10: =E9/D9*100/E11% -> 111.46263 | F10: =F9/E9*100/F11% -> 96.43460888 | G10: 101 | H10: 101.5 | I10: 100 | J10: 102 | K10: 101 | L10: 103
A11: Индекс-дефлятор - РАЗДЕЛ C: Добыча полезных ископаемых | B11: % к пред. году | C11: 153.4 | D11: 51.4 | E11: =дефляторы!C11 -> 109.8 | F11: =дефляторы!D11 -> 108 | G11: =дефляторы!E11 -> 108 | H11: =дефляторы!F11 -> 107 | I11: =дефляторы!G11 -> 107 | J11: =дефляторы!H11 -> 106 | K11: =дефляторы!I11 -> 106 | L11: =дефляторы!J11 -> 105
A12: Объем отгруженных товаров собственного производства, выполненных работ и услуг собственными силами - Подраздел CA: Добыча топливно-энергетических полезных ископаемых | B12: млн. руб.
A13: Индекс производства - Подраздел CA: Добыча топливно-энергетических полезных ископаемых | B13: % к пред. году
A14: Индекс-дефлятор - Подраздел CA: Добыча топливно-энергетических полезных ископаемых | B14: % к пред. году
A15: Объем отгруженных товаров собственного производства, выполненных работ и услуг собственными силами - Подраздел CB: Добыча полезных ископаемых, кроме топливно-энергетических | B15: млн. руб.
A16: Индекс производства - Подраздел CB: Добыча полезных ископаемых, кроме топливно-энергетических | B16: % к пред. году | C16: =C9 -> 187.123 | D16: =D9 -> 196.918 | E16: =E9 -> 241 | F16: 251 | G16: 262.8828 | H16: 261.73805 | I16: 281.284596 | J16: 282.9911797 | K16: 301.1432885 | L16: 306.0549608
A17: Индекс-дефлятор - Подраздел CB: Добыча полезных ископаемых, кроме топливно-энергетических | B17: % к пред. году | C17: =C10 -> 25.4 | D17: =D10 -> 204.7 | E17: 111.46263 | F17: 96.43460888 | G17: 101 | H17: 101.5 | I17: 100 | J17: 102 | K17: 101 | L17: 103
A18: Обрабатывающие производства
A19: Объем отгруженных товаров собственного производства, выполненных работ и услуг собственными силами - РАЗДЕЛ D: Обрабатывающие производства | B19: млн. руб. | C19: =C22+C25+C28+C31+C34+C40+C43+C46+C49+C52+C55+C58 -> 9172.66 | D19: =D22+D25+D28+D31+D34+D40+D43+D46+D49+D52+D55+D58 -> 10661.262 | E19: =E22+E25+E28+E31+E34+E40+E43+E46+E49+E52+E55+E58 -> 11620.5 | F19: =F22+F25+F28+F31+F34+F40+F43+F46+F49+F52+F55+F58 -> 12162.7 | G19: =G22+G25+G28+G31+G34+G40+G43+G46+G49+G52+G55+G58 -> 13234.88538 | H19: 13274.57943 | I19: 14413.76319 | J19: 14678.5784 | K19: 16078.81745 | L19: 16494.6362
A20: Индекс производства - РАЗДЕЛ D: Обрабатывающие производства | B20: % к пред. году | C20: =120.1/C21% -> 109.3806922 | D20: 118.4 | E20: =E19/D19*100/$E$21% -> 99.26904839 | F20: =F19/E19*100/$E$21% -> 95.32412766 | G20: =G19/E19*100/G21% -> 105.4560776 | H20: 102.0016033 | I20: 101.7825718 | J20: 104.3175457 | K20: 105.237581 | L20: 107.0211087
A21: Индекс-дефлятор - РАЗДЕЛ D: Обрабатывающие производства | B21: % к пред. году | C21: =дефляторы!B9 -> 109.8 | D21: 98.2 | E21: =дефляторы!C9 -> 109.8 | F21: =дефляторы!D9 -> 108 | G21: =дефляторы!E9 -> 108 | H21: =дефляторы!F9 -> 107 | I21: =дефляторы!G9 -> 107 | J21: =дефляторы!H9 -> 106 | K21: =дефляторы!I9 -> 106 | L21: =дефляторы!J9 -> 105
A22: Объем отгруженных товаров собственного производства, выполненных работ и услуг собственными силами - Подраздел DA: Производство пищевых продуктов, включая напитки, и табака | B22: млн. руб. | C22: 620.386 | D22: 759.105 | E22: 683.3 | F22: 670 | G22: =F22*G23%*$G$21% -> 730.836 | H22: =F22*H23%*$H$21% -> 727.6535 | I22: =H22*I23%*$G$21% -> 793.7244378 | J22: =H22*J23%*$H$21% -> 794.1610299 | K22: =J22*K23%*$G$21% -> 874.8477905 | L22: =J22*L23%*$H$21% -> 883.7423941
A23: Индекс производства - Подраздел DA: Производство пищевых продуктов, включая напитки, и табака | B23: % к пред. году | C23: 80.6 | D23: =D22/C22*100/$D$21% -> 124.6029646 | E23: =E22/D22*100/$E$21% -> 81.97987062 | F23: =F22/E22*100/$E$21% -> 89.30197048 | G23: 101 | H23: 101.5 | I23: 101 | J23: 102 | K23: 102 | L23: 104
A24: Индекс-дефлятор - Подраздел DA: Производство пищевых продуктов, включая напитки, и табака | B24: % к пред. году
A25: Объем отгруженных товаров собственного производства, выполненных работ и услуг собственными силами - Подраздел DB: Текстильное и швейное производство | B25: млн. руб. | C25: 325.327 | D25: 364.305 | E25: 288.2 | F25: 320 | G25: =F25*G26%*$G$21% -> 349.056 | H25: =F25*H26%*$H$21% -> 352.672 | I25: =H25*I26%*$G$21% -> 386.5990464 | J25: =H25*J26%*$H$21% -> 388.6798112 | K25: =J25*K26%*$G$21% -> 428.16968 | L25: =J25*L26%*$H$21% -> 432.5228939
A26: Индекс производства - Подраздел DB: Текстильное и швейное производство | B26: % к пред. году | C26: 98.5 | D26: =D25/C25*100/$D$21% -> 114.033784 | E26: =E25/D25*100/$E$21% -> 72.04875896 | F26: =F25/E25*100/$E$21% -> 101.1238654 | G26: 101 | H26: 103 | I26: 101.5 | J26: 103 | K26: 102 | L26: 104
A27: Индекс-дефлятор - Подраздел DB: Текстильное и швейное производство | B27: % к пред. году
A28: Объем отгруженных товаров собственного производства, выполненных работ и услуг собственными силами - Подраздел DC: Производство кожи, изделий из кожи и производство обуви | B28: млн. руб. | C28: 0.986
A29: Индекс производства - Подраздел DC: Производство кожи, изделий из кожи и производство обуви | B29: % к пред. году
A30: Индекс-дефлятор - Подраздел DC: Производство кожи, изделий из кожи и производство обуви | B30: % к пред. году
A31: Объем отгруженных товаров собственного производства, выполненных работ и услуг собственными силами - Подраздел DD: Обработка древесины и производство изделий из дерева | B31: млн. руб. | C31: 7.578 | D31: 6.288 | E31: 2.8 | F31: 5 | G31: =F31*G32%*$G$21% -> 5.4 | H31: =F31*H32%*$H$21% -> 5.4035 | I31: =G31*I32%*$I$21% -> 5.80689 | J31: =H31*J32%*$J$11% -> 5.8422642 | K31: =J31*K32%*$G$21% -> 6.372741789 | L31: =J31*L32%*$H$21% -> 6.463764266
A32: Индекс производства - Подраздел DD: Обработка древесины и производство изделий из дерева | B32: % к пред. году | C32: 29.2 | D32: =D31/C31*100/$D$21% -> 84.49800285 | E32: =E31/D31*100/$E$21% -> 40.5548835 | F32: =F31/E31*100/$F$21% -> 165.3439153 | G32: 100 | H32: 101 | I32: 100.5 | J32: 102 | K32: 101 | L32: 103.4
A33: Индекс-дефлятор - Подраздел DD: Обработка древесины и производство изделий из дерева | B33: % к пред. году
A34: Объем отгруженных товаров собственного производства, выполненных работ и услуг собственными силами - Подраздел DE: Целлюлозно-бумажное производство; издательская и полиграфическая деятельность | B34: млн. руб. | C34: 10.794 | D34: 18.171 | E34: 9.5 | F34: 11 | G34: =F34*G35%*$G$21% -> 12.1176 | H34: =F34*H35%*$H$21% -> 12.2408 | I34: =H34*I35%*$G$21% -> 13.41836496 | J34: =H34*J35%*$H$21% -> 13.49058568 | K34: =J34*K35%*$G$21% -> 14.71553086 | L34: =J34*L35%*$H$21% -> 14.86797448
A35: Индекс производства - Подраздел DE: Целлюлозно-бумажное производство; издательская и полиграфическая деятельность | B35: % к пред. году | C35: 352.6 | D35: =D34/C34*100/$D$21% -> 171.4292507 | E35: =E34/D34*100/$E$21% -> 47.61485178 | F35: =F34/E34*100/$E$21% -> 105.4548941 | G35: 102 | H35: 104 | I35: 101.5 | J35: 103 | K35: 101 | L35: 103
A36: Индекс-дефлятор - Подраздел DE: Целлюлозно-бумажное производство; издательская и полиграфическая деятельность | B36: % к пред. году
A37: Объем отгруженных товаров собственного производства, выполненных работ и услуг собственными силами - Подраздел DF: Производство кокса, нефтепродуктов | B37: млн. руб.
A38: Индекс производства - Подраздел DF: Производство кокса, нефтепродуктов | B38: % к пред. году
A39: Индекс-дефлятор - Подраздел DF: Производство кокса, нефтепродуктов | B39: % к пред. году
A40: Объем отгруженных товаров собственного производства, выполненных работ и услуг собственными силами - Подраздел DG: Химическое производство | B40: млн. руб. | C40: 5857.668 | D40: 6671.12 | E40: 7265.7 | F40: =7687.1-100 -> 7587.1 | G40: =F40*G41%*$G$21% -> 8276.00868 | H40: =F40*H41%*$H$21% -> 8280.56094 | I40: =H40*I41%*$G$21% -> 9068.207897 | J40: =H40*J41%*$H$21% -> 9214.608214 | K40: =J40*K41%*$G$21% -> 10250.33018 | L40: =J40*L41%*$H$21% -> 10451.20864
A41: Индекс производства - Подраздел DG: Химическое производство | B41: % к пред. году | C41: 100.3 | D41: =D40/C40*100/$D$21% -> 115.9745008 | E41: =E40/D40*100/$E$21%-12 -> 87.19193651 | F41: =F40/E40*100/$F$21%-12 -> 84.68844836 | G41: 101 | H41: 102 | I41: 101.4 | J41: 104 | K41: 103 | L41: 106
A42: Индекс-дефлятор - Подраздел DG: Химическое производство | B42: % к пред. году
A43: Объем отгруженных товаров собственного производства, выполненных работ и услуг собственными силами - Подраздел DH: Производство резиновых и пластмассовых изделий | B43: млн. руб. | C43: 303.112 | D43: 463.634 | E43: 421.4 | F43: 440 | G43: =F43*G44%*$G$21% -> 479.952 | H43: =F43*H44%*$H$21% -> 480.216 | I43: =H43*I44%*$I$21% -> 524.1077424 | J43: =H43*J44%*$J$21% -> 527.8630315 | K43: =J43*K44%*$K$21% -> 581.9162059 | L43: =J43*L44%*$L$21% -> 581.9689923
A44: Индекс производства - Подраздел DH: Производство резиновых и пластмассовых изделий | B44: % к пред. году | C44: 93.6 | D44: =D43/C43*100/$D$21% -> 155.761693 | E44: =E43/D43*100/$E$21% -> 82.77837836 | F44: =F43/E43*100/$F$21% -> 96.67949867 | G44: 101 | H44: 102 | I44: 102 | J44: 103.7 | K44: 104 | L44: 105
A45: Индекс-дефлятор - Подраздел DH: Производство резиновых и пластмассовых изделий | B45: % к пред. году
A46: Объем отгруженных товаров собственного производства, выполненных работ и услуг собственными силами - Подраздел DI: Производство прочих неметаллических минеральных продуктов | B46: млн. руб. | C46: 1907.38 | D46: 2255.621 | E46: 2792 | F46: 2953.9 | G46: =F46*G47%*$G$11% -> 3190.212 | H46: =F46*H47%*$H$11% -> 3223.88646 | I46: =G46*I47%*$I$11% -> 3413.52684 | J46: =H46*J47%*$J$11% -> 3519.839237 | K46: =I46*K47%*$K$11% -> 3690.705219 | L46: =J46*L47%*$L$11% -> 3880.622759
A47: Индекс производства - Подраздел DI: Производство прочих неметаллических минеральных продуктов | B47: % к пред. году | C47: 65.3 | D47: =D46/C46*100/$D$21% -> 120.4252113 | E47: =E46/D46*100/$E$21%-8 -> 104.7319306 | F47: =F46/E46*100/$F$21%-8 -> 89.96176908 | G47: 100 | H47: 102 | I47: 100 | J47: 103 | K47: 102 | L47: 105
A48: Индекс-дефлятор - Подраздел DI: Производство прочих неметаллических минеральных продуктов | B48: % к пред. году
A49: Объем отгруженных товаров собственного производства, выполненных работ и услуг собственными силами - Подраздел DJ: Металлургическое производство и производство готовых металлических изделий | B49: млн. руб. | C49: 67.921 | D49: 44.142 | E49: 18.9 | F49: 29 | G49: =F49*G50%*$G$21% -> 31.6332 | H49: =F49*H50%*$H$21% -> 31.6506 | I49: =G49*I50%*$I$21% -> 33.847524 | J49: =H49*J50%*$J$21% -> 34.55612508 | K49: =I49*K50%*$K$21% -> 36.41655107 | L49: =J49*L50%*$L$21% -> 37.73528859
A50: Индекс производства - Подраздел DJ: Металлургическое производство и производство готовых металлических изделий | B50: % к пред. году | C50: 99.5 | D50: =D49/C49*100/$D$21% -> 66.18147578 | E50: =E49/D49*100/$E$21% -> 38.99486828 | F50: =F49/E49*100/$F$21% -> 142.0732902 | G50: 101 | H50: 102 | I50: 100 | J50: 103 | K50: 101.5 | L50: 104
A51: Индекс-дефлятор - Подраздел DJ: Металлургическое производство и производство готовых металлических изделий | B51: % к пред. году
A52: Объем отгруженных товаров собственного производства, выполненных работ и услуг собственными силами - 38.9: Производство машин и оборудования (без производства оружия и боеприпасов) | B52: млн. руб. | C52: 66.896 | D52: 74.035 | E52: 77.6 | F52: 82.1 | G52: =F52*G53%*$G$21% -> 89.55468 | H52: =F52*H53%*$H$21% -> 90.48241 | I52: =G52*I53%*$I$21% -> 97.26086021 | J52: =H52*J53%*$J$21% -> 99.26825201 | K52: =I52*K53%*$K$21% -> 105.1584421 | L52: =J52*L53%*$L$21% -> 108.4009312
A53: Индекс производства - 38.9: Производство машин и оборудования (без производства оружия и боеприпасов) | B53: % к пред. году | C53: 140.5 | D53: =D52/C52*100/$D$21% -> 112.7003962 | E53: =E52/D52*100/$E$21% -> 95.46019132 | F53: =F52/E52*100/$E$21% -> 96.35607384 | G53: 101 | H53: 103 | I53: 101.5 | J53: 103.5 | K53: 102 | L53: 104
A54: Индекс-дефлятор - 38.9: Производство машин и оборудования (без производства оружия и боеприпасов) | B54: % к пред. году
A55: Объем отгруженных товаров собственного производства, выполненных работ и услуг собственными силами - Подраздел DL: Производство электрооборудования, электронного и оптического оборудования | B55: млн. руб. | C55: 4.271 | D55: 4.407 | E55: 60.8 | F55: 64.3 | G55: =F55*G56%*$G$21% -> 69.79122 | H55: =F55*H56%*$H$21% -> 69.48901 | I55: =G55*I56%*$I$21% -> 76.91690356 | J55: =H55*J56%*$J$11% -> 79.9193104 | K55: =I55*K56%*$K$21% -> 89.68510955 | L55: =J55*L56%*$L$21% -> 96.50256731
A56: Индекс производства - Подраздел DL: Производство электрооборудования, электронного и оптического оборудования | B56: % к пред. году | C56: 24 | D56: =D55/C55*100/$D$21% -> 105.0756273 | E56: =E55/D55*100/$E$21% -> 1256.487547 | F56: =F55/E55*100/$F$21% -> 97.92275828 | G56: 100.5 | H56: 101 | I56: 103 | J56: 108.5 | K56: 110 | L56: 115
A57: Индекс-дефлятор - Подраздел DL: Производство электрооборудования, электронного и оптического оборудования | B57: % к пред. году
A58: Объем отгруженных товаров собственного производства, выполненных работ и услуг собственными силами - Подраздел DM: Производство транспортных средств и оборудования | B58: млн. руб. | C58: 0.341 | D58: 0.434 | E58: 0.3 | F58: 0.3 | G58: =F58*G59%*$G$11% -> 0.324 | H58: =F58*H59%*$H$11% -> 0.32421 | I58: =G58*I59%*$I$11% -> 0.34668 | J58: =H58*J59%*$J$11% -> 0.350535852 | K58: 0.5 | L58: 0.6
A59: Индекс производства - Подраздел DM: Производство транспортных средств и оборудования | B59: % к пред. году | C59: 91.9 | D59: =D58/C58*100/$D$21% -> 129.6056286 | E59: =E58/D58*100/$E$21% -> 62.95484878 | F59: =F58/E58*100/$F$21% -> 92.59259259 | G59: 100 | H59: 101 | I59: 100 | J59: 102 | K59: 102 | L59: 103
A60: Индекс-дефлятор - Подраздел DM: Производство транспортных средств и оборудования | B60: % к пред. году
A61: Объем отгруженных товаров собственного производства, выполненных работ и услуг собственными силами - Подраздел DN: Прочие производства | B61: млн. руб.
A62: Индекс производства - Подраздел DN: Прочие производства | B62: % к пред. году
A63: Индекс-дефлятор - Подраздел DN: Прочие производства | B63: % к пред. году
A64: Производство и распределение электроэнергии, газа и воды
A65: Объем отгруженных товаров собственного производства, выполненных работ и услуг собственными силами - РАЗДЕЛ E: Производство и распределение электроэнергии, газа и воды | B65: млн. руб. | C65: 7178.783 | D65: 7870.781 | E65: 7128.6 | F65: =7542-100 -> 7442 | G65: =F65*G66%*G67% -> 8418.3904 | H65: =F65*H66%*H67% -> 8425.8324 | I65: =G65*I66%*I67% -> 9437.857477 | J65: =H65*J66%*J67% -> 9453.783953 | K65: =I65*K66%*K67% -> 10589.27609 | L65: =J65*L66%*L67% -> 10665.28637
A66: Индекс производства - РАЗДЕЛ E: Производство и распределение электроэнергии, газа и воды | B66: % к пред. году | C66: 108.4 | D66: =D65/C65*100/D67% -> 95.00822273 | E66: =E65/D65*100/E67%-5 -> 75.00921158 | F66: =F65/E65*100/F67%-5 -> 93.48714638 | G66: 101 | H66: 102 | I66: 101 | J66: 102 | K66: 102 | L66: 103.5
A67: Индекс-дефлятор - РАЗДЕЛ E: Производство и распределение электроэнергии, газа и воды | B67: % к пред. году | C67: =дефляторы!B10 -> 113.2 | D67: 115.4 | E67: =дефляторы!C10 -> 113.2 | F67: =дефляторы!D10 -> 106 | G67: =дефляторы!E10 -> 112 | H67: =дефляторы!F10 -> 111 | I67: =дефляторы!G10 -> 111 | J67: =дефляторы!H10 -> 110 | K67: =дефляторы!I10 -> 110 | L67: =дефляторы!J10 -> 109
A68: Потребление электроэнергии | B68: млн.кВт.ч.
A69: в том числе по группам потребителей:
A70: Базовые потребители | B70: млн. кВт. ч.
A71: Население | B71: млн. кВт. ч.
A72: Прочие потребители | B72: млн. кВт. ч.
A73: Средние тарифы на электроэнергию, отпущенную различным категориям потребителей | B73: руб./тыс.кВт.ч
A74: Индекс тарифов | B74: за период с начала года к соотв. периоду пред. года,%
B75: % декабрь к декабрю пред. года
A76: в том числе по группам потребителей:
A77: Базовые потребители | B77: руб./тыс.кВт.ч
A78: Индекс тарифов | B78: за период с начала года к соотв. периоду пред. года,%
B79: % декабрь к декабрю пред. года
A80: Население | B80: руб./тыс.кВт.ч
A81: Индекс тарифов | B81: за период с начала года к соотв. периоду пред. года,%
B82: % декабрь к декабрю пред. года
A83: Прочие потребители | B83: руб./тыс.кВт.ч
A84: Индекс тарифов | B84: за период с начала года к соотв. периоду пред. года,%
B85: % декабрь к декабрю пред. года

Sheet трансп
A1: Показатели | B1: Единица измерения | C1: 2010 отчет | D1: 2011 отчет | E1: 2012 оценка | F1: прогноз
F2: 2013 | H2: 2014 | J2: 2015
F3: вариант 1 | G3: вариант 2 | H3: вариант 1 | I3: вариант 2 | J3: вариант 1 | K3: вариант 2
A4: 2.6. Транспорт и связь
A5: 2.6.1. Транспорт
A6: Протяженность автомобильных дорог общего пользования с твердым покрытием | B6: км | C6: 84.34 | D6: 84.34 | E6: 84.34 | F6: 84.34 | G6: 84.34 | H6: 84.34 | I6: 84.34 | J6: 84.34 | K6: 94.34
A7: Протяженность автомобильных дорог федерального значения | B7: км | C7: 0 | D7: 0 | E7: 0 | F7: 0 | G7: 0 | H7: 0 | I7: 0 | J7: 0 | K7: 0
A8: Густота автомобильных дорог общего пользования с твердым покрытием | B8: километров дорог на 1 000 квадратных километров территории | C8: 0 | D8: 0 | E8: 0 | F8: 0 | G8: 0 | H8: 0 | I8: 0 | J8: 0 | K8: 0
A9: Удельный вес автомобильных дорог с твердым покрытием в общей протяженности автомобильных дорог общего пользования | B9: % | C9: 100 | D9: 100 | E9: 100 | F9: 100 | G9: 100 | H9: 100 | I9: 100 | J9: 100 | K9: 100
A10: 2.6.2. Связь
A11: Объем услуг связи - всего
A12: в ценах соотв-х лет | B12: млн. руб. | C12: =потребит!C21 -> 3.9 | D12: =потребит!D21 -> 13.6965 | E12: =потребит!F21 -> 15 | F12: =потребит!G21 -> 15.0588 | G12: =потребит!H21 -> 15.14775 | H12: =потребит!I21 -> 15.12129402 | I12: =потребит!J21 -> 15.21076464 | J12: =потребит!K21 -> 15.41570561 | K12: =потребит!L21 -> 15.70617924
A13: в соп-х ценах | B13: в % к пред.году | C13: =потребит!C22 -> 104 | D13: =потребит!D22 -> 322.7870475 | E13: =потребит!F22 -> 104.7007934 | F13: =потребит!G22 -> 94 | G13: =потребит!H22 -> 95 | H13: =потребит!I22 -> 95 | I13: =потребит!J22 -> 96 | J13: =потребит!K22 -> 97 | K13: =потребит!L22 -> 99
A15: в том числе:
A16: почтовая связь
A17: в ценах соотв-х лет | B17: млн. руб.
A18: в соп-х ценах | B18: в % к пред.году
A20: междугородная, внутризоновая и международная телнфонная связь
A21: в ценах соотв-х лет | B21: млн. руб.
A22: в соп-х ценах | B22: в % к пред.году
A24: местная телефонная связь
A25: в ценах соотв-х лет | B25: млн. руб.
A26: в соп-х ценах | B26: в % к пред.году
A28: документальная электросвязь
A29: в ценах соотв-х лет | B29: млн. руб.
A30: в соп-х ценах | B30: в % к пред.году
A32: подвижная связь
A33: в ценах соотв-х лет | B33: млн. руб.
A34: в соп-х ценах | B34: в % к пред.году
A36: Плотность телефонных аппаратов фиксированной электросвязи на 100 чел. населения | B36: единиц
A38: Количество абонентов, подключенных к сетям подвижной связи | B38: млн.ед.
A40: Количество почтовых ящиков на 10000 чел. | B40: единиц
A42: Деятельность, связаная с использованием вычислительной техники и информационных технологий
A44: Наличие персональных компьютеров | B44: штук
B45: в % к пред.году
A47: в том числе подключенных к сети Интернет | B47: штук
B48: в % к пред.году
A50: Количество компьютеров на 100 чел. населения | B50: единиц
B51: в % к пред.году
A53: Количество пользователей Интернет на 100 чел. населения | B53: единиц
B54: в % к пред.году

Sheet продукц
A1: Показатели | B1: Единица измерения | C1: 2009 отчет | D1: 2010 отчет | E1: 2011отчет | F1: 2012 оценка | G1: прогноз
G2: 2013 | I2: 2014 | K2: 2015
G3: вариант 1 | H3: вариант 2 | I3: вариант 1 | J3: вариант 2 | K3: вариант 1 | L3: вариант 2
A4: 2.7. Производство важнейших видов продукции в натуральном выражении
A5: Валовой сбор зерна (в весе после доработки) | B5: тыс. тонн
A6: Валовой сбор сахарной свеклы (фабричной) | B6: тыс. тонн
A7: Валовой сбор масличных культур – всего | B7: тыс. тонн
A8: в том числе подсолнечника | B8: тыс. тонн
A9: Валовой сбор картофеля | B9: тыс. тонн
A10: Валовой сбор овощей | B10: тыс. тонн
A11: Производство скота и птицы на убой (в живом весе) | B11: тыс. тонн
A12: Производство молока | B12: тыс. тонн
A13: Производство яиц | B13: млн. штук
A14: Валовой сбор льноволокна | B14: тонн
A15: Производство деловой древесины | B15: тыс. плот. куб. м
A16: Добыча угля | B16: тыс. тонн
A17: Добыча нефти, включая газовый конденсат | B17: тыс. тонн
A18: Добыча газа горючего природного (естественного) | B18: млн. куб. м
A19: Производство мяса, включая субпродукты 1 категории | B19: тыс. тонн
A20: Производство цельномолочной продукции (в пересчете на молоко) | B20: тыс. тонн
A21: Производство сахара-песка | B21: тыс. тонн
A22: Производство масел растительных | B22: тыс. тонн
A23: Производство товарной пищевой рыбной продукции, включая консервы рыбные | B23: тыс. тонн
A24: Производство спирта этилового из пищевого сырья и технического | B24: тыс. дкл
A25: Производство спирта этилового из пищевого сырья | B25: тыс. дкл
A26: Производство водки и ликеро-водочных изделий | B26: тыс. дкл
A27: Производство коньяков | B27: тыс. дкл
A28: Производство вин виноградных | B28: тыс. дкл
A29: Производство вин плодовых | B29: тыс. дкл
A30: Производство вин шампанских и игристых | B30: тыс. дкл
A31: Hапитки винные (виноградные и плодовые) с содержанием спирта более 20% объемных | B31: тыс. дкл
A32: Hапитки винные (виноградные и плодовые) с содержанием спирта до 20% объемных включительно | B32: тыс. дкл
A33: Напитки слабоалкогольные с содержанием этилового спирта не более 9% | B33: тыс. дкл
A34: Производство пива | B34: тыс. дкл | C34: 4306 | D34: 5597 | E34: 5492.9 | F34: 6100 | G34: 6100 | H34: 6112 | I34: 6112 | J34: 6115 | K34: 6115 | L34: 6120
A35: Производство хлопчатобумажных готовых тканей | B35: тыс. кв. м
A36: Производство трикотажных изделий | B36: тыс. штук | C36: 753 | D36: 780.4 | E36: 955.2 | F36: 958 | G36: 1000 | H36: 1100 | I36: 1100 | J36: 1200 | K36: 1200 | L36: 1300
A37: Производство обуви | B37: тыс. пар
A38: Производство пиломатериалов | B38: тыс. куб. м
A39: Производство бумаги | B39: тыс. тонн
A40: Производство автомобильного бензина | B40: тыс. тонн
A41: Производство дизельного топлива | B41: тыс. тонн
A42: Производство смазочных нефтяных масел | B42: тыс. тонн
A43: Производство топочного мазута | B43: тыс. тонн
A44: Производство минеральных удобрений (в пересчете на 100% питательных веществ) | B44: тыс. тонн
A45: Производство полиэтилена | B45: тонн
A46: Производство шин для грузовых автомобилей, автобусов и троллейбусов | B46: тыс. штук
A47: Производство шин для легковых автомобилей | B47: тыс. штук
A48: Производство цемента | B48: тыс. тонн
A49: Производство строительного кирпича | B49: млн. условных кирпичей | C49: 23.6 | D49: 21.1 | E49: 10.7 | F49: 11 | G49: 12 | H49: 13 | I49: 13 | J49: 14 | K49: 14 | L49: 15
A50: Производство блоков и камней мелких стеновых (без блоков из ячеистого бетона) | B50: млн. условных кирпичей | C50: 9 | D50: 10.4 | E50: 5.5 | F50: 8 | G50: 8 | H50: 9 | I50: 9 | J50: 10 | K50: 10 | L50: 11
A51: Производство блоков крупных стеновых (включая бетонные блоки стен подвалов) | B51: млн. условных кирпичей | C51: 0.8 | D51: 1.4 | E51: 2.1 | F51: 2.5 | G51: 2.6 | H51: 2.7 | I51: 2.7 | J51: 2.8 | K51: 2.8 | L51: 2.9
A52: Производство блоков мелких стеновых из ячеистого бетона | B52: млн. условных кирпичей | D52: 0.8 | E52: 0.5 | F52: 1 | G52: 1.2 | H52: 1.4 | I52: 1.4 | J52: 1.5 | K52: 1.5 | L52: 1.6
A53: Производство готового проката черных металлов | B53: тыс. тонн
A54: Производство стальных труб | B54: тыс. тонн
A55: Производство металлорежущих станков | B55: штук
A56: Производство тракторов | B56: штук
A57: Производство телевизоров | B57: тыс. штук
A58: Производство бытовых холодильников и морозильников | B58: тыс. штук
A59: Производство бытовых стиральных машин | B59: тыс. штук
A60: Производство электропылесосов | B60: тыс. штук
A61: Производство ювелирных изделий в фактических ценах (без НДС и акциза) | B61: тыс. руб.
A62: Производство грузовых автомобилей | B62: штук
A63: Производство легковых автомобилей | B63: тыс. штук
A64: Производство мотоциклов | B64: штук
A65: Производство электроэнергии | B65: млн. кВт. ч | C65: 3309.5 | D65: =D68+D69 -> 3297.6 | E65: 3414.2 | F65: 3332 | G65: 3335 | H65: 3340 | I65: 3340 | J65: 3350 | K65: 3350 | L65: 3400
A66: в том числе:
A67: Производство электроэнергии, вырабатываемой АЭС | B67: млн. кВт. ч
A68: Производство электроэнергии, вырабатываемой ТЭС | B68: млн. кВт. ч | C68: 1003.6 | D68: 1123 | E68: 1231.7 | F68: 1232 | G68: 1235 | H68: 1240 | I68: 1240 | J68: 1250 | K68: 1250 | L68: 1300
A69: Производство электроэнергии, вырабатываемой ГЭС | B69: млн. кВт. ч | C69: 2305.9 | D69: 2174.6 | E69: 2182.5 | F69: 2100 | G69: 2100 | H69: 2100 | I69: 2100 | J69: 2100 | K69: 2100 | L69: 2100

Sheet строит
A1: Показатели | B1: Единица измерения | C1: 2009 отчет | D1: 2010 отчет | E1: 2011 отчет | F1: 2012 оценка | G1: прогноз
G2: 2013 | I2: 2014 | K2: 2015
G3: вариант 1 | H3: вариант 2 | I3: вариант 1 | J3: вариант 2 | K3: вариант 1 | L3: вариант 2
A4: 2.8. Строительство
A5: Объем выполненных работ по виду деятельности "строительство" (Раздел F) | B5: млн. руб. | C5: 652.5 | D5: 491.6 | E5: 781.6 | F5: 750 | G5: 750 | H5: 790 | I5: =G5*I6%*I7% -> 798.75 | J5: =H5*J6%*J7% -> 875.1225 | K5: =I5*K6%*K7% -> 849.3028875 | L5: =J5*L6%*L7% -> 931.773555
B6: % к пред. году в соп-х ценах | C6: 35.5 | D6: 80.2 | E6: 140.7 | F6: =F5/E5*100/F7*100 -> 89.76334075 | G6: =G5/F5*100/G7*100 -> 93.45794393 | H6: =H5/G5*100/H7*100 -> 99.27741125 | I6: 100 | J6: 105 | K6: 100.5 | L6: 101.5
A7: Индекс-дефлятор по объему работ, выполненных по виду деятельности "строительство" (Раздел F) | B7: % к пред. году | D7: =D5/C5*100/D6% -> 93.94139173 | E7: 113 | F7: =дефляторы!D13 -> 106.9 | G7: =дефляторы!E13 -> 107 | H7: =дефляторы!F13 -> 106.1 | I7: =дефляторы!G13 -> 106.5 | J7: =дефляторы!H13 -> 105.5 | K7: =дефляторы!I13 -> 105.8 | L7: =дефляторы!J13 -> 104.9

Sheet потребит
A1: Показатели | B1: Единица измерения | C1: 2010 отчет | D1: 2011 отчет | E1: 2009 | F1: 2012 оценка | G1: прогноз
G2: 2013 | I2: 2014 | K2: 2015
G3: вариант 1 | H3: вариант 2 | I3: вариант 1 | J3: вариант 2 | K3: вариант 1 | L3: вариант 2
A4: 3. Рынок товаров и услуг
A5: Индекс потребительских цен | B5: декабрь к декабрю пред. года, % | C5: 109.8 | D5: =дефляторы!C6 -> 106.2 | F5: =дефляторы!D6 -> 105.8 | G5: =дефляторы!E6 -> 105.7 | H5: =дефляторы!F6 -> 105 | I5: =дефляторы!G6 -> 105.5 | J5: =дефляторы!H6 -> 104.5 | K5: =дефляторы!I6 -> 105 | L5: =дефляторы!J6 -> 104
A6: Индекс потребительских цен за период с начала года (на конец периода) | B6: к соответствующему периоду пред. года, % | C6: 107.1 | D6: =дефляторы!C7 -> 108.8 | F6: =дефляторы!D7 -> 104.6 | G6: =дефляторы!E7 -> 106.8 | H6: =дефляторы!F7 -> 106.3 | I6: =дефляторы!G7 -> 105.7 | J6: =дефляторы!H7 -> 104.6 | K6: =дефляторы!I7 -> 105.1 | L6: =дефляторы!J7 -> 104.3
A7: Оборот розничной торговли | B7: млн. руб. | C7: 6485.9 | D7: =C7*D8%*D9% -> 7677.64521 | F7: =D7*F8%*F9% -> 8617.066522 | G7: =F7*G8%*G9% -> 9847.238939 | H7: =F7*H8%*H9% -> 9892.73705 | I7: =G7*I8%*I9% -> 11189.17143 | J7: =H7*J8%*J9% -> 11196.3228 | K7: =I7*K8%*K9% -> 12700.6047 | L7: =J7*L8%*L9% -> 12647.01915
B8: % к пред. году в соп-х ценах | C8: 117 | D8: 108.8 | F8: 107.3 | G8: 107 | H8: 108 | I8: 107.5 | J8: 108.2 | K8: 108 | L8: 108.3
A9: Индекс-дефлятор оборота розничной торговли | B9: % к пред. году | C9: 107.1 | D9: =D6 -> 108.8 | F9: =F6 -> 104.6 | G9: 106.8 | H9: 106.3 | I9: 105.7 | J9: 104.6 | K9: 105.1 | L9: 104.3
A10: Оборот общественного питания | B10: млн. руб. | C10: 93.2 | D10: =C10*D11%*D12% -> 99.373568 | F10: =D10*F11%*F12% -> 102.9053046 | G10: =F10*G11%*G12% -> 108.8038367 | H10: =F10*H11%*H12% -> 109.3883388 | I10: =G10*I11%*I12% -> 115.0056554 | J10: =H10*J11%*J12% -> 115.5644044 | K10: =I10*K11%*K12% -> 122.0796532 | L10: =J10*L11%*L12% -> 124.149684
B11: % к пред. году в соп-х ценах | C11: 97 | D11: 98 | F11: 99 | G11: 99 | H11: 100 | I11: 100 | J11: 101 | K11: 101 | L11: 103
A12: Индекс цен на продукцию общественного питания | B12: декабрь к декабрю пред. года, % | C12: =C6 -> 107.1 | D12: =D9 -> 108.8 | F12: =F9 -> 104.6 | G12: 106.8 | H12: 106.3 | I12: 105.7 | J12: 104.6 | K12: 105.1 | L12: 104.3
A13: Объем платных услуг населению | B13: млн. руб. | C13: 1229.7 | D13: =D17+D19+D21+D23+D25+D27+D29+D31+D33+D35+D37+D39+D41+D43 -> 1023.4958 | E13: 930.4945536 | F13: 1101.099675 | G13: 1077.197177 | H13: 1100.392827 | I13: 1073.351278 | J13: 1104.973954 | K13: 1094.373394 | L13: 1145.701332
B14: % к пред. году в соп-х ценах | C14: 77.8 | D14: =D13/C13*100/D12% -> 76.49939428 | F14: =F13/D13*100/F12% -> 102.8510868 | G14: =G13/F13*100/G12% -> 91.60038933 | H14: =H13/F13*100/H12% -> 94.01298707 | I14: =I13/G13*100/I12% -> 94.26960422 | J14: =J13/H13*100/J12% -> 96.00030352 | K14: =K13/I13*100/K12% -> 97.01098909 | L14: =L13/J13*100/L12% -> 99.41114327
E15: 1170
A16: в том числе:
A17: бытовые услуги | B17: млн. руб. в ценах соотв-х лет | C17: 116.5 | D17: 55.9944 | E17: =D17*E18%*$F$12% -> 55.64163528 | F17: 57 | G17: =F17*G18%*$G$12% -> 54.7884 | H17: =F17*H18%*$H$12% -> 54.834855 | I17: =G17*I18%*$I$12% -> 52.69931831 | J17: =H17*J18%*$J$12% -> 52.76867766 | K17: =I17*K18%*$K$12% -> 52.06376453 | L17: =J17*L18%*$L$12% -> 53.38659888
B18: % к пред. году в соп-х ценах | C18: 105.9 | D18: =D17/C17*100/$D$12% -> 44.17634436 | E18: 95 | F18: =F17/D17*100/$F$12% -> 97.31921021 | G18: 90 | H18: 90.5 | I18: 91 | J18: 92 | K18: 94 | L18: 97
A19: транспортные услуги | B19: млн. руб. в ценах соотв-х лет | C19: 184.2 | D19: 172.3311 | E19: =D19*E20%*$F$12% -> 90.1291653 | F19: 200.2 | G19: =F19*G20%*$G$12% -> 215.951736 | H19: =F19*H20%*$H$12% -> 217.068852 | I19: =G19*I20%*$I$12% -> 232.8262047 | J19: =H19*J20%*$J$12% -> 233.8656398 | K19: =I19*K20%*$K$12% -> 253.0201527 | L19: =J19*L20%*$L$12% -> 253.6787368
B20: % к пред. году в соп-х ценах | C20: 105.8 | D20: =D19/C19*100/$D$12% -> 85.98944362 | E20: 50 | F20: 100 | G20: 101 | H20: 102 | I20: 102 | J20: 103 | K20: 103.4 | L20: 104
A21: услуги связи | B21: млн. руб. в ценах соотв-х лет | C21: 3.9 | D21: 13.6965 | E21: =D21*E22%*$F$12% -> 13.75347744 | F21: 15 | G21: =F21*G22%*$G$12% -> 15.0588 | H21: =F21*H22%*$H$12% -> 15.14775 | I21: =G21*I22%*$I$12% -> 15.12129402 | J21: =H21*J22%*$J$12% -> 15.21076464 | K21: =I21*K22%*$K$12% -> 15.41570561 | L21: =J21*L22%*$L$12% -> 15.70617924
B22: % к пред. году в соп-х ценах | C22: 104 | D22: =D21/C21*100/$D$12% -> 322.7870475 | E22: 96 | F22: =F21/D21*100/$F$12% -> 104.7007934 | G22: 94 | H22: 95 | I22: 95 | J22: 96 | K22: 97 | L22: 99
A23: жилищные услуги | B23: млн. руб. в ценах соотв-х лет | C23: 211.6 | D23: 82.7497 | E23: =D23*E24%*$F$12% -> 85.69062434 | F23: 90 | G23: =F23*G24%*$G$12% -> 93.2364 | H23: =F23*H24%*$H$12% -> 93.66093 | I23: =G23*I24%*$I$12% -> 96.5798573 | J23: =H23*J24%*$J$12% -> 96.98963945 | K23: =I23*K24%*$K$12% -> 100.9979029 | L23: =J23*L24%*$L$12% -> 101.1601939
B24: % к пред. году в соп-х ценах | C24: 105.9 | D24: =D23/C23*100/$D$12% -> 35.94362456 | E24: 99 | F24: =F23/D23*100/$F$12% -> 103.9787033 | G24: 97 | H24: 97.9 | I24: 98 | J24: 99 | K24: 99.5 | L24: 100
A25: коммунальные услуги | B25: млн. руб. в ценах соотв-х лет | C25: 396.7 | D25: 407.6298 | E25: =D25*E26%*$F$12% -> 422.1169631 | F25: 408 | G25: =F25*G26%*$G$12% -> 413.9568 | H25: =F25*H26%*$H$12% -> 425.897328 | I25: =G25*I26%*$I$12% -> 428.8012908 | J25: =H25*J26%*$J$12% -> 441.033719 | K25: =I25*K26%*$K$12% -> 443.9101043 | L25: =J25*L26%*$L$12% -> 459.998169
B26: % к пред. году в соп-х ценах | C26: 105.9 | D26: =D25/C25*100/$D$12% -> 94.44409948 | E26: 99 | F26: =F25/D25*100/$F$12% -> 95.68911826 | G26: 95 | H26: 98.2 | I26: 98 | J26: 99 | K26: 98.5 | L26: 100
A27: услуги учреждений культуры | B27: млн. руб. в ценах соотв-х лет | C27: 26.2 | D27: 12.4254 | E27: =D27*E28%*$F$12% -> 11.30736251 | F27: =E27/$E$13*$E$15 -> 14.21783081 | G27: =F27*G28%*$G$12% -> 11.38848248 | H27: =F27*H28%*$H$12% -> 12.09084332 | I27: =G27*I28%*$I$12% -> 9.630100786 | J27: =H27*J28%*$J$12% -> 10.7499688 | K27: =I27*K28%*$K$12% -> 9.109112333 | L27: =J27*L28%*$L$12% -> 10.87585093
B28: % к пред. году в соп-х ценах | C28: 105.9 | D28: =D27/C27*100/$D$12% -> 43.58932982 | E28: 87 | F28: =F27/D27*100/$F$12% -> 109.3934399 | G28: 75 | H28: 80 | I28: 80 | J28: 85 | K28: 90 | L28: 97
A29: туристские услуги | B29: млн. руб. в ценах соотв-х лет | C29: 0 | D29: 0 | E29: =D29*E30%*$F$12% -> 0 | F29: =E29/$E$13*$E$15 -> 0 | G29: =F29*G30%*$G$12% -> 0 | H29: =F29*H30%*$H$12% -> 0 | I29: =G29*I30%*$I$12% -> 0 | J29: =H29*J30%*$J$12% -> 0 | K29: =I29*K30%*$K$12% -> 0 | L29: =J29*L30%*$L$12% -> 0
B30: % к пред. году в соп-х ценах | E30: 85
A31: услуги физической культуры и спорта | B31: млн. руб. в ценах соотв-х лет | C31: 11 | D31: 14.3085 | E31: =D31*E32%*$F$12% -> 13.02102117 | F31: =E31/$E$13*$E$15 -> 16.37257812 | G31: =F31*G32%*$G$12% -> 12.58985767 | H31: =F31*H32%*$H$12% -> 13.05303791 | I31: =G31*I32%*$I$12% -> 9.980609669 | J31: =H31*J32%*$J$12% -> 10.64971257 | K31: =I31*K32%*$K$12% -> 8.181904194 | L31: =J31*L32%*$L$12% -> 8.886120166
B32: % к пред. году в соп-х ценах | C32: 105.9 | D32: =D31/C31*100/$D$12% -> 119.5563168 | E32: 87 | F32: =F31/D31*100/$F$12% -> 109.3934399 | G32: 72 | H32: 75 | I32: 75 | J32: 78 | K32: 78 | L32: 80
A33: медицинские услуги | B33: млн. руб. в ценах соотв-х лет | C33: 94.1 | D33: 99.5408 | E33: =D33*E34%*$F$12% -> 93.70770912 | F33: =E33/$E$13*$E$15 -> 117.8276856 | G33: =F33*G34%*$G$12% -> 105.7055733 | H33: =F33*H34%*$H$12% -> 108.9682219 | I33: =G33*I34%*$I$12% -> 94.9711723 | J33: =H33*J34%*$J$12% -> 101.4428765 | K33: =I33*K34%*$K$12% -> 89.83323188 | L33: =J33*L34%*$L$12% -> 102.6307726
B34: % к пред. году в соп-х ценах | C34: 105.9 | D34: =D33/C33*100/$D$12% -> 97.22604238 | E34: 90 | F34: =F33/D33*100/$F$12% -> 113.1656275 | G34: 84 | H34: 87 | I34: 85 | J34: 89 | K34: 90 | L34: 97
A35: санаторно-оздоровительные услуги | B35: млн. руб. в ценах соотв-х лет | C35: 39.8 | D35: 32.8531 | E35: =D35*E36%*$F$12% -> 27.83511751 | F35: =E35/$E$13*$E$15 -> 34.99976153 | G35: =F35*G36%*$G$12% -> 25.79202427 | H35: =F35*H36%*$H$12% -> 26.41537002 | I35: =G35*I36%*$I$12% -> 19.08351876 | J35: =H35*J36%*$J$12% -> 20.17024824 | K35: =I35*K36%*$K$12% -> 15.44371922 | L35: =J35*L36%*$L$12% -> 17.25080651
B36: % к пред. году в соп-х ценах | C36: 105.9 | D36: =D35/C35*100/$D$12% -> 75.86900495 | E36: 81 | F36: =F35/D35*100/$F$12% -> 101.8490647 | G36: 69 | H36: 71 | I36: 70 | J36: 73 | K36: 77 | L36: 82
A37: ветеринарные услуги | B37: млн. руб. в ценах соотв-х лет | C37: 0.7 | D37: 0.7 | E37: =D37*E38%*$F$12% -> 0.51254 | F37: =E37/$E$13*$E$15 -> 0.6444656744 | G37: =F37*G38%*$G$12% -> 0.4129736042 | H37: =F37*H38%*$H$12% -> 0.4452935577 | I37: =G37*I38%*$I$12% -> 0.2837335147 | J37: =H37*J38%*$J$12% -> 0.326043943 | K37: =I37*K38%*$K$12% -> 0.223652943 | L37: =J37*L38%*$L$12% -> 0.272051066
B38: % к пред. году в соп-х ценах | C38: 108.9 | D38: =D37/C37*100/$D$12% -> 91.91176471 | E38: 70 | F38: =F37/D37*100/$F$12% -> 88.01771024 | G38: 60 | H38: 65 | I38: 65 | J38: 70 | K38: 75 | L38: 80
A39: услуги правового характера | B39: млн. руб. в ценах соотв-х лет | C39: 5.4 | D39: 3.802 | E39: =D39*E40%*$F$12% -> 2.5849798 | F39: =E39/$E$13*$E$15 -> 3.2503429 | G39: =F39*G40%*$G$12% -> 2.117533393 | H39: =F39*H40%*$H$12% -> 2.349477862 | I39: =G39*I40%*$I$12% -> 1.410086662 | J39: =H39*J40%*$J$12% -> 1.720287691 | K39: =I39*K40%*$K$12% -> 0.9633007028 | L39: =J39*L40%*$L$12% -> 1.345695046
B40: % к пред. году в соп-х ценах | C40: 105 | D40: =D39/C39*100/$D$12% -> 64.71269063 | E40: 65 | F40: =F39/D39*100/$F$12% -> 81.73073094 | G40: 61 | H40: 68 | I40: 63 | J40: 70 | K40: 65 | L40: 75
A41: услуги в системе образования | B41: млн. руб. в ценах соотв-х лет | C41: 77.6 | D41: 114.2178 | E41: =D41*E42%*$F$12% -> 103.9404824 | F41: =E41/$E$13*$E$15 -> 130.6943323 | G41: =F41*G42%*$G$12% -> 117.2484994 | H41: =F41*H42%*$H$12% -> 120.8674254 | I41: =G41*I42%*$I$12% -> 105.3419143 | J41: =H41*J42%*$J$12% -> 112.520321 | K41: =I41*K42%*$K$12% -> 99.64291669 | L41: =J41*L42%*$L$12% -> 113.837934
B42: % к пред. году в соп-х ценах | C42: 105.9 | D42: =D41/C41*100/$D$12% -> 135.282984 | E42: 87 | F42: =F41/D41*100/$F$12% -> 109.3934399 | G42: 84 | H42: 87 | I42: 85 | J42: 89 | K42: 90 | L42: 97
A43: прочие виды платных услуг населению | B43: млн. руб. в ценах соотв-х лет | C43: 62 | D43: 13.2467 | E43: =D43*E44%*$F$12% -> 10.25347567 | F43: =E43/$E$13*$E$15 -> 12.89267786 | G43: =F43*G44%*$G$12% -> 8.950096972 | H43: =F43*H44%*$H$12% -> 9.593441597 | I43: =G43*I44%*$I$12% -> 6.622176749 | J43: =H43*J44%*$J$12% -> 7.526054933 | K43: =I43*K44%*$K$12% -> 5.567926211 | L43: =J43*L44%*$L$12% -> 6.672224001
B44: % к пред. году в соп-х ценах | C44: 105.9 | D44: =D43/C43*100/$D$12% -> 19.63754151 | E44: 74 | F44: =F43/D43*100/$F$12% -> 93.04729369 | G44: 65 | H44: 70 | I44: 70 | J44: 75 | K44: 80 | L44: 85

Sheet предприн
A1: Показатели | B1: Единица измерения | C1: 2009 отчет | D1: 2010 отчет | E1: 2011 отчет | F1: 2012 оценка | G1: прогноз
G2: 2013 | I2: 2014 | K2: 2015
G3: вариант 1 | H3: вариант 2 | I3: вариант 1 | J3: вариант 2 | K3: вариант 1 | L3: вариант 2
A4: 5. Малое предпринимательство *
A5: Количество малых предприятий - на конец года | B5: единиц | C5: 0.6 | D5: 608 | E5: 617 | F5: 630 | G5: =SUM(G7:G11)/SUM(F7:F11)*F5 -> 630 | H5: =SUM(H7:H11)/SUM(F7:F11)*F5 -> 642.8096118 | I5: =SUM(I7:I11)/SUM(G7:G11)*G5 -> 642.8096118 | J5: =SUM(J7:J11)/SUM(H7:H11)*H5 -> 652.1256932 | K5: =SUM(K7:K11)/SUM(I7:I11)*I5 -> 652.1256932 | L5: =SUM(L7:L11)/SUM(J7:J11)*J5 -> 662.6062847
A6: в том числе по видам экономической деятельности:
A7: РАЗДЕЛ C: Добыча полезных ископаемых | B7: единиц | C7: 0 | D7: 0 | E7: 0 | F7: 0 | G7: 0 | H7: 0 | I7: 0 | J7: 0 | K7: 0 | L7: 0
A8: РАЗДЕЛ D: Обрабатывающие производства | B8: единиц | C8: 130 | D8: 130 | E8: 130 | F8: 132 | G8: 132 | H8: 135 | I8: 135 | J8: 137 | K8: 137 | L8: 140
A9: РАЗДЕЛ E: Производство и распределение электроэнергии, газа и воды | B9: единиц | C9: 0 | D9: 0 | F9: 0 | G9: 0 | H9: 0 | I9: 0 | J9: 0 | K9: 0 | L9: 0
A10: РАЗДЕЛ F: Строительство | B10: единиц | C10: 102 | D10: 101 | E10: 101 | F10: 101 | G10: 101 | H10: 102 | I10: 102 | J10: 103 | K10: 103 | L10: 104
A11: РАЗДЕЛ G: Оптовая и розничная торговля; ремонт автотранспортных средств, мотоциклов, бытовых изделий и предметов личного пользования | B11: единиц | C11: 300 | D11: 305 | E11: 305 | F11: 308 | G11: 308 | H11: 315 | I11: 315 | J11: 320 | K11: 320 | L11: 325
A12: Среднесписочная численность работников (без внешних совместителей) по малым предприятиям | B12: тыс. чел. | C12: 4.2 | D12: 4.2 | E12: 4.968 | F12: 5.04 | G12: =SUM(G14:G18)/SUM(F14:F18)*F12 -> 5.044262757 | H12: =SUM(H14:H18)/SUM(F14:F18)*F12 -> 5.115308712 | I12: =SUM(I14:I18)/SUM(G14:G18)*G12 -> 5.115308712 | J12: =SUM(J14:J18)/SUM(H14:H18)*H12 -> 5.186354666 | K12: =SUM(K14:K18)/SUM(I14:I18)*I12 -> 5.186354666 | L12: =SUM(L14:L18)/SUM(J14:J18)*J12 -> 5.281082605
A13: в том числе по видам экономической деятельности:
A14: РАЗДЕЛ C: Добыча полезных ископаемых | B14: тыс. чел. | C14: 0 | D14: 0 | F14: 0 | G14: 0 | H14: 0 | I14: 0 | J14: 0 | K14: 0 | L14: 0
A15: РАЗДЕЛ D: Обрабатывающие производства | B15: тыс. чел. | C15: 0.69 | D15: 0.7 | E15: =E12*16% -> 0.79488 | F15: =F12*16% -> 0.8064 | G15: 0.81 | H15: 0.82 | I15: 0.82 | J15: 0.83 | K15: 0.83 | L15: 0.85
A16: РАЗДЕЛ E: Производство и распределение электроэнергии, газа и воды | B16: тыс. чел. | C16: 0 | D16: 0 | F16: 0 | G16: 0 | H16: 0 | I16: 0 | J16: 0 | K16: 0 | L16: 0
A17: РАЗДЕЛ F: Строительство | B17: тыс. чел. | C17: 0.75 | D17: 0.79 | E17: =E12*17% -> 0.84456 | F17: 0.85 | G17: 0.85 | H17: 0.86 | I17: 0.86 | J17: 0.87 | K17: 0.87 | L17: 0.89
A18: РАЗДЕЛ G: Оптовая и розничная торговля; ремонт автотранспортных средств, мотоциклов, бытовых изделий и предметов личного пользования | B18: тыс. чел. | C18: 2.25 | D18: 2.3 | E18: =E12*52% -> 2.58336 | F18: 2.6 | G18: 2.6 | H18: 2.64 | I18: 2.64 | J18: 2.68 | K18: 2.68 | L18: 2.72
A19: Оборот малых предприятий | B19: млн. руб. | C19: =C26+C32+C35 -> 4705.502737 | D19: 5205.45 | E19: =E26+E32+E35 -> 5932.730823 | F19: =F26+F32+F35 -> 6607.267686 | G19: 6718.965067 | H19: =H26+H32+H35 -> 6763.200676 | I19: 6856.854912 | J19: 6916.536789 | K19: 7072.760065 | L19: 7170.750655
A20: Индекс производства | B20: % к пред. году | C20: 109 | D20: 112.65 | E20: =E19/D19*100/E21% -> 103.7992044 | F20: =F19/D19*100/F21% -> 117.5275999 | G20: =G19/F19*100/G21% -> 94.15789169 | H20: =H19/F19*100/H21% -> 95.66357223 | I20: =I19/G19*100/I21% -> 95.37593297 | J20: =J19/H19*100/J21% -> 96.47850211 | K20: =K19/I19*100/K21% -> 97.31014059 | L20: =L19/J19*100/L21% -> 98.738524
A21: Индекс-дефлятор | B21: % к пред. году | C21: 109.6 | D21: 0 | E21: =дефляторы!C9 -> 109.8 | F21: =дефляторы!D9 -> 108 | G21: =дефляторы!E9 -> 108 | H21: =дефляторы!F9 -> 107 | I21: =дефляторы!G9 -> 107 | J21: =дефляторы!H9 -> 106 | K21: =дефляторы!I9 -> 106 | L21: =дефляторы!J9 -> 105
A22: в том числе по видам экономической деятельности:
A23: Оборот малых предприятий - РАЗДЕЛ C: Добыча полезных ископаемых | B23: млн. руб. | C23: 0 | D23: 0 | F23: 0 | G23: 0 | H23: 0 | I23: 0 | J23: 0 | K23: 0 | L23: 0
A24: Индекс производства - РАЗДЕЛ C: Добыча полезных ископаемых | B24: % к пред. году | C24: 0 | D24: 0 | F24: 0 | G24: 0 | H24: 0 | I24: 0 | J24: 0 | K24: 0 | L24: 0
A25: Индекс-дефлятор | B25: % к пред. году | C25: 109.2 | D25: 0 | E25: =дефляторы!C11 -> 109.8 | F25: =дефляторы!D11 -> 108 | G25: =дефляторы!E11 -> 108 | H25: =дефляторы!F11 -> 107 | I25: =дефляторы!G11 -> 107 | J25: =дефляторы!H11 -> 106 | K25: =дефляторы!I11 -> 106 | L25: =дефляторы!J11 -> 105
A26: Оборот малых предприятий - РАЗДЕЛ D: Обрабатывающие производства | B26: млн. руб. | C26: 855.53884 | D26: 831.74 | E26: =D26*E27%*E28% -> 812.7929628 | F26: =E26*F27%*F28% -> 930.4853838 | G26: =F26*G27%*G28% -> 894.3825509 | H26: =F26*H27%*H28% -> 915.9698118 | I26: =G26*I27%*I28% -> 861.2903965 | J26: =H26*J27%*J28% -> 922.3816005 | K26: =I26*K27%*K28% -> 867.3194293 | L26: =J26*L27%*L28% -> 939.4456601
A27: Индекс производства - РАЗДЕЛ D: Обрабатывающие производства | B27: % к пред. году | C27: 104 | D27: 99 | E27: 89 | F27: 106 | G27: 89 | H27: 92 | I27: 90 | J27: 95 | K27: 95 | L27: 97
A28: Индекс-дефлятор | B28: % к пред. году | C28: 123.5 | D28: 0 | E28: 109.8 | F28: =дефляторы!D9 -> 108 | G28: =дефляторы!E9 -> 108 | H28: =дефляторы!F9 -> 107 | I28: =дефляторы!G9 -> 107 | J28: =дефляторы!H9 -> 106 | K28: =дефляторы!I9 -> 106 | L28: =дефляторы!J9 -> 105
A29: Оборот малых предприятий - РАЗДЕЛ E: Производство и распределение электроэнергии, газа и воды | B29: млн. руб. | C29: 0 | D29: 0 | E29: 0 | F29: 0 | G29: 0 | H29: 0 | I29: 0 | J29: 0 | K29: 0 | L29: 0
A30: Индекс производства - РАЗДЕЛ E: Производство и распределение электроэнергии, газа и воды | B30: % к пред. году | C30: 0 | D30: 0 | E30: 0 | F30: 0 | G30: 0 | H30: 0 | I30: 0 | J30: 0 | K30: 0 | L30: 0
A31: Индекс-дефлятор | B31: % к пред. году | C31: 121 | D31: 0 | E31: =дефляторы!C10 -> 113.2 | F31: =дефляторы!D10 -> 106 | G31: =дефляторы!E10 -> 112 | H31: =дефляторы!F10 -> 111 | I31: =дефляторы!G10 -> 111 | J31: =дефляторы!H10 -> 110 | K31: =дефляторы!I10 -> 110 | L31: =дефляторы!J10 -> 109
A32: Оборот малых предприятий - РАЗДЕЛ F: Строительство | B32: млн. руб. | C32: 826.049202 | D32: 973.17 | E32: =D32*E33%*E34% -> 1058.80896 | F32: =E32*F33%*F34% -> 1173.965022 | G32: =F32*G33%*G34% -> 1015.573662 | H32: =F32*H33%*H34% -> 1060.736096 | I32: =G32*I33%*I34% -> 912.4421563 | J32: =H32*J33%*J34% -> 987.4816613 | K32: =I32*K33%*K34% -> 863.0790357 | L32: =J32*L33%*L34% -> 1009.344505
A33: Индекс производства - РАЗДЕЛ F: Строительство | B33: % к пред. году | C33: 106 | D33: 110 | E33: 100 | F33: 106 | G33: 81 | H33: 85 | I33: 85 | J33: 89 | K33: 90 | L33: 98
A34: Индекс-дефлятор | B34: % к пред. году | C34: 117.7 | D34: 0 | E34: =дефляторы!C7 -> 108.8 | F34: =дефляторы!D7 -> 104.6 | G34: =дефляторы!E7 -> 106.8 | H34: =дефляторы!F7 -> 106.3 | I34: =дефляторы!G7 -> 105.7 | J34: =дефляторы!H7 -> 104.6 | K34: =дефляторы!I7 -> 105.1 | L34: =дефляторы!J7 -> 104.3
A35: Оборот малых предприятий - РАЗДЕЛ G: Оптовая и розничная торговля; ремонт автотранспортных средств, мотоциклов, бытовых изделий и предметов личного пользования | B35: млн. руб. | C35: 3023.914695 | D35: 3400.54 | E35: =D35*E36%*E37% -> 4061.1289 | F35: =E35*F36%*F37% -> 4502.81728 | G35: =F35*G36%*G37% -> 4809.008855 | H35: =F35*H36%*H37% -> 4786.494768 | I35: =G35*I36%*I37% -> 5083.122359 | J35: =H35*J36%*J37% -> 5006.673528 | K35: =I35*K36%*K37% -> 5342.3616 | L35: =J35*L36%*L37% -> 5221.960489
A36: Индекс производства - РАЗДЕЛ G: Оптовая и розничная торговля; ремонт автотранспортных средств, мотоциклов, бытовых изделий и предметов личного пользования | B36: % к пред. году | C36: 107 | D36: 105 | E36: 105.5 | F36: 106 | G36: 100 | H36: 100 | I36: 100 | J36: 100 | K36: 100 | L36: 100
A37: Индекс-дефлятор | B37: % к пред. году | C37: 108.3 | D37: =дефляторы!C7 -> 108.8 | E37: =дефляторы!C10 -> 113.2 | F37: =дефляторы!D7 -> 104.6 | G37: =дефляторы!E7 -> 106.8 | H37: =дефляторы!F7 -> 106.3 | I37: =дефляторы!G7 -> 105.7 | J37: =дефляторы!H7 -> 104.6 | K37: =дефляторы!I7 -> 105.1 | L37: =дефляторы!J7 -> 104.3
A38: 5. Среднее предпринимательство * | D38: 0
A39: Количество средних предприятий - на конец года | B39: единиц | C39: 0.6 | D39: 0 | E39: 4 | F39: 4 | G39: =SUM(G41:G45)/SUM(F41:F45)*F39 -> 4 | H39: =SUM(H41:H45)/SUM(F41:F45)*F39 -> 4 | I39: =SUM(I41:I45)/SUM(G41:G45)*G39 -> 4 | J39: =SUM(J41:J45)/SUM(H41:H45)*H39 -> 4 | K39: =SUM(K41:K45)/SUM(I41:I45)*I39 -> 4 | L39: =SUM(L41:L45)/SUM(J41:J45)*J39 -> 4
A40: в том числе по видам экономической деятельности:
A41: РАЗДЕЛ C: Добыча полезных ископаемых | B41: единиц | C41: 0 | D41: 0 | F41: 0 | G41: 0 | H41: 0 | I41: 0 | J41: 0 | K41: 0 | L41: 0
A42: РАЗДЕЛ D: Обрабатывающие производства | B42: единиц | C42: 130 | D42: 0 | E42: 4 | F42: 4 | G42: 4 | H42: 4 | I42: 4 | J42: 4 | K42: 4 | L42: 4
A43: РАЗДЕЛ E: Производство и распределение электроэнергии, газа и воды | B43: единиц | C43: 0 | D43: 0 | F43: 0 | G43: 0 | H43: 0 | I43: 0 | J43: 0 | K43: 0 | L43: 0
A44: РАЗДЕЛ F: Строительство | B44: единиц | C44: 102 | D44: 0 | E44: 0 | F44: 0 | G44: 0 | H44: 0 | I44: 0 | J44: 0 | K44: 0 | L44: 0
A45: РАЗДЕЛ G: Оптовая и розничная торговля; ремонт автотранспортных средств, мотоциклов, бытовых изделий и предметов личного пользования | B45: единиц | C45: 300 | D45: 0 | E45: 0 | F45: 0 | G45: 0 | H45: 0 | I45: 0 | J45: 0 | K45: 0 | L45: 0
A46: Среднесписочная численность работников (без внешних совместителей) по средним предприятиям | B46: тыс. чел. | C46: 4.2 | D46: 0 | E46: 0.935 | F46: 0.935 | G46: 0.935 | H46: 0.935 | I46: 0.935 | J46: 0.935 | K46: 0.935 | L46: 0.935
A47: в том числе по видам экономической деятельности:
A48: РАЗДЕЛ C: Добыча полезных ископаемых | B48: тыс. чел. | C48: 0 | D48: 0 | E48: 0 | F48: 0 | G48: 0 | H48: 0 | I48: 0 | J48: 0 | K48: 0 | L48: 0
A49: РАЗДЕЛ D: Обрабатывающие производства | B49: тыс. чел. | C49: 0.69 | D49: 0 | E49: 0.935 | F49: 0.935 | G49: 0.935 | H49: 0.935 | I49: 0.935 | J49: 0.935 | K49: 0.935 | L49: 0.935
A50: РАЗДЕЛ E: Производство и распределение электроэнергии, газа и воды | B50: тыс. чел. | C50: 0 | D50: 0 | E50: 0 | F50: 0 | G50: 0 | H50: 0 | I50: 0 | J50: 0 | K50: 0 | L50: 0
A51: РАЗДЕЛ F: Строительство | B51: тыс. чел. | C51: 0.75 | D51: 0 | E51: 0 | F51: 0 | G51: 0.45 | H51: 0.46 | I51: 0.45 | J51: 0.47 | K51: 0.47 | L51: 0
A52: РАЗДЕЛ G: Оптовая и розничная торговля; ремонт автотранспортных средств, мотоциклов, бытовых изделий и предметов личного пользования | B52: тыс. чел. | C52: 2.25 | D52: 0 | E52: 0 | F52: 0 | G52: 0 | H52: 0 | I52: 0 | J52: 0 | K52: 0 | L52: 0
A53: Оборот средних предприятий | B53: млн. руб. | C53: =C60+C66+C69 -> 4705.502737 | D53: 0 | E53: 1219.994 | F53: =F60+F66+F69 -> 1330.769455 | G53: 1451.603322 | H53: =H60+H66+H69 -> 1576.513788 | I53: =I60+I66+I69 -> 1712.172799 | J53: 1851.20123 | K53: 2001.51877 | L53: 2154.134576
A54: Индекс производства | B54: % к пред. году | C54: 109 | D54: 0 | E54: =дефляторы!C11 -> 109.8 | F54: =дефляторы!D11 -> 108 | G54: =дефляторы!E11 -> 108 | H54: =дефляторы!F11 -> 107 | I54: =дефляторы!G11 -> 107 | J54: =дефляторы!H11 -> 106 | K54: =дефляторы!I11 -> 106 | L54: =дефляторы!J11 -> 105
A55: Индекс-дефлятор | B55: % к пред. году | C55: 109.6 | D55: 0 | E55: =дефляторы!C43 -> 0 | F55: =дефляторы!D43 -> 0 | G55: =дефляторы!E43 -> 0 | H55: =дефляторы!F43 -> 0 | I55: =дефляторы!G43 -> 0 | J55: =дефляторы!H43 -> 0 | K55: =дефляторы!I43 -> 0 | L55: =дефляторы!J43 -> 0
A56: в том числе по видам экономической деятельности:
A57: Оборот малых предприятий - РАЗДЕЛ C: Добыча полезных ископаемых | B57: млн. руб. | C57: 0 | D57: 0 | E57: 0 | F57: 0 | G57: 0 | H57: 0 | I57: 0 | J57: 0 | K57: 0 | L57: 0
A58: Индекс производства - РАЗДЕЛ C: Добыча полезных ископаемых | B58: % к пред. году | C58: 0 | D58: 0 | E58: 0 | F58: 0 | G58: 0 | H58: 0 | I58: 0 | J58: 0 | K58: 0 | L58: 0
A59: Индекс-дефлятор | B59: % к пред. году | C59: 109.2 | D59: =дефляторы!C45 -> 0 | E59: 0 | F59: =дефляторы!D45 -> 0 | G59: =дефляторы!E45 -> 0 | H59: =дефляторы!F45 -> 0 | I59: =дефляторы!G45 -> 0 | J59: =дефляторы!H45 -> 0 | K59: =дефляторы!I45 -> 0 | L59: =дефляторы!J45 -> 0
A60: Оборот малых предприятий - РАЗДЕЛ D: Обрабатывающие производства | B60: млн. руб. | C60: 855.53884 | D60: 0 | E60: 1219.994 | F60: =E60*F61%*F62% -> 1330.769455 | G60: =F60*G61%*G62% -> 1451.603322 | H60: 1576.513788 | I60: 1712.172799 | J60: 1851.20123 | K60: 2001.51877 | L60: 2154.134576
A61: Индекс производства - РАЗДЕЛ D: Обрабатывающие производства | B61: % к пред. году | C61: 104 | D61: 0 | E61: 68 | F61: 101 | G61: 101 | H61: 101.5 | I61: 101.5 | J61: 102 | K61: 102 | L61: 102.5
A62: Индекс-дефлятор | B62: % к пред. году | C62: 123.5 | D62: =дефляторы!C43 -> 0 | E62: =дефляторы!C11 -> 109.8 | F62: =дефляторы!D11 -> 108 | G62: =дефляторы!E11 -> 108 | H62: =дефляторы!F11 -> 107 | I62: =дефляторы!G11 -> 107 | J62: =дефляторы!H11 -> 106 | K62: =дефляторы!I11 -> 106 | L62: =дефляторы!J11 -> 105
A63: Оборот малых предприятий - РАЗДЕЛ E: Производство и распределение электроэнергии, газа и воды | B63: млн. руб. | C63: 0 | D63: 0 | E63: 0 | F63: 0 | G63: 0 | H63: 0 | I63: 0 | J63: 0 | K63: 0 | L63: 0
A64: Индекс производства - РАЗДЕЛ E: Производство и распределение электроэнергии, газа и воды | B64: % к пред. году | C64: 0 | D64: 0 | E64: 0 | F64: 0 | G64: 0 | H64: 0 | I64: 0 | J64: 0 | K64: 0 | L64: 0
A65: Индекс-дефлятор | B65: % к пред. году | C65: 121 | D65: =дефляторы!C44 -> 0 | E65: 0 | F65: =дефляторы!D44 -> 0 | G65: =дефляторы!E44 -> 0 | H65: =дефляторы!F44 -> 0 | I65: =дефляторы!G44 -> 0 | J65: =дефляторы!H44 -> 0 | K65: =дефляторы!I44 -> 0 | L65: =дефляторы!J44 -> 0
A66: Оборот малых предприятий - РАЗДЕЛ F: Строительство | B66: млн. руб. | C66: 826.049202 | D66: =C66*D67%*D68% -> 0 | E66: 0 | F66: =D66*F67%*F68% -> 0 | G66: =F66*G67%*G68% -> 0 | H66: =F66*H67%*H68% -> 0 | I66: =G66*I67%*I68% -> 0 | J66: =H66*J67%*J68% -> 0 | K66: =I66*K67%*K68% -> 0 | L66: =J66*L67%*L68% -> 0
A67: Индекс производства - РАЗДЕЛ F: Строительство | B67: % к пред. году | C67: 106 | D67: 0 | E67: 0 | F67: 0 | G67: 0 | H67: 0 | I67: 0 | J67: 0 | K67: 0 | L67: 0
A68: Индекс-дефлятор | B68: % к пред. году | C68: 117.7 | D68: =дефляторы!C41 -> 0 | E68: 0 | F68: =дефляторы!D41 -> 0 | G68: =дефляторы!E41 -> 0 | H68: =дефляторы!F41 -> 0 | I68: =дефляторы!G41 -> 0 | J68: =дефляторы!H41 -> 0 | K68: =дефляторы!I41 -> 0 | L68: =дефляторы!J41 -> 0
A69: Оборот малых предприятий - РАЗДЕЛ G: Оптовая и розничная торговля; ремонт автотранспортных средств, мотоциклов, бытовых изделий и предметов личного пользования | B69: млн. руб. | C69: 3023.914695 | D69: =C69*D70%*D71% -> 0 | E69: 0 | F69: =D69*F70%*F71% -> 0 | G69: =F69*G70%*G71% -> 0 | H69: =F69*H70%*H71% -> 0 | I69: =G69*I70%*I71% -> 0 | J69: =H69*J70%*J71% -> 0 | K69: =I69*K70%*K71% -> 0 | L69: =J69*L70%*L71% -> 0
A70: Индекс производства - РАЗДЕЛ G: Оптовая и розничная торговля; ремонт автотранспортных средств, мотоциклов, бытовых изделий и предметов личного пользования | B70: % к пред. году | C70: 107 | D70: 0 | E70: 0 | F70: 0 | G70: 0 | H70: 0 | I70: 0 | J70: 0 | K70: 0 | L70: 0
A71: Индекс-дефлятор | B71: % к пред. году | C71: 108.3 | D71: =дефляторы!C41 -> 0 | E71: 0 | F71: =дефляторы!D41 -> 0 | G71: =дефляторы!E41 -> 0 | H71: =дефляторы!F41 -> 0 | I71: =дефляторы!G41 -> 0 | J71: =дефляторы!H41 -> 0 | K71: =дефляторы!I41 -> 0 | L71: =дефляторы!J41 -> 0

Sheet инвест
A1: Показатели | B1: Единица измерения | C1: 2009 отчет | D1: 2010 | E1: 2010 отчет | F1: 2011 | G1: 2011 отчет | H1: 2012 оценка | I1: прогноз
I2: 2013 | K2: 2014 | M2: 2015
I3: вариант 1 | J3: вариант 2 | K3: вариант 1 | L3: вариант 2 | M3: вариант 1 | N3: вариант 2
A4: 6. Инвестиции
A5: Объем инвестиций (в основной капитал) за счет всех источников финансирования | B5: млн. руб. | C5: 1044.9 | E5: =E8*1.08 -> 1257.498 | G5: =G8*1.09 -> 13655.302 | H5: =H8*1.1 -> 14259.56056 | I5: =I8*1.08 -> 3126.894036 | J5: 3289.11429 | K5: 3441.154971 | L5: 3703.25292 | M5: 3714.128984 | N5: 4085.491952
A6: Индекс физического объема | B6: % к пред. году в соп-х ценах | C6: 42.8 | E6: =E5/C5/E7%*100 -> 119.7475157 | F6: =F5/D5/F7%*100 ->  | G6: =G5/E5*100/G7% -> 960.9826857 | H6: =H5/G5*100/H7% -> 97.68483051 | I6: =I5/H5*100/I7% -> 20.49383543 | J6: =J5/H5*100/J7% -> 21.73989483 | K6: =K5/I5*100/K7% -> 103.3335761 | L6: =L5/J5*100/L7% -> 106.7215071 | M6: =M5/K5*100/M7% -> 102.0157162 | N6: =N5/L5*100/N7% -> 105.1684558
A7: Индекс-дефлятор | B7: % к пред. году | C7: 96.1 | E7: =E10 -> 100.5 | F7: =F10 -> 241.0787134 | G7: 113 | H7: 106.9 | I7: 107 | J7: 106.1 | K7: 106.5 | L7: 105.5 | M7: 105.8 | N7: 104.9
A8: Объем инвестиций в основной капитал за счет всех источников финансирования (без субъектов малого предпринимательства и параметров неформальной деятельности) - всего | B8: млн. руб. | C8: =C16+C22+C52+C54+C56+C58+C60+C62+C64+C66+C68+C70+C72+C74 -> 967.42 | D8: =D16+D22+D52+D54+D56+D58+D60+D62+D64+D66+D68+D70+D72+D74 -> 1421.753601 | E8: =E16+E22+E52+E54+E56+E58+E60+E62+E64+E66+E68+E70+E72+E74 -> 1164.35 | F8: =F16+F22+F52+F54+F56+F58+F60+F62+F64+F66+F68+F70+F72+F74 -> 2884.035998 | G8: 12527.8 | H8: =H16+H22+H52+H54+H56+H58+H60+H62+H64+H66+H68+H70+H72+H74 -> 12963.23687 | I8: 2895.272255 | J8: 3045.476195 | K8: 3186.254603 | L8: 3428.937889 | M8: 3439.008319 | N8: 3782.862918
A9: Индекс физического объема | B9: % к пред. году в соп-х ценах | C9: 42.8 | D9: 1164.35 | E9: 119.7 | F9: 2807 | G9: =G8/E8*100/G10% -> 952.1663308 | H9: =H8/G8*100/H10% -> 96.7967866 | I9: =I8/H8*100/I10% -> 20.87335091 | J9: =J8/H8*100/J10% -> 22.14248547 | K9: =K8/I8*100/K10% -> 103.3335761 | L9: =L8/J8*100/L10% -> 106.7215071 | M9: =M8/K8*100/M10% -> 102.0157162 | N9: =N8/L8*100/N10% -> 105.1684558
A10: Индекс-дефлятор | B10: % к пред. году | C10: 96.1 | E10: 100.5 | F10: =F9/E8*100 -> 241.0787134 | G10: 113 | H10: 106.9 | I10: 107 | J10: 106.1 | K10: 106.5 | L10: 105.5 | M10: 105.8 | N10: 104.9
A11: в том числе по видам экономической деятельности (без субъектов малого предпринимательства и параметров неформальной деятельности):
A12: РАЗДЕЛ A: Сельское хозяйство, охота и лесное хозяйство | B12: млн. руб.
A13: Индекс физического объема | B13: % к пред. году в соп-х ценах
A14: РАЗДЕЛ B: Рыболовство, рыбоводство | B14: млн. руб.
A15: Индекс физического объема | B15: % к пред. году в соп-х ценах
A16: РАЗДЕЛ C: Добыча полезных ископаемых | B16: млн. руб.
A17: Индекс физического объема | B17: % к пред. году в соп-х ценах
A18: Подраздел CA: Добыча топливно-энергетических полезных ископаемых | B18: млн. руб.
A19: Индекс физического объема | B19: % к пред. году в соп-х ценах
A20: Подраздел CB: Добыча полезных ископаемых, кроме топливно-энергетических | B20: млн. руб.
A21: Индекс физического объема | B21: % к пред. году в соп-х ценах
A22: РАЗДЕЛ D: Обрабатывающие производства | B22: млн. руб. | C22: 415.62 | D22: =D24+D26+D28+D30+D32+D34+D36+D38+D40+D42+D44+D46+D48+D50 -> 464.421555 | E22: 380.3396293 | F22: 1752.433927 | G22: 9942.305028 | H22: 11185.97879 | I22: 1049.058506 | J22: 1149.839668 | K22: 1156.541817 | L22: 1292.943971 | M22: 1293.183662 | N22: 1474.971763
A23: Индекс физического объема | B23: % к пред. году в соп-х ценах
A24: Подраздел DA: Производство пищевых продуктов, включая напитки, и табака | B24: млн. руб. | C24: 43.9 | D24: =C24*D25%*$E$10% -> 46.325475 | E24: =D24/$D$8*$D$9 -> 37.93840703 | F24: =D24*F25% -> 23.1627375 | G24: =E24/$F$8*$F$9 -> 36.9250275 | H24: =F24/$F$8*$F$9 -> 22.5440335 | I24: =H24*I25%*$I$10% -> 24.12211585 | J24: =H24*J25%*$J$10% -> 24.15841174 | K24: =I24*K25%*$J$10% -> 25.84950057 | L24: =J24*L25%*$J$10% -> 26.14471636 | M24: =K24*M25%*$J$10% -> 27.9748465 | N24: =L24*N25%*$J$10% -> 28.57173038
A25: Индекс физического объема | B25: % к пред. году в соп-х ценах | C25: 34.5 | D25: 105 | E25: =E24/C24*100/$E$10% -> 85.99011102 | F25: 50 | G25: =G24/E24*100/$G$10% -> 86.13175419 | H25: =H24/G24*100/$H$10% -> 57.11275216 | I25: 100 | J25: 101 | K25: 101 | L25: 102 | M25: 102 | N25: 103
A26: Подраздел DB: Текстильное и швейное производство | B26: млн. руб. | C26: 0.1 | D26: =C26*D27%*$E$10% -> 0.101505 | E26: =D26/$D$8*$D$9 -> 0.08312786876 | F26: =D26*F27% -> 0.03552675 | G26: 0.2 | H26: 0.3 | I26: =H26*I27%*$I$10% -> 0.321 | J26: =H26*J27%*$J$10% -> 0.3230745 | K26: =I26*K27%*$J$10% -> 0.34739262 | L26: =J26*L27%*$J$10% -> 0.3599211467 | M26: =K26*M27%*$J$10% -> 0.3759552412 | N26: =L26*N27%*$J$10% -> 0.3971513901
A27: Индекс физического объема | B27: % к пред. году в соп-х ценах | C27: 33.2 | D27: 101 | E27: =E26/C26*100/$E$10% -> 82.71429727 | F27: 35 | G27: =G26/E26*100/$G$10% -> 212.9143368 | H27: =H26/G26*100/$H$10% -> 140.3180543 | I27: 100 | J27: 101.5 | K27: 102 | L27: 105 | M27: 102 | N27: 104
A28: Подраздел DC: Производство кожи, изделий из кожи и производство обуви | B28: млн. руб.
A29: Индекс физического объема | B29: % к пред. году в соп-х ценах
A30: Подраздел DD: Обработка древесины и производство изделий из дерева | B30: млн. руб. | C30: 0.2 | D30: =C30*D31%*$E$10% -> 0.201 | E30: =D30/$D$8*$D$9 -> 0.1646096411 | F30: =D30*F31% -> 0.03015 | G30: 0.2 | H30: 0.2 | I30: =H30*I31%*$I$10% -> 0.2247 | J30: =H30*J31%*$J$10% -> 0.224932 | K30: =I30*K31%*$J$10% -> 0.252711102 | L30: =J30*L31%*$J$10% -> 0.2553585516 | M30: =K30*M31%*$J$10% -> 0.2868953328 | N30: =L30*N31%*$J$10% -> 0.2980289656
A31: Индекс физического объема | B31: % к пред. году в соп-х ценах | C31: 32.9 | D31: 100 | E31: =E30/C30*100/$E$10% -> 81.89534383 | F31: 15 | G31: =G30/E30*100/$G$10% -> 107.5217401 | H31: =H30/G30*100/$H$10% -> 93.5453695 | I31: 105 | J31: 106 | K31: 106 | L31: 107 | M31: 107 | N31: 110
A32: Подраздел DE: Целлюлозно-бумажное производство; издательская и полиграфическая деятельность | B32: млн. руб.
A33: Индекс физического объема | B33: % к пред. году в соп-х ценах
A34: Подраздел DF: Производство кокса, нефтепродуктов | B34: млн. руб.
A35: Индекс физического объема | B35: % к пред. году в соп-х ценах
A36: Подраздел DG: Химическое производство | B36: млн. руб. | C36: 269.5 | D36: =C36*D37%*$E$10% -> 289.806825 | E36: =D36/$D$8*$D$9 -> 237.3382958 | F36: =D36*F37% -> 1593.937537 | G36: 9422.322 | H36: 10677.7 | I36: 500 | J36: 600 | K36: =I36*K37%*$J$10% -> 557.025 | L36: =J36*L37%*$J$10% -> 681.162 | M36: =K36*M37%*$J$10% -> 638.283807 | N36: =L36*N37%*$J$10% -> 787.7570414
A37: Индекс физического объема | B37: % к пред. году в соп-х ценах | C37: 35.2 | D37: 107 | E37: =E36/C36*100/$E$10% -> 87.6280179 | F37: 550 | G37: =G36/E36*100/$G$10% -> 3513.271226 | H37: =H36/G36*100/$H$10% -> 106.0088365 | I37: 105 | J37: 106.5 | K37: 105 | L37: 107 | M37: 108 | N37: 109
A38: Подраздел DH: Производство резиновых и пластмассовых изделий | B38: млн. руб.
A39: Индекс физического объема | B39: % к пред. году в соп-х ценах
A40: Подраздел DI: Производство прочих неметаллических минеральных продуктов | B40: млн. руб. | C40: 101.4 | D40: =C40*D41%*$E$10% -> 127.38375 | E40: =D40/$D$8*$D$9 -> 104.3213601 | F40: =D40*F41% -> 135.026775 | G40: 482.658 | H40: 485 | I40: =H40*I41%*$I$10% -> 524.1395 | J40: =H40*J41%*$J$10% -> 524.8767 | K40: =I40*K41%*$J$10% -> 572.7953698 | L40: =J40*L41%*$J$10% -> 584.7388876 | M40: =K40*M41%*$J$10% -> 625.967964 | N40: =L40*N41%*$J$10% -> 657.6324374
A41: Индекс физического объема | B41: % к пред. году в соп-х ценах | C41: 41.1 | D41: 125 | E41: =E40/C40*100/$E$10% -> 102.3691798 | F41: 106 | G41: =G40/E40*100/$G$10% -> 409.4376964 | H41: =H40/G40*100/$H$10% -> 93.99927943 | I41: 101 | J41: 102 | K41: 103 | L41: 105 | M41: 103 | N41: 106
A42: Подраздел DJ: Металлургическое производство и производство готовых металлических изделий | B42: млн. руб. | C42: 0.6 | D42: =C42*D43%*$E$10% -> 0.603 | E42: =D42/$D$8*$D$9 -> 0.4938289233 | F42: =D42*F43% -> 0.2412 | G42: 0 | H42: =F42/$F$8*$F$9 -> 0.234757264 | I42: =H42*I43%*$I$10% -> 0.2511902724 | J42: =H42*J43%*$J$10% -> 0.2565497808 | K42: =I42*K43%*$J$10% -> 0.2718431366 | L42: =J42*L43%*$J$10% -> 0.2830872901 | M42: =K42*M43%*$J$10% -> 0.2941940793 | N42: =L42*N43%*$J$10% -> 0.3153733955
A43: Индекс физического объема | B43: % к пред. году в соп-х ценах | C43: 32.9 | D43: 100 | E43: =E42/C42*100/$E$10% -> 81.89534383 | F43: 40 | G43: =G42/D42*100/$G$10% -> 0 | H43: =H42/E42*100/$H$10% -> 44.46976263 | I43: 100 | J43: 103 | K43: 102 | L43: 104 | M43: 102 | N43: 105
A44: Подраздел DK: Производство машин и оборудования | B44: млн. руб.
A45: Индекс физического объема | B45: % к пред. году в соп-х ценах
A46: Подраздел DL: Производство электрооборудования, электронного и оптического оборудования | B46: млн. руб.
A47: Индекс физического объема | B47: % к пред. году в соп-х ценах
A48: Подраздел DM: Производство транспортных средств и оборудования | B48: млн. руб.
A49: Индекс физического объема | B49: % к пред. году в соп-х ценах
A50: Подраздел DN: Прочие производства | B50: млн. руб.
A51: Индекс физического объема | B51: % к пред. году в соп-х ценах
A52: РАЗДЕЛ E: Производство и распределение электроэнергии, газа и воды | B52: млн. руб. | C52: 28.3 | D52: =C52*D53%*$E$10% -> 55.460925 | E52: =D52/$D$8*$D$9 -> 45.41991522 | F52: =D52*F53% -> 871.845741 | G52: 1630.676 | H52: 780 | I52: =H52*I53%*$I$10% -> 851.292 | J52: =H52*J53%*$J$10% -> 868.959 | K52: =I52*K53%*$J$10% -> 921.2852282 | L52: =J52*L53%*$J$10% -> 968.0637739 | M52: =K52*M53%*$J$10% -> 997.0332997 | N52: =L52*N53%*$J$10% -> 1078.471447
A53: Индекс физического объема | B53: % к пред. году в соп-х ценах | C53: 64.1 | D53: 195 | E53: =E52/C52*100/$E$10% -> 159.6959205 | F53: 1572 | G53: =G52/E52*100/$G$10% -> 3177.188022 | H53: =H52/G52*100/$H$10% -> 44.74548483 | I53: 102 | J53: 105 | K53: 102 | L53: 105 | M53: 102 | N53: 105
A54: РАЗДЕЛ F: Строительство | B54: млн. руб. | C54: 18.3 | D54: =C54*D55%*$E$10% -> 19.678905 | E54: =D54/$D$8*$D$9 -> 16.11610691 | F54: =D54*F55% -> 5.70688245 | G54: 17.5 | H54: 18.9 | I54: =H54*I55/100 -> 18.9 | J54: =H54*J55%*$J$10% -> 20.1531645 | K54: =I54*K55%*$J$10% -> 20.253429 | L54: =J54*L55%*$J$10% -> 21.70324515 | M54: =K54*M55%*$J$10% -> 21.91866593 | N54: =L54*N55%*$J$10% -> 23.60282168
A55: Индекс физического объема | B55: % к пред. году в соп-х ценах | C55: 35.2 | D55: 107 | E55: =E54/C54*100/$E$10% -> 87.6280179 | F55: 29 | G55: =G54/E54*100/$G$10% -> 96.09470667 | H55: =H54/F54*100/$G$10% -> 293.0788195 | I55: 100 | J55: 100.5 | K55: 101 | L55: 101.5 | M55: 102 | N55: 102.5
A56: РАЗДЕЛ G: Оптовая и розничная торговля; ремонт автотранспортных средств, мотоциклов, бытовых изделий и предметов личного пользования | B56: млн. руб. | C56: 10.6 | D56: =C56*D57%*$E$10% -> 10.919325 | E56: =D56/$D$8*$D$9 -> 8.942418753 | F56: =D56*F57% -> 7.09756125 | G56: 5.751 | H56: 9 | I56: =H56*I57%*$I$10% -> 8.5707 | J56: =H56*J57%*$J$10% -> 9.549 | K56: =I56*K57%*$J$10% -> 9.184447827 | L56: =J56*L57%*$J$10% -> 10.53674856 | M56: =K56*M57%*$J$10% -> 9.939593127 | N56: =L56*N57%*$J$10% -> 11.73846473
A57: Индекс физического объема | B57: % к пред. году в соп-х ценах | C57: 33.7 | D57: 102.5 | E57: =E56/C56*100/$E$10% -> 83.94272743 | F57: 65 | G57: =G56/E56*100/$G$10% -> 56.91279587 | H57: =H56/G56*100/$H$10% -> 146.3933795 | I57: 89 | J57: 100 | K57: 101 | L57: 104 | M57: 102 | N57: 105
A58: РАЗДЕЛ H: Гостиницы и рестораны | B58: млн. руб. | C58: 8.6 | D58: =C58*D59%*$E$10% -> 8.98872 | E58: =D58/$D$8*$D$9 -> 7.36134315 | F58: =D58*F59% -> 5.1235704 | G58: 6.8 | H58: 7 | I58: =H58*I59%*$I$10% -> 6.8159 | J58: =H58*J59%*$J$10% -> 7.427 | K58: =I58*K59%*$J$10% -> 7.376303298 | L58: =J58*L59%*$J$10% -> 8.27404935 | M58: =K58*M59%*$J$10% -> 7.982782955 | N58: =L58*N59%*$J$10% -> 9.217704678
A59: Индекс физического объема | B59: % к пред. году в соп-х ценах | C59: 34.2 | D59: 104 | E59: =E58/C58*100/$E$10% -> 85.17115759 | F59: 57 | G59: =G58/E58*100/$G$10% -> 81.74729791 | H59: =H58/G58*100/$H$10% -> 96.2967039 | I59: 91 | J59: 100 | K59: 102 | L59: 105 | M59: 102 | N59: 105
A60: РАЗДЕЛ I: Транспорт и связь | B60: млн. руб. | C60: 6.4 | D60: =C60*D61%*$E$10% -> 7.0752 | E60: =D60/$D$8*$D$9 -> 5.794259367 | F60: =D60*F61% -> 1.698048 | G60: 149.626 | H60: 149.8 | I60: =H60*I61%*$I$10% -> 136.2431 | J60: =H60*J61%*$J$10% -> 150.99091 | K60: =I60*K61%*$J$10% -> 150.3360863 | L60: =J60*L61%*$J$10% -> 168.2114233 | M60: =K60*M61%*$J$10% -> 162.6967193 | N60: =L60*N61%*$J$10% -> 187.3959361
A61: Индекс физического объема | B61: % к пред. году в соп-х ценах | C61: 36.1 | D61: 110 | E61: =E60/C60*100/$E$10% -> 90.08487822 | F61: 24 | G61: =G60/E60*100/$G$10% -> 2285.234074 | H61: =H60/G60*100/$H$10% -> 93.65415337 | I61: 85 | J61: 95 | K61: 104 | L61: 105 | M61: 102 | N61: 105
A62: РАЗДЕЛ J: Финансовая деятельность | B62: млн. руб. | C62: 6.2 | D62: =C62*D63%*$E$10% -> 6.324465 | E62: =D62/$D$8*$D$9 -> 5.179442357 | F62: =D62*F63% -> 4.74334875 | G62: 0 | H62: =F62/$F$8*$F$9 -> 4.616648319 | I62: =H62*I63%*$I$10% -> 4.939813701 | J62: =H62*J63%*$J$10% -> 4.996229144 | K62: =I62*K63%*$J$10% -> 5.398376607 | L62: =J62*L63%*$J$10% -> 5.566049078 | M62: =K62*M63%*$J$10% -> 6.014061459 | N62: =L62*N63%*$J$10% -> 6.318968536
A63: Индекс физического объема | B63: % к пред. году в соп-х ценах | C63: 33.4 | D63: 101.5 | E63: =E62/C62*100/$E$10% -> 83.12377399 | F63: 75 | G63: =G62/E62*100/$G$10% -> 0 | H63: =H62/E62*100/$H$10% -> 83.38080494 | I63: 100 | J63: 102 | K63: 103 | L63: 105 | M63: 105 | N63: 107
A64: РАЗДЕЛ K: Операции с недвижимым имуществом, аренда и предоставление услуг | B64: млн. руб. | C64: 171.7 | D64: =C64*D65%*$E$10% -> 176.00967 | E64: =D64/$D$8*$D$9 -> 144.1437244 | F64: =D64*F65% -> 66.8836746 | G64: 83 | H64: =F64/$F$8*$F$9 -> 65.09713289 | I64: =H64*I65%*$I$10% -> 66.17123558 | J64: =H64*J65%*$J$10% -> 69.06805799 | K64: =I64*K65%*$J$10% -> 75.12221862 | L64: =J64*L65%*$J$10% -> 79.87651839 | M64: =K64*M65%*$J$10% -> 86.87809461 | N64: =L64*N65%*$J$10% -> 93.22388461
A65: Индекс физического объема | B65: % к пред. году в соп-х ценах | C65: 33.5 | D65: 102 | E65: =E64/C64*100/$E$10% -> 83.53325071 | F65: 38 | G65: =G64/E64*100/$G$10% -> 50.95700678 | H65: =H64/G64*100/$H$10% -> 73.36789578 | I65: 95 | J65: 100 | K65: 107 | L65: 109 | M65: 109 | N65: 110
A66: РАЗДЕЛ L: Государственное управление и обеспечение военной безопасности; обязательное социальное обеспечение | B66: млн. руб.
A67: Индекс физического объема | B67: % к пред. году в соп-х ценах
A68: РАЗДЕЛ M: Образование | B68: млн. руб. | C68: 1.2 | D68: =C68*D69%*$E$10% -> 1.29042 | E68: =D68/$D$8*$D$9 -> 1.056793896 | F68: =D68*F69% -> 1.225899 | G68: 45.47 | H68: 64.5443 | I68: 27.5 | J68: 30 | K68: 55 | L68: 55.5 | M68: 2.5 | N68: 3
A69: Индекс физического объема | B69: % к пред. году в соп-х ценах | C69: 35.2 | D69: 107 | E69: =E68/C68*100/$E$10% -> 87.6280179 | F69: 95 | G69: =G68/E68*100/$G$10% -> 3807.642929 | H69: =H68/G68*100/$H$10% -> 132.7869011 | I69: =I68/H68*100 -> 42.60639592 | J69: 109.0909091 | K69: 183.3333333 | L69: 100.9090909 | M69: 4.504504505 | N69: 120
A70: РАЗДЕЛ N: Здравоохранение и предоставление социальных услуг | B70: млн. руб. | C70: 18.9 | D70: =C70*D71%*$E$10% -> 20.666016 | E70: =D70/$D$8*$D$9 -> 16.92450486 | F70: =D70*F71% -> 17.5661136 | G70: 13.18 | H70: 13.3 | I70: =H70*I71%*$I$10% -> 14.231 | J70: =H70*J71%*$J$10% -> 14.816865 | K70: =I70*K71%*$J$10% -> 15.70305464 | L70: =J70*L71%*$J$10% -> 16.50672845 | M70: =K70*M71%*$J$10% -> 17.49398802 | N70: =L70*N71%*$J$10% -> 18.73959361
A71: Индекс физического объема | B71: % к пред. году в соп-х ценах | C71: 35.8 | D71: 108.8 | E71: =E70/C70*100/$E$10% -> 89.10213409 | F71: 85 | G71: =G70/E70*100/$G$10% -> 68.91614798 | H71: =H70/G70*100/$H$10% -> 94.39707241 | I71: 100 | J71: 105 | K71: 104 | L71: 105 | M71: 105 | N71: 107
A72: РАЗДЕЛ O: Предоставление прочих коммунальных, социальных и персональных услуг | B72: млн. руб. | C72: 281.6 | D72: =C72*D73%*$E$10% -> 650.9184 | E72: =D72/$D$8*$D$9 -> 533.0718618 | F72: =D72*F73% -> 149.711232 | G72: 650.229 | H72: 665 | I72: =H72*I73%*$I$10% -> 711.55 | J72: =H72*J73%*$J$10% -> 719.6763 | K72: =I72*K73%*$J$10% -> 770.053641 | L72: =J72*L73%*$J$10% -> 801.755382 | M72: =K72*M73%*$J$10% -> 833.3674514 | N72: =L72*N73%*$J$10% -> 876.1823341
A73: Индекс физического объема | B73: % к пред. году в соп-х ценах | C73: 75.6 | D73: 230 | E73: =E72/C72*100/$E$10% -> 188.3592908 | F73: 23 | G73: =G72/E72*100/$G$10% -> 107.9449011 | H73: =H72/G72*100/$H$10% -> 95.67040338 | I73: 100 | J73: 102 | K73: 102 | L73: 105 | M73: 102 | N73: 103
A74: РАЗДЕЛ Q: Деятельность экстерриториальных организаций | B74: млн. руб.
A75: Индекс физического объема | B75: % к пред. году в соп-х ценах
A76: Объем инвестиций в основной капитал по источникам финансирования без субъектов малого предпринимательства и параметров неформальной деятельности:
A77: Объем инвестиций в основной капитал, финансируемых за счет собственных средств организаций | B77: млн. руб. | C77: 613.07 | E77: =E79+E80 -> 864.05 | F77: =F79+F80 -> 0 | G77: =G79+G80 -> 1248.0335 | H77: =H79+H80 -> 255.922125 | I77: 235.1401095 | J77: 244.328568 | K77: 233.9191047 | L77: 255.8730408 | M77: 257.3110152 | N77: 300.603457
A78: из них:
A79: прибыль | B79: млн. руб. | C79: 353.3 | E79: =C79*1.6 -> 565.28 | F79: =D79*1.37 -> 0 | G79: =E79*1.6 -> 904.448 | H79: =G79*0.15 -> 135.6672 | I79: =H79*0.9 -> 122.10048 | J79: =H79*0.95 -> 128.88384 | K79: =I79*0.99 -> 120.8794752 | L79: =J79*1 -> 128.88384 | M79: =K79*1.1 -> 132.9674227 | N79: =L79*1.15 -> 148.216416
A80: амортизация | B80: млн. руб. | C80: 259.8 | E80: =C80*1.15 -> 298.77 | F80: =D80*1.15 -> 0 | G80: =E80*1.15 -> 343.5855 | H80: =G80*0.35 -> 120.254925 | I80: =H80*0.94 -> 113.0396295 | J80: =H80*0.96 -> 115.444728 | K80: =I80*1 -> 113.0396295 | L80: =J80*1.1 -> 126.9892008 | M80: =K80*1.1 -> 124.3435924 | N80: =L80*1.2 -> 152.387041
A81: Объем инвестиций в основной капитал, финансируемых за счет привлеченных средств | B81: млн. руб. | C81: 2106.18 | E81: =E83+E85+E86+E91+E92 -> 3357.332746 | F81: =F83+F85+F86+F91+F92 -> 0 | G81: =G83+G85+G86+G91+G92 -> 369.1 | H81: 530.282418 | I81: 601.5099455 | J81: 613.8415939 | K81: 702.109846 | L81: 724.4101779 | M81: 811.6051945 | N81: 838.0553815
A82: из них:
A83: кредиты банков | B83: млн. руб. | C83: 416.9 | E83: 416.9 | G83: 250 | H83: =G83*0.25 -> 62.5 | I83: =H83*1.1 -> 68.75 | J83: =H83*1.12 -> 70 | K83: =I83*1.07 -> 73.5625 | L83: =J83*1.11 -> 77.7 | M83: =K83*1.11 -> 81.654375 | N83: =L83*1.13 -> 87.801
A84: в том числе кредиты иностранных банков | B84: млн. руб.
A85: заемные средства других организаций | B85: млн. руб.
A86: бюджетные средства | B86: млн. руб. | C86: 175.8 | E86: =E88+E90 -> 65.1 | F86: =F88+F90 -> 0 | G86: =G88+G90 -> 119.1 | H86: 172.3 | I86: 101 | J86: 104 | K86: 107 | L86: 112 | M86: 109 | N86: 117
A87: в том числе:
A88: из федерального бюджета | B88: млн. руб. | C88: 25.4 | E88: 25.4 | G88: 0 | H88: 15.3 | I88: =SUM(I89)/SUM(H89)*H88 -> 16 | J88: =SUM(J89)/SUM(H89)*H88 -> 17 | K88: =SUM(K89)/SUM(I89)*I88 -> 18 | L88: =SUM(L89)/SUM(J89)*J88 -> 20 | M88: =SUM(M89)/SUM(K89)*K88 -> 19 | N88: =SUM(N89)/SUM(L89)*L88 -> 22
A89: из него по федеральной адресной инвестиционной программе | B89: млн. руб. | C89: 25.4 | E89: 25.4 | G89: 0 | H89: 15.3 | I89: 16 | J89: 17 | K89: 18 | L89: 20 | M89: 19 | N89: 22
A90: из бюджетов субъектов федерации | B90: млн. руб. | C90: 39.7 | E90: 39.7 | G90: 119.1 | H90: 157 | I90: 85 | J90: 87 | K90: 89 | L90: 92 | M90: 90 | N90: 95
A91: средства внебюджетных фондов | B91: млн. руб. | C91: 95 | E91: 95.0327455 | G91: 0 | H91: =E91*0.99 -> 94.08241804 | I91: =H91*0.97 -> 91.2599455 | J91: =H91*0.99 -> 93.14159386 | K91: =I91*0.99 -> 90.34734605 | L91: =J91*0.99 -> 92.21017793 | M91: =K91*1.01 -> 91.25081951 | N91: =L91*1.02 -> 94.05438148
A92: прочие | B92: млн. руб. | C92: 1529.2 | E92: =C92*1.5+486.5 -> 2780.3 | G92: 0 | H92: 201.4 | I92: 340.5 | J92: 346.7 | K92: 431.2 | L92: 442.5 | M92: 529.7 | N92: 539.2
A93: в том числе: средства от эмиссии акций | B93: млн. руб.
A95: Объем инвестиций в основной капитал, направляемый на реализацию федеральных целевых программ за счет всех источников финансирования | B95: млн. руб. | C95: 65.1 | E95: =E97+E98 -> 65.1 | F95: =F97+F98 -> 0 | G95: =G97+G98 -> 119.1 | H95: =H97+H98 -> 172.3 | I95: 101 | J95: 104 | K95: 107 | L95: 112 | M95: 109 | N95: 117
A96: в том числе:
A97: за счет федерального бюджета - всего | B97: млн. руб. | C97: 25.4 | E97: =E89 -> 25.4 | F97: =F89 -> 0 | G97: =G89 -> 0 | H97: 15.3 | I97: 16 | J97: 17 | K97: 18 | L97: 20 | M97: 19 | N97: 22
A98: за счет бюджета субъекта Российской Федерации - всего | B98: млн. руб. | C98: 39.7 | E98: =E90 -> 39.7 | F98: 0 | G98: 119.1 | H98: 157 | I98: 85 | J98: 87 | K98: 89 | L98: 92 | M98: 90 | N98: 95
A99: Иностранные инвестиции | B99: тыс. долл. США
B100: % к пред. году
A101: Прямые иностранные инвестиции | B101: тыс. долл. США
B102: % к пред. году
A103: Портфельные иностранные инвестиции | B103: тыс. долл. США
B104: % к пред. году
A105: Прочие (торговые кредиты, кредиты международных финансовых организаций, банковские вклады и др.) иностранные инвестиции | B105: тыс. долл. США
B106: % к пред. году
A108: Создание новой стоимости за год | B108: млн.руб. | C108: 1103.52 | E108: =C108*1.1 -> 1213.872 | G108: =G5 -> 13655.302 | H108: =H5 -> 14259.56056 | I108: =I5 -> 3126.894036 | J108: 3289.11429 | K108: 3441.154971 | L108: 3703.25292 | M108: 3714.128984 | N108: 4085.491952
A109: Ликвидация основных фондов по полной учетной стоимости за год | B109: млн.руб. | C109: 1015.46 | E109: =C109*1.11 -> 1127.1606 | G109: =E109*1.11 -> 1251.148266 | H109: =G109*0.9 -> 1126.033439 | I109: =H109*0.9 -> 1013.430095 | J109: =H109*1.005 -> 1131.663607 | K109: =I109*1.005 -> 1018.497246 | L109: =J109*1 -> 1131.663607 | M109: =K109*1 -> 1018.497246 | N109: =L109*0.98 -> 1109.030334
A110: Стоимость основных фондов по полной учетной стоимости на конец года | B110: млн.руб. | C110: 8603.2 | E110: =C110+E108-E109 -> 8689.9114 | G110: =E110+G108-G109 -> 21094.06513 | H110: =G110+H108-H109 -> 34227.59225 | I110: =H110+I108-I109 -> 36341.05619 | J110: =H110+J108-J109 -> 36385.04294 | K110: =I110+K108-K109 -> 38763.71392 | L110: =J110+L108-L109 -> 38956.63225 | M110: =K110+M108-M109 -> 41459.34566 | N110: =L110+N108-N109 -> 41933.09387

Sheet финансы
A1: Показатели | B1: Единица измерения | C1: 2009 отчет | D1: 2010 отчёт | E1: отчет 2010 | F1: отчет 2011 | G1: 2011 оценка | H1: прогноз
H2: 2012 | J2: 2013 | L2: 2014
H3: вариант 1 | I3: вариант 2 | J3: вариант 1 | K3: вариант 2 | L3: вариант 1 | M3: вариант 2
A4: 7. Финансы
A5: Доходы консолидированного бюджета субъекта Российской Федерации
A6: Прибыль прибыльных организаций | B6: млн.руб.
A7: Справочно: сальдо прибылей и убытков | B7: млн.руб.
A8: Амортизация основных фондов, начисленная за год | B8: млн.руб.
A9: Налоги на прибыль, доходы | B9: млн.руб. | C9: 160.7 | D9: 181.6 | E9: 181.6 | F9: 214.2 | G9: 220.5 | H9: 228.8 | I9: 300.2 | J9: 238.8 | K9: 239 | L9: 240 | M9: 243
A10: налог на прибыль организаций | B10: млн.руб.
A11: налог на доходы физических лиц | B11: млн.руб. | C11: 160.7 | D11: 181.6 | E11: 181.6 | F11: 214.2 | G11: 206 | H11: 228.8 | I11: 300.2 | J11: 238.8 | K11: 239 | L11: 240 | M11: 243
A12: Налоги и взносы на социальные нужды | B12: млн.руб.
A13: Налоги на товары (работы, услуги), реализуемые на территории Российской Федерации | B13: млн.руб.
A14: из них:
A15: налог на добавленную стоимость | B15: млн.руб.
A16: акцизы | B16: млн.руб.
A17: Специальные налоговые режимы | B17: млн.руб. | C17: 52.7 | D17: 55.5 | E17: 55.5 | F17: 0 | G17: 0 | H17: 0 | I17: 0 | J17: 0 | K17: 0 | L17: 0 | M17: 0
A18: Налоги на имущество | B18: млн.руб. | C18: 61.7 | D18: 7.6 | E18: 7.6 | F18: 67.2 | G18: 78.4 | H18: 81.6 | I18: 82 | J18: 84.8 | K18: 85 | L18: 86 | M18: 87
A19: Налоги, сборы и регулярные платежи за пользование природными ресурсами | B19: млн.руб. | C19: 1.4
A20: из них:
A21: налог на добычу полезных ископаемых | B21: млн.руб. | C21: 1.4 | D21: 1.9 | E21: 1.9 | F21: 2 | G21: 1.1 | H21: 1.2 | I21: 1.2 | J21: 1.2 | K21: 1.3 | L21: 1.3 | M21: 1.4
A22: Прочие налоговые доходы | B22: млн.руб. | C22: 11.1 | D22: 83.5 | E22: 83.5 | F22: 93.9 | G22: 78.8 | H22: 79.9 | I22: 80 | J22: 83.7 | K22: 84 | L22: 84.5 | M22: 85
A23: Неналоговые доходы | B23: млн.руб. | C23: 170.8 | D23: 270.9 | E23: 270.9 | F23: 218.3 | G23: 192.5 | H23: 185 | I23: 190 | J23: 192 | K23: 193 | L23: 194 | M23: 195
A24: Прочие доходы | B24: млн.руб. | C24: 159.7 | D24: 0 | F24: 0 | G24: 0 | H24: 0 | I24: 0 | J24: 0 | K24: 0 | L24: 0 | M24: 0
A25: Итого доходов | B25: млн.руб. | C25: 618.1 | D25: 601.1 | E25: 601.1 | F25: 595.6 | G25: 571.3 | H25: 576.5 | I25: 598 | J25: 599.7 | K25: 600 | L25: 601 | M25: 602
A26: Сальдо взаимоотношений с федеральным уровнем власти | B26: млн.руб.
A27: Средства, передаваемые на федеральный уровень власти | B27: млн.руб.
A28: в федеральный бюджет | B28: млн.руб.
A29: часть единого социального налога, централизуемая государственными внебюджетными фондами | B29: млн.руб.
A30: Средства, получаемые от федерального уровня власти | B30: млн.руб. | C30: 509.3 | D30: 637.2 | E30: 637.2 | F30: 517.8 | G30: 584.6 | H30: 339.1 | I30: 340 | J30: 341 | K30: 341.5 | L30: 342 | M30: 342.5
A31: из федерального бюджета | B31: млн.руб. | C31: 509.3 | D31: 637.2
A32: от государственных внебюджетных фондов | B32: млн.руб.
A33: Всего доходов | B33: млн.руб. | C33: 1127.4 | D33: 1238.3 | E33: 1238.3 | F33: 1113.5 | G33: 1155.9 | H33: 915.6 | I33: 920 | J33: 940.7 | K33: 945 | L33: 950 | M33: 955
A34: Расходы консолидированного бюджета субъекта Российской Федерации
A35: Расходы за чет средств, остающихся в распоряжении организаций | B35: млн.руб.
A36: из них:
A37: на инвестиции | B37: млн.руб.
A38: Затраты на государственные инвестиции | B38: млн.руб. | C38: 65.1 | D38: 13.5 | E38: 13.5 | F38: 191.9 | G38: 72.8 | H38: 192 | I38: 193 | J38: 194 | K38: 195 | L38: 196 | M38: 197
A39: из них за счет:
A40: средств федерального бюджета | B40: млн.руб. | C40: 25.4 | D40: 5.7 | E40: 5.7 | F40: 11.1 | G40: 1.8 | H40: 4.5 | I40: 4.6 | J40: 4.7 | K40: 4.8 | L40: 4.9 | M40: 5
A41: средств бюджета субъекта Федерации | B41: млн.руб. | C41: 18 | D41: 5.4 | E41: 5.4 | F41: 178.4 | G41: 57.8 | H41: 150 | I41: 151 | J41: 152 | K41: 153 | L41: 154 | M41: 155
A42: Общегосударственные вопросы | B42: млн.руб. | C42: 46.7 | D42: 38.9 | E42: 38.9 | F42: 48.6 | G42: 30.9 | H42: 30.2 | I42: 30.5 | J42: 31.1 | K42: 31.6 | L42: 32 | M42: 33
A43: обслуживание государственного и муниципального долга | B43: млн.руб. | C43: 9.3 | D43: 11.5 | E43: 11.5 | F43: 5.5 | G43: 6 | H43: 6.2 | I43: 6.3 | J43: 6.4 | K43: 6.5 | L43: 6.6 | M43: 6.7
A44: фундаментальные исследования | B44: млн.руб.
A45: Национальная оборона | B45: млн.руб.
A46: Национальная безопасность и правоохранительная деятельность | B46: млн.руб. | C46: 6.9 | D46: 6.9 | E46: 6.9 | F46: 9.2 | G46: 3.1 | H46: 3 | I46: 3 | J46: 3 | K46: 3.5 | L46: 3.6 | M46: 4
A47: Национальная экономика | B47: млн.руб. | C47: 26.9 | D47: 7.4 | E47: 7.4 | F47: 54.5 | G47: 8.5 | H47: 6.8 | I47: 7 | J47: 7.1 | K47: 7.2 | L47: 7.3 | M47: 7.5
A48: Жилищно-коммунальное хозяйство | B48: млн.руб. | C48: 201.8 | D48: 106.2 | E48: 106.2 | F48: 170.3 | G48: 131.9 | H48: 67.5 | I48: 68 | J48: 69.5 | K48: 70 | L48: 70.5 | M48: 71
A49: Охрана окружающей среды | B49: млн.руб. | C49: 1.1 | D49: 0.5 | E49: 0.5 | F49: 0.5 | G49: 2.1 | H49: 2.2 | I49: 2.3 | J49: 2.3 | K49: 2.4 | L49: 2.4 | M49: 2.5
A50: Социально-культурные мероприятия | B50: млн.руб. | C50: 893.3 | D50: 750.7 | E50: 750.7 | F50: 935.8 | G50: 990.7 | H50: 810.5 | I50: 815 | J50: 826.7 | K50: 827 | L50: 828 | M50: 830
A51: из них:
A52: образование | B52: млн.руб. | C52: 548.9 | D52: 581.9 | E52: 581.9 | F52: 681.5 | G52: 828 | H52: 746.6 | I52: 750 | J52: 760.4 | K52: 762 | L52: 763 | M52: 765
A53: культура, кинематография и средства массовой информации | B53: млн.руб. | C53: 27.9 | D53: 27.9 | E53: 27.9 | F53: 24.6 | G53: 32.5 | H53: 29.1 | I53: 29.5 | J53: 30 | K53: 30.5 | L53: 30.6 | M53: 31
A54: здравоохранение и спорт | B54: млн.руб. | C54: 278.3 | D54: 81.9 | E54: 81.9 | F54: 151.3
A55: социальная политика | B55: млн.руб. | C55: 38.2 | D55: 29.5 | E55: 29.5 | F55: 78.5 | G55: 130.3 | H55: 34.7 | I55: 35 | J55: 36.3 | K55: 36.5 | L55: 36.8 | M55: 37
A56: в том числе:
A57: пенсионное обеспечение | B57: млн.руб. | C57: 0.2 | D57: 0.1 | E57: 0.1 | F57: 0.1 | G57: 0.2 | H57: 0.2 | I57: 0.2 | J57: 0.2 | K57: 0.2 | L57: 0.2 | M57: 0.2
A58: социальное обслуживание населения | B58: млн.руб.
A59: социальное обеспечение населения | B59: млн.руб. | C59: 30.3 | D59: 18.9 | E59: 18.9 | F59: 63.8 | G59: 112.8 | H59: 18.8 | I59: 19 | J59: 19.6 | K59: 19.8 | L59: 20 | M59: 22
A60: борьба с беспризорностью, опека, попечительство | B60: млн.руб. | C60: 7.7 | D60: 10.5 | E60: 10.5 | F60: 0.3 | G60: 0.3 | H60: 0.3 | I60: 0.3 | J60: 0.4 | K60: 0.4 | L60: 0.4 | M60: 0.4
A61: другие вопросы в области социальной политики | B61: млн.руб. | E61: 0 | F61: 14.3 | G61: 17 | H61: 15.4 | I61: 16 | J61: 16.1 | K61: 16.2 | L61: 16.3 | M61: 16.5
A62: Прочие расходы | B62: млн.руб. | D62: 106.1 | E62: 106.1 | F62: 0.4
A63: Всего расходов | B63: млн.руб. | C63: 1176.7 | D63: 991.6 | E63: 991.6 | F63: 1219.3 | G63: 1205.9 | H63: 945.6 | I63: 950 | J63: 965.7 | K63: 966 | L63: 967 | M63: 968
A64: Превышение доходов над расходами (+), или расходов на доходами (-) | B64: млн.руб. | C64: -49.3 | D64: 246.7 | E64: 246.7 | F64: -105.8 | G64: =G33-G63 -> -50 | H64: =H33-H63 -> -30 | I64: -30 | J64: -25 | K64: -21 | L64: -17 | M64: -13

Sheet доход
A1: Показатели | B1: Единица измерения | C1: 2010 отчет | D1: 2011 отчет | E1: 2012оценка | F1: прогноз
F2: 2013 | H2: 2014 | J2: 2015
F3: вариант 1 | G3: вариант 2 | H3: вариант 1 | I3: вариант 2 | J3: вариант 1 | K3: вариант 2
A4: 8. Денежные доходы и расходы населения
A5: Денежные доходы населения | B5: млн.руб. | C5: =C7+C8+C9+C13+C14 -> 10060.56 | D5: =D7+D8+D9+D13+D14 -> 11603.91844 | E5: =E7+E8+E9+E13+E14 -> 12562.35004 | F5: 13436.9887 | G5: 13794.39263 | H5: 14156.3758 | I5: 14950.08228 | J5: 14996.38533 | K5: 16248.04363
A6: в том числе:
A7: доходы от предпринимательской деятельности | B7: млн.руб. | C7: 487.8 | D7: =C7*1.2 -> 585.36 | E7: =D7*0.98 -> 573.6528 | F7: =E7*1.15 -> 659.70072 | G7: =E7*1.17 -> 671.173776 | H7: =F7*1.1 -> 725.670792 | I7: =G7*1.15 -> 771.8498424 | J7: =H7*1.1 -> 798.2378712 | K7: =I7*1.15 -> 887.6273188
A8: оплата труда, включая скрытую заработную плату | B8: млн.руб. | C8: 6176.95 | D8: =труд!E28 -> 7232.203955 | E8: =труд!F28 -> 7920.290633 | F8: =труд!G28 -> 7943.772124 | G8: =труд!H28 -> 8216.582338 | H8: =труд!I28 -> 8132.902253 | I8: =труд!J28 -> 8710.637192 | J8: =труд!K28 -> 8376.968475 | K8: =труд!L28 -> 9243.680828
A9: социальные выплаты - всего | B9: млн.руб. | C9: 3295.49 | D9: =SUM(D10:D12) -> 3685.62 | E9: 3967.4364 | F9: 4732.18116 | G9: 4804.93024 | H9: 5194.946617 | I9: 5362.041496 | J9: 5715.22562 | K9: 6006.941703
A10: пенсии | B10: млн.руб. | C10: 2853.88 | D10: 3200.1 | E10: =E24*12*E29/1000000 -> 3399.786 | F10: =F24*12*F29/1000000 -> 4079.7432 | G10: 4180.7448 | H10: 4496.976 | I10: 4675.588512 | J10: 4968.49716 | K10: 5251.993421
A11: пособия и социальная помощь | B11: млн.руб. | C11: 439.2 | D11: =C11*1.1 -> 483.12 | E11: =D11*1.17 -> 565.2504 | F11: =E11*1.15 -> 650.03796 | G11: =E11*1.1 -> 621.77544 | H11: =F11*1.07 -> 695.5406172 | I11: =G11*1.1 -> 683.952984 | J11: =H11*1.07 -> 744.2284604 | K11: =I11*1.1 -> 752.3482824
A12: стипендии | B12: млн.руб. | C12: 2.4 | D12: 2.4 | E12: 2.4 | F12: 2.4 | G12: 2.41 | H12: 2.43 | I12: 2.5 | J12: 2.5 | K12: 2.6
A13: доходы от собственности | B13: млн.руб. | C13: 95.61 | D13: =D12/C12*C13 -> 95.61 | E13: =E12/D12*D13 -> 95.61 | F13: =F12/E12*E13 -> 95.61 | G13: =G12/E12*E13 -> 96.008375 | H13: =H12/F12*F13 -> 96.805125 | I13: =I12/G12*G13 -> 99.59375 | J13: =J12/H12*H13 -> 99.59375 | K13: =K12/I12*I13 -> 103.5775
A14: другие доходы | B14: млн.руб. | C14: 4.71 | D14: =C14*дефляторы!C7% -> 5.12448 | E14: =D14*дефляторы!D7% -> 5.36020608 | F14: =E14*дефляторы!E7% -> 5.724700093 | G14: =E14*дефляторы!F7% -> 5.697899063 | H14: =F14*дефляторы!G7% -> 6.051007999 | I14: =G14*дефляторы!H7% -> 5.96000242 | J14: =H14*дефляторы!I7% -> 6.359609407 | K14: =I14*дефляторы!J7% -> 6.216282524
A15: Реальные располагаемые денежные доходы населения | B15: в % к пред. году | C15: 103.18 | D15: =(D5-D21)/(C5-C21)*100/дефляторы!C7% -> 106.0116555 | E15: =(E5-E21)/(D5-D21)*100/дефляторы!D7% -> 103.4986151 | F15: =(F5-F21)/(E5-E21)*100/дефляторы!E7%+0.2 -> 100.3520421 | G15: =(G5-G21)/(E5-E21)*100/дефляторы!F7%-1.5 -> 101.7995496 | H15: =(H5-H21)/(F5-F21)*100/дефляторы!G7%+0.6 -> 100.2724523 | I15: =(I5-I21)/(G5-G21)*100/дефляторы!H7% -> 103.6118231 | J15: =(J5-J21)/(H5-H21)*100/дефляторы!I7% -> 100.7933296 | K15: =(K5-K21)/(I5-I21)*100/дефляторы!J7% -> 104.2013115
A16: Денежные доходы в расчете на душу населения в месяц | B16: рублей | C16: 6598.46 | D16: =D5/демогр!D5/12*1000 -> 7610.70388 | E16: =E5/демогр!G5/12*1000 -> 8374.900026 | F16: =F5/демогр!H5/12*1000 -> 8951.547355 | G16: =G5/демогр!I5/12*1000 -> 9186.707576 | H16: =H5/демогр!J5/12*1000 -> 9427.025595 | I16: =I5/демогр!K5/12*1000 -> 9952.39008 | J16: =J5/демогр!L5/12*1000 -> 9983.214388 | K16: =K5/демогр!M5/12*1000 -> 10815.58939
A17: Расходы населения | B17: млн.руб. | C17: =C19+C21+C22 -> 10113.5948 | D17: 11228.82805 | E17: 12376.0595 | F17: 13708.19905 | G17: 13856.06963 | H17: 15010.03842 | I17: 15312.86774 | J17: 16616.76857 | K17: 17016.71365
A18: в том числе:
A19: покупка товаров и оплата услуг | B19: млн.руб. | C19: 7808.75 | D19: =потребит!D7+потребит!D10+потребит!D13 -> 8800.514578 | E19: =потребит!F7+потребит!F10+потребит!F13 -> 9821.071501 | F19: =потребит!G7+потребит!G10+потребит!G13 -> 11033.23995 | G19: =потребит!H7+потребит!H10+потребит!H13 -> 11102.51822 | H19: =потребит!I7+потребит!I10+потребит!I13 -> 12377.52836 | I19: =потребит!J7+потребит!J10+потребит!J13 -> 12416.86116 | J19: =потребит!K7+потребит!K10+потребит!K13 -> 13917.05775 | K19: =потребит!L7+потребит!L10+потребит!L13 -> 13916.87016
A20: из них покупка товаров | B20: млн.руб. | C20: 6485.89 | D20: =потребит!D7 -> 7677.64521 | E20: =потребит!F7 -> 8617.066522 | F20: =потребит!G7 -> 9847.238939 | G20: =потребит!H7 -> 9892.73705 | H20: =потребит!I7 -> 11189.17143 | I20: =потребит!J7 -> 11196.3228 | J20: =потребит!K7 -> 12700.6047 | K20: =потребит!L7 -> 12647.01915
A21: обязательные платежи и разнообразные взносы | B21: млн.руб. | C21: =C5*0.08 -> 804.8448 | D21: 928.3134748 | E21: 1004.988003 | F21: 1074.959096 | G21: 1103.55141 | H21: 1132.510064 | I21: 1196.006583 | J21: 1199.710826 | K21: 1299.843491
A22: прочие расходы | B22: млн.руб. | C22: 1500 | D22: 1500 | E22: 1550 | F22: 1600 | G22: 1650 | H22: 1500 | I22: 1700 | J22: 1500 | K22: 1800
A23: Превышение доходов над расходами (+), или расходов над доходами (-) | B23: млн.руб. | C23: =C5-C17 -> -53.0348 | D23: 375.0903827 | E23: 186.290534 | F23: -271.2103449 | G23: -61.67699796 | H23: -853.6626265 | I23: -362.7854555 | J23: -1620.383249 | K23: -768.6700197
A24: Средний размер назначенных месячных пенсий пенсионеров, состоящих на учете в системе Пенсионного фонда РФ, руб. | B24: руб. | C24: 7251.6 | D24: 7910.96 | E24: 8350 | F24: =E24*1.2 -> 10020 | G24: =E24*1.22 -> 10187 | H24: =F24*1.1 -> 11022 | I24: =G24*1.12 -> 11409.44 | J24: =H24*1.1 -> 12124.2 | K24: =I24*1.12 -> 12778.5728
A25: Реальный размер назначенных пенсий | B25: % к пред. году | C25: 99.51 | D25: =D24/C24*100/дефляторы!C7% -> 100.2689467 | E25: =E24/D24*100/дефляторы!D7% -> 100.9080009 | F25: =F24/E24*100/дефляторы!E7% -> 112.3595506 | G25: =G24/E24*100/дефляторы!F7% -> 114.7695202 | H25: =H24/F24*100/дефляторы!G7% -> 104.0681173 | I25: =I24/G24*100/дефляторы!H7% -> 107.0745698 | J25: =J24/H24*100/дефляторы!I7% -> 104.6622265 | K25: =K24/I24*100/дефляторы!J7% -> 107.3825503
A26: Величина прожиточного минимума в среднем на душу населения в месяц | B26: руб. | C26: 5007 | D26: 5007 | E26: =D26*дефляторы!E7% -> 5347.476 | F26: =E26*дефляторы!E7% -> 5711.104368 | G26: =E26*дефляторы!F7% -> 5684.366988 | H26: =F26*дефляторы!G7% -> 6036.637317 | I26: =G26*дефляторы!H7% -> 5945.847869 | J26: =H26*дефляторы!I7% -> 6344.50582 | K26: =I26*дефляторы!J7% -> 6201.519328
A27: Численность населения с денежными доходами ниже прожиточного минимума в % ко всему населению | B27: % ко всему населению | C27: 18.9 | D27: 18.9 | E27: 18.7 | F27: 17.7 | G27: 17.5 | H27: 17.2 | I27: 17 | J27: 17 | K27: 16.5
C29: 31662 | D29: 32796 | E29: 33930 | F29: 33930 | G29: 34200 | H29: 34000 | I29: 34150 | J29: 34150 | K29: 34250

Sheet труд
A1: Показатели | B1: Единица измерения | C1: 2009 отчет | D1: 2010 отчет | E1: 2011 отчет | F1: 2012 оценка | G1: прогноз
G2: 2013 | I2: 2014 | K2: 2015
G3: вариант 1 | H3: вариант 2 | I3: вариант 1 | J3: вариант 2 | K3: вариант 1 | L3: вариант 2
A4: 9. Труд и занятость
A5: Численность трудовых ресурсов | B5: тыс. чел. | C5: 81.5 | D5: =D6+D17+D19 -> 81.41 | E5: =E6+E17+E19 -> 80.12 | F5: =F6+F17+F19 -> 79.67 | G5: =G6+G17+G19 -> 78.91 | H5: 79.17 | I5: 79.42 | J5: 79.28 | K5: 80.28 | L5: 79.59
A6: Численность занятых в экономике (среднегодовая) | B6: тыс. чел. | C6: 56.99 | D6: =SUM(D8:D12) -> 56.9 | E6: =SUM(E8:E12) -> 56.32 | F6: =SUM(F8:F12) -> 55.07 | G6: =SUM(G8:G12) -> 54.31 | H6: 54.67 | I6: 54.62 | J6: 54.78 | K6: 54.78 | L6: 54.79
A7: Распределение среднегодовой численности занятых в экономике по формам собственности:
A8: на предприятиях и в организациях государственной и муниципальной форм собственности | B8: тыс. чел. | C8: 7.7 | D8: 7.6 | E8: 7.5 | F8: 7.5 | G8: 7.2 | H8: 7 | I8: 6.5 | J8: 6 | K8: 5.8 | L8: 5.5
A9: в общественных объединениях и организациях | B9: тыс. чел. | C9: 0.04 | D9: 0.04 | E9: 0.04 | F9: 0.04 | G9: 0.04 | H9: 0.04 | I9: 0.04 | J9: 0.04 | K9: 0.04 | L9: 0.04
A10: на предприятиях и организациях со смешанной формой собственности | B10: тыс. чел. | C10: 37 | D10: 37.01 | E10: 36.6 | F10: 35.4 | G10: 35 | H10: 35.5 | I10: 36 | J10: 36.5 | K10: 36.8 | L10: 37
A11: в предприятиях с иностранным участием | B11: тыс. чел. | C11: 0.45 | D11: 0.45 | E11: 0.45 | F11: 0.45 | G11: 0.45 | H11: 0.45 | I11: 0.45 | J11: 0.45 | K11: 0.45 | L11: 0.45
A12: в частном секторе | B12: тыс. чел. | C12: 11.8 | D12: =SUM(D14:D16) -> 11.8 | E12: =SUM(E14:E16) -> 11.73 | F12: =SUM(F14:F16) -> 11.68 | G12: 11.62 | H12: 11.68 | I12: 11.63 | J12: 11.79 | K12: 11.69 | L12: 11.8
A13: в том числе занятые:
A14: в крестьянских (фермерских) хозяйствах (включая наемных работников) | B14: тыс. чел. | C14: 0 | D14: 0 | E14: 0 | F14: 0 | G14: 0 | H14: 0 | I14: 0 | J14: 0 | K14: 0 | L14: 0
A15: на частных предприятиях | B15: тыс. чел. | C15: 3.3 | D15: 3.3 | E15: 3.28 | F15: 3.28 | G15: 3.27 | H15: 3.28 | I15: 3.28 | J15: 3.29 | K15: 3.29 | L15: 3.1
A16: индивидуальным трудом и по найму у отдельных граждан, включая занятых в домашнем хозяйстве производством товаров и услуг для реализации (включая личное подсобное хозяйство) | B16: тыс. чел. | C16: 8.5 | D16: 8.5 | E16: 8.45 | F16: 8.4 | G16: 8.35 | H16: 8.4 | I16: 8.35 | J16: 8.5 | K16: 8.4 | L16: 8.7
A17: Учащиеся в трудоспособном возрасте, обучающиеся с отрывом от производства | B17: тыс. чел. | C17: 3.81 | D17: 3.81 | E17: 3.8 | F17: 3.8 | G17: 3.8 | H17: 3.8 | I17: 3.8 | J17: 3.8 | K17: 3.8 | L17: 3.8
A18: Трудоспособные лица в трудоспособном возрасте, не занятые трудовой деятельностью и учебой | B18: тыс. чел. | C18: 5.1 | D18: 5.2 | E18: 5.2 | F18: 5.1 | G18: 5 | H18: 4.9 | I18: 4.9 | J18: 4.8 | K18: 4.8 | L18: 4.7
C19: 20.7 | D19: 20.7 | E19: 20 | F19: 20.8 | G19: 20.8 | H19: 20.7 | I19: 21 | J19: 20.7 | K19: 21.7 | L19: 21
A20: выезжающие на работу за пределы муниципального образования | C20: 15.6 | D20: =D19-D18 -> 15.5 | E20: 15 | F20: 16.5 | G20: 15.5 | H20: 15.6 | I20: =I19-I18 -> 16.1 | J20: =J19-J18 -> 15.9 | K20: =K19-K18 -> 16.9 | L20: =L19-L18 -> 16.3
A21: отклонение скрытой безработицы | F21: =F20-D20 -> 1 | G21: =G20-D20 -> 0 | H21: =H20-D20 -> 0.1 | I21: =I20-D20 -> 0.6 | J21: =J20-D20 -> 0.4 | K21: =K20-D20 -> 1.4 | L21: =L20-D20 -> 0.8
A22: Уровень безработицы (по методологии МОТ) | B22: % | C22: =C24/C5*100 -> 12.94478528 | D22: =D24/D5*100 -> 7.810482144 | E22: =E24/E5*100 -> 3.879147495 | F22: =F24/F5*100 -> 5.156235688 | G22: =G24/G5*100 -> 5.205896557 | H22: 5.315110488 | I22: 6.053856677 | J22: 6.569088008 | K22: 8.231157166 | L22: 9.307668015
A23: Уровень зарегистрированной безработицы | B23: % | C23: 3.7 | D23: 2.23 | E23: 1.09 | F23: 1.09 | G23: 1 | H23: 1 | I23: 1 | J23: 1 | K23: 1 | L23: 1
A24: Численность безработных, рассчитанная по методологии МОТ | B24: тыс. чел. | C24: 10.55 | D24: =D23/C23*C24 -> 6.358513514 | E24: =E23/D23*D24 -> 3.107972973 | F24: =E24+F21 -> 4.107972973 | G24: =F24+G21 -> 4.107972973 | H24: 4.207972973 | I24: 4.807972973 | J24: 5.207972973 | K24: 6.607972973 | L24: 7.407972973
A25: Численность безработных, зарегистрированных в службах занятости | B25: тыс. чел. | C25: 3.19 | D25: 1.89 | E25: 0.924 | F25: 0.91 | G25: =G23/F23*F25 -> 0.8348623853 | H25: =H23/F23*F25 -> 0.8348623853 | I25: =I23/G23*G25 -> 0.8348623853 | J25: =J23/H23*H25 -> 0.8348623853 | K25: =K23/I23*I25 -> 0.8348623853 | L25: =L23/J23*J25 -> 0.8348623853
A26: Численность незанятых граждан, зарегистрированных в органах государственной службы занятости, в расчете на одну заявленную вакансию | B26: чел. | C26: 1.492279746 | D26: =0.783/D25 -> 0.4142857143 | E26: =0.783/E25 -> 0.8474025974 | F26: =1.4/F25 -> 1.538461538 | G26: =1.3/G25 -> 1.557142857 | H26: 1.557142857 | I26: 1.557142857 | J26: 1.557142857 | K26: 1.557142857 | L26: 1.557142857
A27: Среднесписочная численность работников организаций - всего | B27: тыс. чел. | C27: 39.93800738 | D27: =D6/C6*C27 -> 39.8749363 | E27: =E6/D6*D27 -> 39.46847825 | F27: =F6/D6*D27 -> 38.59249108 | G27: =G6/F6*F27 -> 38.05989087 | H27: =H6/F6*F27 -> 38.31217518 | I27: =I6/G6*G27 -> 38.27713569 | J27: =J6/H6*H27 -> 38.38926205 | K27: =K6/I6*I27 -> 38.38926205 | L27: =L6/J6*J27 -> 38.39626995
A28: Фонд начисленной заработной платы всех работников | B28: млн.руб. | C28: =C32*C27*12/1000 -> 5548.347737 | D28: =D32*D27*12/1000 -> 6176.946633 | E28: =E32*E27*12/1000 -> 7232.203955 | F28: =F32*F27*12/1000 -> 7920.290633 | G28: =G32*G27*12/1000 -> 7943.772124 | H28: 8216.582338 | I28: 8132.902253 | J28: 8710.637192 | K28: 8376.968475 | L28: 9243.680828
A29: Выплаты социального характера - всего | B29: млн.руб. | C29: 38.34048708 | D29: =C29*1.04 -> 39.87410657 | E29: =D29*1.04 -> 41.46907083 | F29: =D29*0.5 -> 19.93705328 | G29: =F29*0.9 -> 17.94334796 | H29: =F29*0.97 -> 19.33894169 | I29: =G29*0.99 -> 17.76391448 | J29: =H29*1 -> 19.33894169 | K29: =I29*1 -> 17.76391448 | L29: =J29*1 -> 19.33894169
A30: Просроченная задолженность по заработной плате работников к месячному фонду заработной платы на конец года | B30: % | C30: 2170 | D30: 16400 | E30: 480 | F30: 460 | G30: 350 | H30: 300 | I30: 250 | J30: 200 | K30: 150 | L30: 100
C32: 11577 | D32: 12909 | E32: 15270 | F32: =E32*1.12 -> 17102.4 | G32: 17393.14 | H32: 17872 | I32: 17706.18 | J32: 18908.58 | K32: 18184.27 | L32: 20062.02

Sheet социальн
A1: Показатели | B1: Единица измерения | C1: 2009отчет | D1: 2010 отчет | E1: 2011 отчет | F1: 2012 оценка | G1: прогноз
G2: 2013 | I2: 2014 | K2: 2015
G3: вариант 1 | H3: вариант 2 | I3: вариант 1 | J3: вариант 2 | K3: вариант 1 | L3: вариант 2
A4: 10. Развитие социальной сферы
A5: Численность детей в дошкольных образовательных учреждениях | B5: чел. | C5: 7.14 | D5: 7210 | E5: 7659 | F5: 7659 | G5: 7.7 | H5: 7.72 | I5: 7.72 | J5: 7.55 | K5: 7.55 | L5: 7.6
A6: Численность учащихся в учреждениях:
A7: общеобразовательных | B7: чел. | C7: 11286 | D7: 11491 | E7: 12305 | F7: 11994 | G7: 12000 | H7: 12020 | I7: 12020 | J7: 12040 | K7: 12040 | L7: 12070
A8: начального профессионального образования | B8: чел. | C8: 1.87 | D8: 1870 | E8: 1870 | F8: 1870 | G8: 1870 | H8: 1870 | I8: 1870 | J8: 1870 | K8: 1870 | L8: 1870
A9: среднего профессионального образования | B9: чел. | C9: 1.76 | D9: 1760 | E9: 1790 | F9: 1.76 | G9: 1.76 | H9: 1.76 | I9: 1.76 | J9: 1.76 | K9: 1.76 | L9: 1.76
A10: высшего профессионального образования | B10: чел. | C10: 0.91 | D10: 910 | E10: 1234 | F10: 0.91 | G10: 0.91 | H10: 0.91 | I10: 0.91 | J10: 0.91 | K10: 0.91 | L10: 0.91
A11: Выпуск специалистов:
A12: со средним профессиональным образованием | B12: чел. | C12: 1210 | D12: 1210 | E12: 293 | F12: 1200 | G12: 1190 | H12: 1195 | I12: 1180 | J12: 1190 | K12: 1185 | L12: 1190
A13: с высшим профессиональным образованием | B13: чел. | C13: 60 | D13: 60 | E13: 241 | F13: 60 | G13: 60 | H13: 60 | I13: 60 | J13: 60 | K13: 60 | L13: 60
A14: Численность обучающихся в первую смену в дневных учреждениях общего образования в % к общему числу обучающихся в этих учреждениях | B14: % | C14: 100 | D14: 100 | E14: 100 | F14: 100 | G14: 100 | H14: 100 | I14: 100 | J14: 100 | K14: 100 | L14: 100
A15: город | B15: % | C15: 100 | D15: 100 | E15: 100 | F15: =F14 -> 100 | G15: =G14 -> 100 | H15: 100 | I15: 100 | J15: 100 | K15: 100 | L15: 100
A16: село | B16: % | C16: 0 | D16: 0 | E16: 0 | F16: 0 | G16: 0 | H16: 0 | I16: 0 | J16: 0 | K16: 0 | L16: 0
A17: Число заболеваний, зарегистрированных у больных с впервые установленным диагнозом | B17: единиц на 100 тыс. населения | C17: 94970 | D17: 87020 | E17: 87140 | F17: 87485 | G17: 87150 | H17: 87100 | I17: 87150 | J17: 87100 | K17: 87150 | L17: 87100
A18: Обеспеченность:
A19: больничными койками | B19: коек на 10 тыс. населения | C19: 56.1 | D19: 55.9 | E19: 60.7 | F19: 61.5 | G19: 63.5 | H19: 63.4 | I19: 63.4 | J19: 63.3 | K19: 63.4 | L19: 63.2
A20: в том числе койками
A21: интенсивного лечения | B21: коек на 10 тыс. населения | C21: 1.4 | D21: 1.4 | E21: 1.4 | F21: 1.4 | G21: 1.4 | H21: 1.4 | I21: 1.4 | J21: 1.4 | K21: 1.4 | L21: 1.4
A22: восстановительного лечения | B22: коек на 10 тыс. населения | C22: - | D22: - | F22: - | G22: - | H22: - | I22: - | J22: - | K22: - | L22: -
A23: для лечения хронических больных | B23: коек на 10 тыс. населения | C23: 54.4 | D23: 54.4 | E23: 54.7 | F23: 55.8 | G23: 55 | H23: 54 | I23: 54 | J23: 53 | K23: 54 | L23: 52
A24: в стационарных учреждениях социального обслуживания для престарелых и инвалидов (взрослых и детей) | B24: мест на 10 тыс. Населения | C24: 1.2 | D24: 1.2 | E24: 1.2 | F24: 1.2 | G24: 1.2 | H24: 1.2 | I24: 1.2 | J24: 1.2 | K24: 1.2 | L24: 1.2
A25: стационаров дневного пребывания | B25: мест на 10 тыс. населения | C25: 11 | D25: 11 | E25: 11.2 | F25: 11.3 | G25: 5.7 | H25: 5.8 | I25: 5.8 | J25: 5.9 | K25: 5.9 | L25: 6
A26: амбулаторно-поликлиническими учреждениями | B26: посещений в смену на 10 тыс. населения | C26: 194.4 | D26: 198.8 | E26: 265.8 | F26: 201 | G26: 198.5 | H26: 198.9 | I26: 198.8 | J26: 199 | K26: 199 | L26: 200
A27: врачами | B27: чел. на 10 тыс. населения | C27: 30.2 | D27: 31.2 | E27: 28.4 | F27: 36.2 | G27: 37.6 | H27: 37.6 | I27: 37.6 | J27: 37.6 | K27: 37.6 | L27: 37.6
A28: в том числе:
A29: врачами общей практики (семейными врачами) | B29: чел. на 10 тыс. населения | C29: 6.6 | D29: 6.3 | E29: 6.7 | F29: 2 | G29: 1.2 | H29: 1.4 | I29: 1.3 | J29: 1.6 | K29: 1.5 | L29: 1.8
A30: средним медицинским персоналом | B30: чел. на 10 тыс. населения | C30: 67.6 | D30: 69.6 | E30: 80 | F30: 73.4 | G30: 78.2 | H30: 78.5 | I30: 78.4 | J30: 78.8 | K30: 78.5 | L30: 80
A31: общедоступными библиотеками | B31: учрежд. на 100 тыс.населения | C31: 7.128938739 | D31: 7.1 | E31: 7.1 | F31: 7.125834316 | G31: 7.124424109 | H31: 7.124367712 | I31: 7.122338026 | J31: 7.122112577 | K31: 7.119746221 | L31: 7.118901474
A32: учреждениями культурно-досугового типа | B32: учрежд. на 100 тыс.населения | C32: 3.960521521 | D32: 4 | E32: 4 | F32: 3.958796842 | G32: 3.958013394 | H32: 3.957982062 | I32: 3.956854459 | J32: 3.956729209 | K32: 3.955414567 | L32: 3.954945264
A33: дошкольными образовательными учреждениями | B33: мест на 1 000 детей в возрасте 1-6 лет | C33: 940 | D33: 941 | E33: 942 | F33: 1182 | G33: 1182 | H33: 1185 | I33: 1185 | J33: 1200 | K33: 1200 | L33: 1370
A34: Ввод в действие жилых домов | B34: тыс. кв. м общей площади | C34: 13 | D34: 35.7 | E34: 19.86 | F34: 34.569 | G34: 35 | H34: 35.5 | I34: 40 | J34: 45 | K34: 45 | L34: 47
A35: в том числе за счет:
A36: средств федерального бюджета | B36: тыс. кв. м общей площади | C36: 1.36 | D36: 1.4 | E36: 0 | F36: 0 | G36: 0 | H36: 0 | I36: 0 | J36: 0 | K36: 0 | L36: 0
A37: средств бюджетов субъектов Российской Федерации и средств местного бюджета | B37: тыс. кв. м общей площади | C37: 0.48 | D37: 0.6 | E37: 0 | F37: 0 | G37: 0 | H37: 0 | I37: 0 | J37: 0 | K37: 0 | L37: 0
A38: из общего итога - индивидуальные жилые дома, построенные населением за свой счет и с помощью кредитов | B38: тыс. кв. м общей площади | C38: 2.3 | D38: 1.4 | E38: 2.74 | F38: 2 | G38: 2 | H38: 2 | I38: 2 | J38: 2 | K38: 2 | L38: 2
A39: Общая площадь жилых помещений, приходящаяся в среднем на 1 жителя (на конец года) | B39: кв. м | C39: =C46/демогр!C5 -> 18.46093071 | D39: =D46/демогр!D5 -> 18.6711476 | E39: 19.3 | F39: =F46/демогр!E5 -> 19.50919294 | G39: =G46/демогр!H5 -> 19.67966264 | H39: =H46/демогр!I5 -> 19.67736754 | I39: =I46/демогр!J5 -> 19.99144159 | J39: =J46/демогр!K5 -> 20.02899025 | K39: =K46/демогр!L5 -> 20.34453587 | L39: =L46/демогр!M5 -> 20.40281971
A40: Стоимость предоставляемых населению жилищно-коммунальных услуг, рассчитанная по экономически обоснованным тарифам | B40: тыс. руб. | C40: =потребит!C23+потребит!C25 -> 608.3 | D40: =потребит!D23+потребит!D25 -> 490.3795 | E40: =потребит!E23+потребит!E25 -> 507.8075874 | F40: =потребит!F23+потребит!F25 -> 498 | G40: =потребит!G23+потребит!G25 -> 507.1932 | H40: =потребит!H23+потребит!H25 -> 519.558258 | I40: =потребит!I23+потребит!I25 -> 525.3811482 | J40: =потребит!J23+потребит!J25 -> 538.0233585 | K40: =потребит!K23+потребит!K25 -> 544.9080072 | L40: =потребит!L23+потребит!L25 -> 561.1583629
A41: Фактический уровень платежей населения за жилое помещение и коммунальные услуги | B41: % | C41: 100 | D41: 100 | E41: 100 | F41: 100 | G41: 100 | H41: 100 | I41: 100 | J41: 100 | K41: 100 | L41: 100
A42: Число зарегистрированных преступлений | B42: единиц на 100 тыс. населения | C42: 2086.6 | D42: =2467/демогр!D5*100 -> 1941.648237 | E42: 2144 | F42: =2660/демогр!E5*100 -> 2138.452757 | G42: =2700/демогр!H5*100 -> 2158.445919 | H42: =2670/демогр!I5*100 -> 2133.780868 | I42: =2710/демогр!J5*100 -> 2165.574556 | J42: =2692/демогр!K5*100 -> 2150.503275 | K42: =2705/демогр!L5*100 -> 2160.888321 | L42: =2690/демогр!M5*100 -> 2148.733924
A43: Численность пенсионеров, состоящих на учете в системе Пенсионного фонда РФ | B43: тыс. чел. | C43: 31.7 | D43: 32.8 | E43: 33.71 | F43: =доход!E29/1000 -> 33.93 | G43: =доход!F29/1000 -> 33.93 | H43: =доход!G29/1000 -> 34.2 | I43: =доход!H29/1000 -> 34 | J43: =доход!I29/1000 -> 34.15 | K43: =доход!J29/1000 -> 34.15 | L43: =доход!K29/1000 -> 34.25
A44: Численность пенсионеров, состоящих на учете в системе Пенсионного фонда РФ | B44: чел. на 1 000 чел. населения | C44: 234.4628741 | D44: 258.12 | E44: =E43/демогр!F5*1000 -> 270.2334381 | F44: =F43/демогр!G5*1000 -> 271.44 | G44: =G43/демогр!H5*1000 -> 271.2447038 | H44: =H43/демогр!I5*1000 -> 273.3157516 | I44: =I43/демогр!J5*1000 -> 271.6957008 | J44: =J43/демогр!K5*1000 -> 272.8071577 | K44: =K43/демогр!L5*1000 -> 272.8071577 | L44: =L43/демогр!M5*1000 -> 273.5841521
C46: =D46-D34 -> 2336.6 | D46: 2372.3 | E46: =D46+E34 -> 2392.16 | F46: =E46+F34 -> 2426.729 | G46: =F46+G34 -> 2461.729 | H46: =F46+H34 -> 2462.229 | I46: =G46+I34 -> 2501.729 | J46: =H46+J34 -> 2507.229 | K46: =I46+K34 -> 2546.729 | L46: =J46+L34 -> 2554.229

Sheet эколог
A1: Показатели | B1: Единица измерения | C1: 2009 отчет | D1: 2010 отчет | E1: 2011 отчет | F1: 2012 оценка | G1: прогноз
G2: 2012 | I2: 2013 | K2: 2014
G3: вариант 1 | H3: вариант 2 | I3: вариант 1 | J3: вариант 2 | K3: вариант 1 | L3: вариант 2
A4: 11. Охрана окружающей среды
A5: Инвестиции в основной капитал, направленные на охрану окружающей среды и рациональное использование природных ресурсов за счет всех источников финансирования | B5: млн.руб. | C5: 69.9 | D5: =D7+D8+D9 -> 595.55 | E5: =E7+E8+E9 -> 593.7 | F5: =E5*F6% -> 593.7 | G5: =F5*G6% -> 593.7 | H5: =F5*H6% -> 593.7 | I5: =G5*I6% -> 593.7 | J5: =H5*J6% -> 593.7 | K5: =I5*K6% -> 593.7 | L5: =J5*L6% -> 593.7
A6: из них за счет: | C6: 92.89363679 | D6: 100 | E6: 100 | F6: 100 | G6: 100 | H6: 100 | I6: 100 | J6: 100 | K6: 100 | L6: 100
A7: средств федерального бюджета | B7: млн.руб. | C7: 0 | D7: 217.85 | E7: 283.7 | F7: 270 | G7: 0 | H7: 0 | I7: 0 | J7: 0 | K7: 0 | L7: 0
A8: бюджетов субъектов Российской Федерации и местных бюджетов | B8: млн.руб. | C8: 13.2 | D8: 107.7 | E8: 60 | F8: =D8*0.5 -> 53.85 | G8: 290 | H8: 290 | I8: =G8*1 -> 290 | J8: =H8*1.01 -> 292.9 | K8: =I8*1.01 -> 292.9 | L8: =J8*1.01 -> 295.829
A9: собственных средств предприятий | B9: млн.руб. | C9: 56.7 | D9: 270 | E9: 250 | F9: 270 | G9: 305.5 | H9: =H5-H8 -> 303.7 | I9: =I5-I8 -> 303.7 | J9: =J5-J8 -> 300.8 | K9: =K5-K8 -> 300.8 | L9: =L5-L8 -> 297.871
A10: Сброс загрязненных сточных вод в поверхностные водные объекты (данные Росводресурсов) | B10: млн.куб.м | C10: 82.7 | D10: 83 | E10: 83 | F10: 83 | G10: =F10*G11% -> 83 | H10: =F10*H11% -> 83 | I10: =G10*I11% -> 83.83 | J10: =H10*J11% -> 84.245 | K10: =I10*K11% -> 84.6683 | L10: =J10*L11% -> 85.508675
B11: % к пред. году | C11: 108.0629265 | D11: =D10/C10*100 -> 100.362757 | E11: =E10/D10*100 -> 100 | F11: =F10/D10*100 -> 100 | G11: 100 | H11: 100 | I11: 101 | J11: 101.5 | K11: 101 | L11: 101.5
A12: Выбросы в атмосферный воздух загрязняющих веществ, отходящих от стационарных источников | B12: тыс.т. | C12: 2.4 | D12: 2.5 | E12: 2.5 | F12: 2.5 | G12: 2.5 | H12: 2.5 | I12: 2.5 | J12: 2.5 | K12: 2.5 | L12: 2.5
B13: % к пред. году | C13: 105.8333333 | D13: 100 | E13: 100 | F13: =F12/D12*100 -> 100 | G13: =G12/F12*100 -> 100 | H13: =H12/F12*100 -> 100 | I13: =I12/G12*100 -> 100 | J13: =J12/H12*100 -> 100 | K13: =K12/I12*100 -> 100 | L13: =L12/J12*100 -> 100
A14: Объем водопотребления (данные Росводресурсов) | B14: млн.куб.м | C14: 24.5 | D14: 25 | E14: 25 | F14: 25.5 | G14: 26 | H14: 26.5 | I14: 26.5 | J14: 27 | K14: 27 | L14: 27.5
B15: % к пред. году | C15: 93.3447099 | D15: =D14/C14*100 -> 102.0408163 | E15: =E14/D14*100 -> 100 | F15: =F14/D14*100 -> 102 | G15: =G14/F14*100 -> 101.9607843 | H15: =H14/F14*100 -> 103.9215686 | I15: =I14/G14*100 -> 101.9230769 | J15: =J14/H14*100 -> 101.8867925 | K15: =K14/I14*100 -> 101.8867925 | L15: =L14/J14*100 -> 101.8518519
A16: Объем оборотного и повторно-последовательного использования воды (данные Росводресурсов) | B16: млн.куб.м | C16: 0.274 | D16: 0.3 | E16: 0.3 | F16: 0.274 | G16: 0.274 | H16: 0.274 | I16: 0.274 | J16: 0.274 | K16: 0.274 | L16: 0.274
B17: % к пред. году | C17: 100 | D17: 100 | E17: 100 | F17: 100 | G17: =G16/F16*100 -> 100 | H17: =H16/F16*100 -> 100 | I17: =I16/G16*100 -> 100 | J17: =J16/H16*100 -> 100 | K17: =K16/I16*100 -> 100 | L17: =L16/J16*100 -> 100

Sheet внешнеэк
A1: Показатели | B1: Единица измерения | C1: 2009 отчет | D1: 2010 отчет | E1: 2011 оценка | F1: прогноз
F2: 2012 | H2: 2013 | J2: 2014
F3: вариант 1 | G3: вариант 2 | H3: вариант 1 | I3: вариант 2 | J3: вариант 1 | K3: вариант 2
A4: 4. Внешнеэкономическая деятельность
A5: Экспорт товаров | B5: млн. долл. США
A7: Импорт товаров | B7: млн. долл. США
A9: Страны дальнего зарубежья
A10: Экспорт товаров - всего | B10: млн. долл. США
A11: в том числе по группам товаров:
A12: Продовольственные товары и сельскохозяйственное сырье (кроме текстильного) (код ТН ВЭД 01-24) | B12: млн. долл. США
A13: Топливно-энергетические товары (27) | B13: млн. долл. США
A14: Продукция химической промышленности, каучук (28-40) | B14: млн. долл. США
A15: Древесина и целлюлозно-бумажные изделия (44-49) | B15: млн. долл. США
A16: Металлы и изделия из них (72-83) | B16: млн. долл. США
A17: Машины, оборудование и транспортные средства (84-90) | B17: млн. долл. США
A19: Импорт товаров - всего | B19: млн. долл. США
A20: в том числе по группам товаров:
A21: Продовольственные товары и сельскохозяйственное сырье (кроме текстильного) (код ТН ВЭД 01-24) | B21: млн. долл. США
A22: Продукция химической промышленности, каучук (28-40) | B22: млн. долл. США
A23: Текстиль, текстильные изделия и обувь (50 - 67) | B23: млн. долл. США
A24: Металлы и изделия из них (72-83) | B24: млн. долл. США
A25: Машины, оборудование и транспортные средства (84-90) | B25: млн. долл. США
A32: Государства-участники СНГ
A33: Экспорт товаров - всего | B33: млн. долл. США
A34: в том числе по группам товаров:
A35: Продовольственные товары и сельскохозяйственное сырье (кроме текстильного) (код ТН ВЭД 01-24) | B35: млн. долл. США
A36: Топливно-энергетические товары (27) | B36: млн. долл. США
A37: Продукция химической промышленности, каучук (28-40) | B37: млн. долл. США
A38: Древесина и целлюлозно-бумажные изделия (44-49) | B38: млн. долл. США
A39: Металлы и изделия из них (72-83) | B39: млн. долл. США
A40: Машины, оборудование и транспортные средства (84-90) | B40: млн. долл. США
A42: Импорт товаров - всего | B42: млн. долл. США
A43: в том числе по группам товаров:
A44: Продовольственные товары и сельскохозяйственное сырье (кроме текстильного) (код ТН ВЭД 01-24) | B44: млн. долл. США
A45: Продукция химической промышленности, каучук (28-40) | B45: млн. долл. США
A46: Текстиль, текстильные изделия и обувь (50 - 67) | B46: млн. долл. США
A47: Металлы и изделия из них (72-83) | B47: млн. долл. США
A48: Машины, оборудование и транспортные средства (84-90) | B48: млн. долл. США

Sheet Лист6
A1: Показатели | B1: Единица измерения | C1: 2007 отчет | D1: 2008 отчет | E1: 2009 оценка | F1: прогноз
F2: 2010 | H2: 2011 | J2: 2012
F3: вариант 1 | G3: вариант 2 | H3: вариант 1 | I3: вариант 2 | J3: вариант 1 | K3: вариант 2

Sheet Лист1
